Workbook

Sheet Arch_SSR Num Panels
A2: This Calculator will calculate the number of trucks required, % of load for the last truck and the Freight (You must enter the information highlighted in GREEN - Product; Length of the Panel, Number of Panels and number of miles) (Blue cells are calculated and cannot be entered)
A6: Description | B6: Value | C6: UOM | D6: Instruction | H6: Width | I6: Panels per truck 10' or shorter | J6: Panels per truck from 11' to 15' long | K6: Panels per truck from 16 to 25' long | L6: Panels per truck over 25' long not to exceed 52'
A7: Product | B7: FW 12" | D7: Select from the drop down menu | H7: 12 | I7: 32 | J7: 32 | K7: 32 | L7: 32
A8: Width of Panel | B8: =VLOOKUP(B7,Data_Table,2,FALSE) -> 12 | C8: Inches | H8: 12 | I8: 1800 | J8: 1350 | K8: 900 | L8: 450
A9: Length of Panel or Trim Box | B9: 46 | C9: Feet | D9: You must manually enter this value. If Unknown enter 30 Feet | H9: 12 | I9: 960 | J9: 720 | K9: 480 | L9: 240
A10: Square Foot Per Panel | B10: =B9*(B8/12) -> 46 | C10: 100 Sq Ft | H10: 16 | I10: 792 | J10: 594 | K10: 396 | L10: 198
A11: Customer Squares | B11: =B12*(B10/100) -> 92 | C11: Squares | H11: 16.5 | I11: 1536 | J11: 1152 | K11: 768 | L11: 384
A12: Number of Panels or Trim Box | B12: 200 | C12: Panels | D12: You must manually enter the number of panels. | H12: 18 | I12: 960 | J12: 720 | K12: 480 | L12: 240
A13: Panels per Truck | B13: =VLOOKUP($B$7,Data_Table,VLOOKUP($B$9,Panel_Capacity,2,TRUE),FALSE) -> 360 | C13: per Truck | H13: 10.5 | I13: with | J13: Houston | K13: Plant | L13: per
H14: 24 | I14: 1008 | J14: 756 | K14: 504 | L14: 252
A15: Number of Trucks | B15: =IF($B$16>0,IF($B$42="yes",1,$B$41+1),$B$41) -> 1 | C15: Trucks | H15: 12 | I15: 1056 | J15: 792 | K15: 528 | L15: 264
A16: % Util of the Last Truck | B16: =(B12-(TRUNC(B12/B13,0)*B13))/B13 -> 0.5555555556 | C16: % | D16: Percent utilization of last truck | H16: 16 | I16: 1056 | J16: 792 | K16: 528 | L16: 264
H17: 18 | I17: 1056 | J17: 792 | K17: 528 | L17: 264
A18: Number of Miles | B18: 1 | C18: Miles | D18: You must enter the number of miles
H19: 18 | I19: 1056 | J19: 792 | K19: 528 | L19: 264
A20: State of Job Site | B20: WY | C20: Miles | D20: Select State Abbreviation
H21: 18 | I21: 1056 | J21: 792 | K21: 528 | L21: 264
A22: Shipping Plant location : You can chose the closest plant to your jobsite unless you have 50% or over in the % utilized or more than 1 in the number of trucks above. If over these then refer to the MFG tab to chose the closest plant based on a plant that produces the product you are shipping | B22: ELIZABETHTON | C22: Miles | D22: Select State Abbreviation
A24: Freight | B24: =IF(B15>1,SUM(B44*B15,B47*B15),SUM(B46,B47)) -> 1250 | C24: $ | D24: Freight
A25: Fuel Surcharge | B25: =IF((B12/B13)<0.5,(B12/B13),1)*(B18*Tables!BX18)*B15 -> 0.46 | D25: Fuel Surcharge
A26: Load Sharing Calculations
A27: Total Estimated Revenue | B27: 100000 | C27: To be used by the Order Scheduling Specialist to assist in leveraging our National Capacity to meet the Customer's Requested Date
A28: Incremental Freight Budget | B28: =B27*5% -> 5000
A29: Current Site Freight | B29: =B24 -> 1250
A30: Total Freight Budget | B30: =B28+B29 -> 6250
A31: Customer Requested Date | B31: 2018-12-24
A32: Customer Order Number | B32: 5123454
A33: Alternative Plants | B33: Specific Locations | C33: Miles | D33: Freight | E33: Load Date | F33: Alt Plant | G33: Row Instructions
A34: Option A | B34: Mt Pleasant, IA | C34: 350 | D34: =IF($B$15>1,SUM($E43*$B$15,$B$47*$B$15),SUM($F43,$B$47)) ->  | E34: 2018-12-26 | G34: Select Plant from drop down menu; enter miles to Job Site from that plant and their load date
A35: Option B | B35: Adel, GA | C35: 650 | D35: =IF($B$15>1,SUM($E44*$B$15,$B$47*$B$15),SUM($F44,$B$47)) ->  | E35: 2018-12-25 | G35: Select Plant from drop down menu; enter miles to Job Site from that plant and their load date
A36: Option C | B36: OkCity, OK | C36: 800 | D36: =IF($B$15>1,SUM($E45*$B$15,$B$47*$B$15),SUM($F45,$B$47)) ->  | E36: 2018-12-23 | G36: Select Plant from drop down menu; enter miles to Job Site from that plant and their load date
A37: Option D | B37: Phoenix, AZ | C37: 2500 | D37: =IF($B$15>1,SUM($E46*$B$15,$B$47*$B$15),SUM($F46,$B$47)) ->  | E37: 2018-12-20 | G37: Select Plant from drop down menu; enter miles to Job Site from that plant and their load date
A38: Original Location | B38: =B22 -> ELIZABETHTON | C38: =B18 -> 1 | D38: =B29 -> 1250 | E38: 2018-12-31
A41: Estimated Number of full trucks | B41: =_xlfn.FLOOR.MATH($B12/B13) -> 0 | G41: Number of full trucks | H41: 18 | I41: 1056 | J41: 792 | K41: 528 | L41: 264
A42: Is this a Milk Run? | B42: =IF(AND($B$41=0,$B$16<50%),"yes","no") -> no | E42: FT Rate | F42: Partial Rate | G42: If Utilization ge 50% consider a full truck
A43: Full Truck Mile Rate | B43: =VLOOKUP($B$22,State_Rate,(VLOOKUP($B$20,State_Col,2,FALSE)),FALSE) -> 3.15 | D43: =VLOOKUP($B$34,State_Rate,(VLOOKUP($B$20,State_Col,2,FALSE)),FALSE) ->  | E43: =IF($B$42="no",MAX($D43*$C34,1200),0) ->  | F43: =(MAX(1200,$D43*$C34)/$B$45) ->  | G43: Based upon the State of the Job Site
A44: Freight for Full Truck | B44: =IF($B$42="no",MAX($B43*$B18,1200),0) -> 1200 | D44: =VLOOKUP($B$35,State_Rate,(VLOOKUP($B$20,State_Col,2,FALSE)),FALSE) ->  | E44: =IF($B$42="no",MAX($D44*$C35,1200),0) ->  | F44: =(MAX(1200,$D44*$C35)/$B$45) -> 
A45: Estimated Sharing for Partial | B45: =VLOOKUP($B$16,Util_Rate,3,TRUE) -> 1 | D45: =VLOOKUP($B$36,State_Rate,(VLOOKUP($B$20,State_Col,2,FALSE)),FALSE) ->  | E45: =IF($B$42="no",MAX($D45*$C36,1200),0) ->  | F45: =(MAX(1200,$D45*$C36)/$B$45) ->  | G45: This number will be divided into the rate for a full truck as we assume it can share the truck
A46: Partial Truck Cost | B46: =(MAX(1200,B43*B18)/B45) -> 1200 | D46: =VLOOKUP($B$37,State_Rate,(VLOOKUP($B$20,State_Col,2,FALSE)),FALSE) ->  | E46: =IF($B$42="no",MAX($D46*$C37,1200),0) ->  | F46: =(MAX(1200,$D46*$C37)/$B$45) -> 
A47: Drop Off Fee | B47: 50
G48: Total Freight equals the number of full trucks times the full truck fee plus $50 per full truck
G49: plus the cost of a partial truck plus a $50 fee
H65: 16 | I65: 1152 | J65: 864 | K65: 576 | L65: 288
H66: 18 | I66: 1152 | J66: 864 | K66: 576 | L66: 288
H67: 16 | I67: 1152 | J67: 864 | K67: 576 | L67: 288 Inquire if over 30'
H68: 12 | I68: 792 | J68: 594 | K68: 396 | L68: 198
H69: 12 | I69: 792 | J69: 594 | K69: 396 | L69: 198
H70: 16 | I70: 648 | J70: 486 | K70: 324 | L70: 162
H71: 12 | I71: 1920 | J71: 1440 | K71: 960 | L71: 480
H72: 16 | I72: 1080 | J72: 810 | K72: 540 | L72: 270
H73: 12 | I73: 960 | J73: 720 | K73: 480 | L73: 240
H74: 16 | I74: 960 | J74: 720 | K74: 480 | L74: 240
J75: 900 | K75: 600 | L75: 300
A76: Fuel Surcharge | B76: =IF(B25<25,25,B25) -> 25 | D76: Fuel Surcharge | H76: 24 | I76: 1200 | J76: 900 | K76: 600 | L76: 300
H77: 18 | I77: 960 | J77: 720 | K77: 480 | L77: 240
H78: 24 | I78: 960 | J78: 720 | K78: 480 | L78: 240
A81: Freight and Fuel Surcharge rates are updated as the freight industry updates. The actual freight and fuel surcharge wil be applied at the time of order. It is the Customer's responsibility to maintain an updated copy of this estimator tool.

Sheet Arch_SSR Num Squares (hidden)
A2: This Calculator will calculate the number of trucks required, % of load for the last truck and the Freight (You must enter the information highlighted in Green - Product; Length of the Panel, Number of Squares and number of miles) (Blue cells are calculated and cannot be entered)
A6: Description | B6: Value | C6: UOM | G6: Instruction
A7: Type of Panel | B7: Artisan (Atlanta) 12" | D7: Select from the drop down menu | H7: Width | I7: Panels per truck 10' or shorter | J7: Panels per truck from 11' to 15' long | K7: Panels per truck from 16 to 25' long | L7: Panels per truck over 25' long not to exceed 52'
A8: Width of Panel | B8: =VLOOKUP(B7,Data_Table,2,FALSE) -> 12 | C8: Inches | H8: 12 | I8: 32 | J8: 32 | K8: 32 | L8: 32
A9: Length of Panel | B9: 25 | C9: Feet | D9: You must manually enter this value. If unknown enter 30 Feet | H9: 12 | I9: 1800 | J9: 1350 | K9: 900 | L9: 450
A10: Square Foot Per Panel | B10: =B9*(B8/12) -> 25 | C10: 100 Sq Ft | D10: Note: 1 Square = 100 Square Feet | H10: 12 | I10: 960 | J10: 720 | K10: 480 | L10: 240
A11: Customer Squares | B11: 12 | C11: Squares | D11: You must manually enter the number of Squares | H11: 16 | I11: 792 | J11: 594 | K11: 396 | L11: 198
A12: Number of Panels | B12: =B11/(B10/100) -> 48 | C12: Panels | H12: 16.5 | I12: 1536 | J12: 1152 | K12: 768 | L12: 384
A13: Panels per Truck | B13: =VLOOKUP($B$7,Data_Table,VLOOKUP($B$9,Panel_Capacity,2,TRUE),FALSE) -> 900 | C13: per Truck | H13: 18 | I13: 960 | J13: 720 | K13: 480 | L13: 240
H14: 10.5 | I14: with | J14: Houston | K14: Plant | L14: per
A15: Number of Trucks | B15: =IF($B$16>0,IF($B$42="yes",1,$B$41+1),$B$41) -> 1 | C15: Trucks | H15: 12 | I15: 1440 | J15: 1080 | K15: 720 | L15: 360
A16: % Util of the Last Truck | B16: =(B12-(TRUNC(B12/B13,0)*B13))/B13 -> 0.05333333333 | C16: % | D16: Percent utilization of last truck | H16: 24 | I16: 1008 | J16: 756 | K16: 504 | L16: 252
H17: 12 | I17: 1056 | J17: 792 | K17: 528 | L17: 264
A18: Number of Miles | B18: 233 | C18: Miles | D18: You must enter the number of miles | H18: 16 | I18: 1056 | J18: 792 | K18: 528 | L18: 264
H19: 18 | I19: 1056 | J19: 792 | K19: 528 | L19: 264
A20: State of Job Site | B20: MN | C20: Miles | D20: Select State Abbreviation | H20: 12 | I20: 1152 | J20: 864 | K20: 576 | L20: 288
H21: 16 | I21: 1152 | J21: 864 | K21: 576 | L21: 288
A22: Shipping Plant location : You can chose the closest plant to your jobsite unless you have 50% or over in the % utilized or more than 1 in the number of trucks above. If over these then refer to the MFG tab to chose the closest plant based on a plant that produces the product you are shipping | B22: Memphis, TN | C22: Miles | D22: Select State Abbreviation | H22: 18 | I22: 1152 | J22: 864 | K22: 576 | L22: 288
H23: 12 | I23: 1152 | J23: 864 | K23: 576 | L23: 288
A24: Freight | B24: =IF(B15>1,SUM(B44*B15,B47*B15),SUM(B46,B47)) ->  | C24: $ | D24: Freight | H24: 16 | I24: 1152 | J24: 864 | K24: 576 | L24: 288
A25: Fuel Surcharge | B25: =IF((B12/B13)<0.5,(B12/B13),1)*(B18*Tables!BX18)*B15 -> 5.716266667 | D25: Fuel Surcharge | H25: 18 | I25: 1152 | J25: 864 | K25: 576 | L25: 288
A26: Load Sharing Calculations | H26: 16 | I26: 1152 | J26: 864 | K26: 576 | L26: 288 Inquire if over 30'
A27: Total Estimated Revenue | B27: 100000 | C27: To be used by the Order Scheduling Specialist to assist in leveraging our National Capacity to meet the Customer's Requested Date | H27: 12 | I27: 792 | J27: 594 | K27: 396 | L27: 198
A28: Incremental Freight Budget | B28: =B27*5% -> 5000 | H28: 12 | I28: 792 | J28: 594 | K28: 396 | L28: 198
A29: Current Site Freight | B29: =B24 ->  | H29: 16 | I29: 648 | J29: 486 | K29: 324 | L29: 162
A30: Total Freight Budget | B30: =B28+B29 ->  | H30: 12 | I30: 1920 | J30: 1440 | K30: 960 | L30: 480
A31: Customer Requested Date | B31: 2018-12-24 | H31: 16 | I31: 1080 | J31: 810 | K31: 540 | L31: 270
A32: Customer Order Number | B32: 5123454 | H32: 12 | I32: 960 | J32: 720 | K32: 480 | L32: 240
A33: Alternative Plants | B33: Specific Locations | C33: Miles | D33: Freight | E33: Load Date | F33: Alt Plant | G33: Row Instructions | H33: 16 | I33: 960 | J33: 720 | K33: 480 | L33: 240
A34: Option A | B34: Mt Pleasant, IA | C34: 350 | D34: =IF($B$15>1,SUM($E43*$B$15,$B$47*$B$15),SUM($F43,$B$47)) -> 300 | E34: 2018-12-26 | G34: Select Plant from drop down menu; enter miles to Job Site from that plant and their load date | I34: 1200 | J34: 900 | K34: 600 | L34: 300
A35: Option B | B35: Adel, GA | C35: 650 | D35: =IF($B$15>1,SUM($E44*$B$15,$B$47*$B$15),SUM($F44,$B$47)) ->  | E35: 2018-12-25 | G35: Select Plant from drop down menu; enter miles to Job Site from that plant and their load date | H35: 24 | I35: 1200 | J35: 900 | K35: 600 | L35: 300
A36: Option C | B36: OkCity, OK | C36: 800 | D36: =IF($B$15>1,SUM($E45*$B$15,$B$47*$B$15),SUM($F45,$B$47)) ->  | E36: 2018-12-23 | G36: Select Plant from drop down menu; enter miles to Job Site from that plant and their load date | H36: 18 | I36: 960 | J36: 720 | K36: 480 | L36: 240
A37: Option D | B37: Phoenix, AZ | C37: 2500 | D37: =IF($B$15>1,SUM($E46*$B$15,$B$47*$B$15),SUM($F46,$B$47)) ->  | E37: 2018-12-20 | G37: Select Plant from drop down menu; enter miles to Job Site from that plant and their load date | H37: 24 | I37: 960 | J37: 720 | K37: 480 | L37: 240
A38: Original Location | B38: =B22 -> Memphis, TN | C38: =B18 -> 233 | D38: =B29 ->  | E38: 2018-12-31
A41: Estimated Number of full trucks | B41: =_xlfn.FLOOR.MATH($B12/B13) -> 0 | G41: Number of full trucks
A42: Is this a Milk Run? | B42: =IF(AND($B$41=0,$B$16<50%),"yes","no") -> yes | E42: FT Rate | F42: Partial Rate | G42: If Utilization ge 50% consider a full truck
A43: Full Truck Mile Rate | B43: =VLOOKUP($B$22,State_Rate,(VLOOKUP($B$20,State_Col,2,FALSE)),FALSE) ->  | D43: ='DBCI DOORS'!D14 -> 0 | E43: =IF($B$42="no",MAX($D43*$C34,900),0) -> 0 | F43: =(MAX(1000,$D43*$C34)/$B$45) -> 250 | G43: Based upon the State of the Job Site
A44: Freight for Full Truck | B44: =IF($B42="no",MAX($B$43*$B18,1000),0) -> 0 | D44: =VLOOKUP($B$35,State_Rate,(VLOOKUP($B$20,State_Col,2,FALSE)),FALSE) ->  | E44: =IF($B$42="no",MAX($D44*$C35,900),0) -> 0 | F44: =(MAX(1000,$D44*$C35)/$B$45) -> 
A45: Estimated Sharing for Partial | B45: =VLOOKUP($B$16,Util_Rate,3,TRUE) -> 4 | D45: =VLOOKUP($B$36,State_Rate,(VLOOKUP($B$20,State_Col,2,FALSE)),FALSE) ->  | E45: =IF($B$42="no",MAX($D45*$C36,900),0) -> 0 | F45: =(MAX(1000,$D45*$C36)/$B$45) ->  | G45: This number will be divided into the rate for a full truck as we assume it can share the truck
A46: Partial Truck Cost | B46: =(MAX(1000,B43*B18)/B45) ->  | D46: =VLOOKUP($B$37,State_Rate,(VLOOKUP($B$20,State_Col,2,FALSE)),FALSE) ->  | E46: =IF($B$42="no",MAX($D46*$C37,900),0) -> 0 | F46: =(MAX(1000,$D46*$C37)/$B$45) -> 
A47: Drop Off Fee | B47: 50
G48: Total Freight equals the number of full trucks times the full truck fee plus $50 per full truck
G49: plus the cost of a partial truck plus a $50 fee
A76: Fuel Surcharge | B76: =IF(B25<25,25,B25) -> 25 | D76: Fuel Surcharge
A83: Freight and Fuel Surcharge rates are updated as the freight industry updates. The actual freight and fuel surcharge wil be applied at the time of order. It is the Customer's responsibility to maintain an updated copy of this estimator tool.

Sheet C&I and AG
A2: This Calculator will determine the number of trucks required, % of load of the last truck and Freight - For C&I and Ag Orders ONLY! You must enter into the cells that are colored Green - the Product; Length of the Panel and either Number of Panels or Number of Squares (Blue Cells are calculated and cannot be updated)
A6: Description | B6: Enter Number of Panels | D6: Instruction | H6: Enter Number of Squares
A7: Type of Panel | B7: C&I and Ag | D7: If you know the number of Panels use Column B; otherwise use Column H | H7: C&I and Ag | M7: Width | N7: Panels per truck 10' or shorter | O7: Panels per truck from 11' to 15' long | P7: Panels per truck from 16 to 25' long | Q7: Panels per truck over 25' long not to exceed 52'
A8: Width of Panel | B8: 36 | C8: Inches | G8: Inches | H8: 36 | M8: 12 | N8: 32 | O8: 32 | P8: 32 | Q8: 32
A9: Length of Panel | B9: 15 | C9: Feet | D9: If you don't know the LENGTH then use 30' | G9: Feet | H9: 20 | M9: 12 | N9: 1800 | O9: 1350 | P9: 900 | Q9: 450
A10: Square Foot Per Panel | B10: =B9*(B8/12)*1.08 -> 48.6 | C10: 100 Sq Ft | G10: 100 Sq Ft | H10: =H9*(H8/12)*1.08 -> 64.8 | M10: 12 | N10: 960 | O10: 720 | P10: 480 | Q10: 240
A11: Customer Squares | B11: =SUM(B10*B12)/100 -> 194.4 | C11: Squares | D11: 1 Square = 100 Square Feet (Assume 1 Sq. Foot = 1 Pound) | G11: Squares | H11: 162 | M11: 16 | N11: 792 | O11: 594 | P11: 396 | Q11: 198
A12: Number of Panels | B12: 400 | C12: Panels | G12: Panels | H12: =ROUNDUP(H11/(H10/100),0) -> 250 | M12: 16.5 | N12: 1536 | O12: 1152 | P12: 768 | Q12: 384
A13: Gauge of Panel ( 29 26 24 22) | B13: 22 | D13: =IF(B13=22, 1.6,1) -> 1.6 | E13: <<<<<<<<<<<<<<<<<<<<<Enter your Panel Gauge in cell B12 to the left
D14: =D13 -> 1.6 | M14: 24 | N14: 1008 | O14: 756 | P14: 504 | Q14: 252
A15: Number of Trucks | B15: =IF($B$16>0,IF($B$42="yes",1,$B$41+1),$B$41) -> 1 | C15: Trucks | G15: Trucks | H15: =IF($H$16>0,IF($I$42="yes",1,$I$41+1),$I$41) -> 1 | M15: 12 | N15: 1056 | O15: 792 | P15: 528 | Q15: 264
A16: % Util of the Last Truck | B16: =((B11*100*D13)-(TRUNC($B$11*100/40000,0)*40000))/40000 -> 0.7776 | C16: % | D16: Percent utilization of last truck | G16: % | H16: =((H11*100*D13)-(TRUNC($H$11*100/40000,0)*40000))/40000 -> 0.648 | M16: 16 | N16: 1056 | O16: 792 | P16: 528 | Q16: 264
M17: 18 | N17: 1056 | O17: 792 | P17: 528 | Q17: 264
A18: Number of Miles | B18: 500 | C18: Miles | D18: You must enter the number of miles | G18: Miles | H18: 20 | M18: 12 | N18: 1152 | O18: 864 | P18: 576 | Q18: 288
M19: 16 | N19: 1152 | O19: 864 | P19: 576 | Q19: 288
A20: State of Job Site | B20: AL | C20: State | D20: Select appropriate State Abbreviation | G20: State | H20: AL | M20: 18 | N20: 1152 | O20: 864 | P20: 576 | Q20: 288
M21: 12 | N21: 1152 | O21: 864 | P21: 576 | Q21: 288
A22: Shipping Plant location : You can chose the closest plant to your jobsite unless you have 50% or over in the % utilized or more than 1 in the number of trucks above. If over these then refer to the MFG tab to chose the closest plant based on a plant that produces the product you are shipping | B22: ATLANTA | C22: Plant | D22: Select Original Plant Location | G22: Plant | H22: Atlanta, GA | M22: 16 | N22: 1152 | O22: 864 | P22: 576 | Q22: 288
M23: 18 | N23: 1152 | O23: 864 | P23: 576 | Q23: 288
A24: Freight | B24: =IF(B15>1,SUM(B15*B44,B15*B47),SUM(B46,B47)) -> 1765 | D24: Freight | H24: =IF(H15>1,SUM(I44*H15,I47*H15),SUM(I46,I47)) ->  | M24: 16 | N24: 1152 | O24: 864 | P24: 576 | Q24: 288 Inquire if over 30'
A25: Fuel Surcharge | B25: =IF(B16< 0.5,(SUM(B18*Tables!BX18)*B16*B15),(SUM(B18*Tables!BX18*B15))) -> 230 | F25: Fuel Surcharge | H25: =IF(H16<0.5,(SUM(H18*Tables!BX18)*H16*H15),(SUM(H18*Tables!BX18*H15))) -> 9.2
A26: Load Sharing Calculations
A27: Total Estimated Revenue | B27: 30000 | H27: 100000
A28: Incremental Freight Budget | B28: =B27*5% -> 1500 | H28: =H27*5% -> 5000
A29: Current Site Freight | B29: =B24 -> 1765 | H29: =H24 -> 
A30: Total Freight Budget | B30: =B28+B29 -> 3265 | H30: =H28+H29 -> 
A31: Customer Requested Date | B31: 2018-12-26 | H31: 2018-12-24
A32: Customer Order Number | B32: 5123454 | F32: Alternate Plant | L32: Alternate Plant
A33: Alternative Plants | B33: Specific Locations | C33: Miles | D33: Freight | E33: Load Date | H33: Specific Locations | I33: Miles | K33: Load Date
A34: Option A | B34: Rome, NY | C34: 397 | D34: =IF($B$15>1,SUM($E43*$B$15,$B$47*$B$15),SUM($F43,$B$47)) ->  | E34: 2018-12-27 | H34: Mt Pleasant, IA | I34: 350 | J34: =IF($H$15>1,SUM($K43*$H$15,$I$47*$H$15),SUM($L43,$I$47)) ->  | K34: 2018-12-26
A35: Option B | B35: Atlanta, GA | C35: 684 | D35: =IF($B$15>1,SUM($E44*$B$15,$B$47*$B$15),SUM($F44,$B$47)) ->  | E35: 2018-12-24 | H35: Adel, GA | I35: 650 | J35: =IF($H$15>1,SUM($K44*$H$15,$I$47*$H$15),SUM($L44,$I$47)) ->  | K35: 2018-12-25
A36: Option C | B36: Mt Pleasant, IA | C36: 694 | D36: =IF($B$15>1,SUM($E45*$B$15,$B$47*$B$15),SUM($F45,$B$47)) ->  | E36: 2018-12-25 | H36: OkCity, OK | I36: 800 | J36: =IF($H$15>1,SUM($K45*$H$15,$I$47*$H$15),SUM($L45,$I$47)) ->  | K36: 2018-12-23
A37: Option D | B37: Memphis, TN | C37: 769 | D37: =IF($B$15>1,SUM($E46*$B$15,$B$47*$B$15),SUM($F46,$B$47)) ->  | E37: 2018-12-26 | H37: Phoenix, AZ | I37: 2500 | J37: =IF($H$15>1,SUM($K46*$H$15,$I$47*$H$15),SUM($L46,$I$47)) ->  | K37: 2018-12-20
A38: Original Location | B38: =B22 -> ATLANTA | C38: =B18 -> 500 | D38: =B29 -> 1765 | E38: 2018-12-28 | H38: =B22 -> ATLANTA | I38: =H18 -> 20 | J38: =H24 ->  | K38: 2018-12-31
A41: Estimated Number of full trucks | B41: =_xlfn.FLOOR.MATH(($B$11*D13*100)/40000) -> 0 | H41: Estimated Number of full trucks | I41: =_xlfn.FLOOR.MATH($H$11*D13*100/40000) -> 0 | M41: 12 | N41: 792 | O41: 594 | P41: 396 | Q41: 198
A42: Is this a Milk Run? | B42: =IF(AND($B$41=0,$B$16<50%),"yes","no") -> no | E42: FT Rate | F42: Partial Rate | H42: Is this a Milk Run? | I42: =IF(AND($I$41=0,$H$16<50%),"yes","no") -> no | K42: FT Rate | L42: Partial Rate | M42: 16 | N42: 648 | O42: 486 | P42: 324 | Q42: 162
A43: Full Truck Mile Rate | B43: =VLOOKUP($B$22,State_Rate,(VLOOKUP($B$20,State_Col,2,FALSE)),FALSE) -> 3.43 | D43: =VLOOKUP($B$34,State_Rate,(VLOOKUP($B$20,State_Col,2,FALSE)),FALSE) ->  | E43: =IF($B$42="no",MAX($D43*$C34,1200),0) ->  | F43: =(MAX(1200,$D43*$C34)/$B$45) ->  | H43: Full Truck Mile Rate | I43: =VLOOKUP($H$22,State_Rate,(VLOOKUP($H$20,State_Col,2,FALSE)),FALSE) ->  | J43: =VLOOKUP($B$34,State_Rate,(VLOOKUP($B$20,State_Col,2,FALSE)),FALSE) ->  | K43: =IF($I$42="no",MAX($J43*$I34,1200),0) ->  | L43: =(MAX(800,$J43*$I34)/$I$45) ->  | M43: 12 | N43: 1920 | O43: 1440 | P43: 960 | Q43: 480
A44: Freight for Full Truck | B44: =IF($B$42="no",MAX($B$43*$B$18,1200),0) -> 1715 | D44: =VLOOKUP($B$35,State_Rate,(VLOOKUP($B$20,State_Col,2,FALSE)),FALSE) ->  | E44: =IF($B$42="no",MAX($D44*$C35,1200),0) ->  | F44: =(MAX(1200,$D44*$C35)/$B$45) ->  | H44: Freight for Full Truck | I44: =IF($I$42="no",MAX($I$43*$H$18,1200),0) ->  | J44: =VLOOKUP($B$35,State_Rate,(VLOOKUP($B$20,State_Col,2,FALSE)),FALSE) ->  | K44: =IF($I$42="no",MAX($J44*$I35,1200),0) ->  | L44: =(MAX(800,$J44*$I35)/$I$45) ->  | M44: 16 | N44: 1080 | O44: 810 | P44: 540 | Q44: 270
A45: Estimated Sharing for Partial | B45: =VLOOKUP($B$16,Util_Rate,3,TRUE) -> 1 | D45: =VLOOKUP($B$36,State_Rate,(VLOOKUP($B$20,State_Col,2,FALSE)),FALSE) ->  | E45: =IF($B$42="no",MAX($D45*$C36,1200),0) ->  | F45: =(MAX(1200,$D45*$C36)/$B$45) ->  | H45: Estimated Sharing for Partial | I45: =VLOOKUP($H$16,Util_Rate,3,TRUE) -> 1 | J45: =VLOOKUP($B$36,State_Rate,(VLOOKUP($B$20,State_Col,2,FALSE)),FALSE) ->  | K45: =IF($I$42="no",MAX($J45*$I36,1200),0) ->  | L45: =(MAX(800,$J45*$I36)/$I$45) ->  | M45: 12 | N45: 960 | O45: 720 | P45: 480 | Q45: 240
A46: Partial Truck Cost | B46: =(MAX(1200,B43*B18)/B45) -> 1715 | D46: =VLOOKUP($B$37,State_Rate,(VLOOKUP($B$20,State_Col,2,FALSE)),FALSE) ->  | E46: =IF($B$42="no",MAX($D46*$C37,1200),0) ->  | F46: =(MAX(1200,$D46*$C37)/$B$45) ->  | H46: Partial Truck Cost | I46: =(MAX(1200,I43*H18)/I45) ->  | J46: =VLOOKUP($B$37,State_Rate,(VLOOKUP($B$20,State_Col,2,FALSE)),FALSE) ->  | K46: =IF($I$42="no",MAX($J46*$I37,1200),0) ->  | L46: =(MAX(800,$J46*$I37)/$I$45) ->  | M46: 16 | N46: 960 | O46: 720 | P46: 480 | Q46: 240
A47: Drop Off Fee | B47: 50 | H47: Drop Off Fee | I47: 50 | M47: 18 | N47: 1200 | O47: 900 | P47: 600 | Q47: 300
M48: 24 | N48: 1200 | O48: 900 | P48: 600 | Q48: 300
M49: 18 | N49: 960 | O49: 720 | P49: 480 | Q49: 240
M50: 24 | N50: 960 | O50: 720 | P50: 480 | Q50: 240
A63: Fuel Surcharge | B63: =IF(B25<25,25,B25) -> 230 | F63: Fuel Surcharge | H63: =IF(H25<25,25,H25) -> 25
A65: Freight and Fuel Surcharge rates are updated as the freight industry updates. The actual freight and fuel surcharge wil be applied at the time of order. It is the Customer's responsibility to maintain an updated copy of this estimator tool.

Sheet Structural
A2: This Calculator will calculate the number of trucks required, % of load of the last truck, and Freight - For Structual Materials ONLY! You must enter into the cells that are colored Green - the Product; Length of the Part and either Number of Parts or Total Weight (Blue Cells are calculated and cannot be updated)
A6: Description | B6: Enter Number of Parts | C6: UOM | D6: Instruction | H6: Enter Total Weight
A7: Type of Structure | B7: 10" C/Z 14 ga | D7: If you know the Number of Parts use Column B; otherwise use Column D (Total Weight) | H7: 10" ES 12 ga | M7: Width | N7: Panels per truck 10' or shorter | O7: Panels per truck from 11' to 15' long | P7: Panels per truck from 16 to 25' long | Q7: Panels per truck over 25' long not to exceed 52'
A8: Weight of the Part / Linear Foot | B8: =VLOOKUP(B7,Structural,2,FALSE) -> 3.97 | C8: lbs per Linear Foot | G8: lbs per Linear Foot | H8: =VLOOKUP(H7,Structural,2,FALSE) -> 7.95 | M8: 12 | N8: 32 | O8: 32 | P8: 32 | Q8: 32
A9: Length of Part | B9: 27 | C9: Feet | D9: Enter the length of the part Use 30" if unknown | G9: Feet | H9: 27 | M9: 12 | N9: 1800 | O9: 1350 | P9: 900 | Q9: 450
A10: Weight of Part | B10: =B9*(B8) -> 107.19 | C10: Lb per part | G10: Lb per part | H10: =H9*(H8) -> 214.65 | M10: 12 | N10: 960 | O10: 720 | P10: 480 | Q10: 240
A11: Total Weight | B11: =B10*B12 -> 1071.9 | C11: Total Lbs | D11: Enter the total Pounds if known | G11: Total Lbs | H11: 1601 | M11: 16 | N11: 792 | O11: 594 | P11: 396 | Q11: 198
A12: Number of Parts | B12: 10 | C12: Parts | D12: Enter the number of Parts if known | G12: Parts | H12: =ROUNDUP(H11/(H10),0) -> 8 | M12: 16.5 | N12: 1536 | O12: 1152 | P12: 768 | Q12: 384
M14: 12 | N14: 1440 | O14: 1080 | P14: 720 | Q14: 360
A15: Number of Trucks | B15: =IF($B$16>0,IF($B$42="yes",1,$B$41+1),$B$41) -> 1 | C15: Trucks | G15: Trucks | H15: =IF($H$16>0,IF($I$42="yes",1,$I$41+1),$I$41) -> 1 | M15: 24 | N15: 1008 | O15: 756 | P15: 504 | Q15: 252
A16: % Util of the Last Truck | B16: =(B11-(TRUNC(B11/40000,0)*40000))/40000 -> 0.0267975 | C16: % | D16: Utilization of Last Truck | G16: % | H16: =(H11-(TRUNC(H11/40000,0)*40000))/40000 -> 0.040025 | M16: 12 | N16: 1056 | O16: 792 | P16: 528 | Q16: 264
M17: 16 | N17: 1056 | O17: 792 | P17: 528 | Q17: 264
A18: Number of Miles | B18: 100 | C18: Miles | D18: Enter the number of Mile from Plant | G18: Miles | H18: 20 | M18: 18 | N18: 1056 | O18: 792 | P18: 528 | Q18: 264
M19: 12 | N19: 1152 | O19: 864 | P19: 576 | Q19: 288
A20: State of Job Site | B20: OR | C20: State | D20: Select appropriate State Abbreviation | G20: State | H20: OR | M20: 16 | N20: 1152 | O20: 864 | P20: 576 | Q20: 288
M21: 18 | N21: 1152 | O21: 864 | P21: 576 | Q21: 288
A22: Shipping Plant location : You can chose the closest plant to your jobsite unless you have 50% or over in the % utilized or more than 1 in the number of trucks above. If over these then refer to the MFG tab to chose the closest plant based on a plant that produces the product you are shipping | B22: Indianapolis | C22: Plant | D22: Select Original Plant Location | G22: Plant | H22: Indianapolis
A24: Freight | B24: =IF(B15>1,SUM(B15*B44,B15*B47),SUM(B46,B47)) -> 350 | D24: Freight | H24: =IF(H15>1,SUM(I44*H15,I47*H15),SUM(I46,I47)) -> 350
A25: Fuel Surcharge | B25: =IF((B11/45000)<0.5,(SUM(B18*Tables!BX18)*B16*B15),(SUM(B18*Tables!BX18*B15))) -> 1.232685 | F25: Fuel Surcharge | H25: =IF((H11/45000)<0.5,(SUM(H18*Tables!BX18)*H16*H15),(SUM(H18*Tables!BX18*B15))) -> 0.36823
A26: Load Sharing Calculations
A27: Total Estimated Revenue | B27: 100000 | H27: 100000
A28: Incremental Freight Budget | B28: =B27*5% -> 5000 | H28: =H27*5% -> 5000
A29: Current Site Freight | B29: =B24 -> 350 | H29: =H24 -> 350
A30: Total Freight Budget | B30: =B28+B29 -> 5350 | H30: =H28+H29 -> 5350
A31: Customer Requested Date | B31: 2018-12-24 | H31: 2018-12-24
A32: Customer Order Number | B32: 5123454 | F32: Alternate Plant | L32: Alternate Plant
A33: Alternative Plants | B33: Specific Locations | C33: Miles | D33: Freight | E33: Load Date | H33: Specific Locations | I33: Miles | K33: Load Date
A34: Option A | B34: Mt Pleasant, IA | C34: 350 | E34: 2018-12-26 | H34: Mt Pleasant, IA | I34: 350 | J34: =IF($H$15>1,SUM($K43*$H$15,$I$47*$H$15),SUM($L43,$I$47)) ->  | K34: 2018-12-26
A35: Option B | B35: Adel, GA | C35: 650 | D35: =IF($B$15>1,SUM($E44*$B$15,$B$47*$B$15),SUM($F44,$B$47)) ->  | E35: 2018-12-25 | H35: Adel, GA | I35: 650 | J35: =IF($H$15>1,SUM($K44*$H$15,$I$47*$H$15),SUM($L44,$I$47)) ->  | K35: 2018-12-25
A36: Option C | B36: OkCity, OK | C36: 800 | D36: =IF($B$15>1,SUM($E45*$B$15,$B$47*$B$15),SUM($F45,$B$47)) ->  | E36: 2018-12-23 | H36: OkCity, OK | I36: 800 | J36: =IF($H$15>1,SUM($K45*$H$15,$I$47*$H$15),SUM($L45,$I$47)) ->  | K36: 2018-12-23
A37: Option D | B37: Phoenix, AZ | C37: 2500 | D37: =IF($B$15>1,SUM($E46*$B$15,$B$47*$B$15),SUM($F46,$B$47)) ->  | E37: 2018-12-20 | H37: Phoenix, AZ | I37: 2500 | J37: =IF($H$15>1,SUM($K46*$H$15,$I$47*$H$15),SUM($L46,$I$47)) ->  | K37: 2018-12-20
A38: Original Location | B38: =B22 -> Indianapolis | C38: =B18 -> 100 | D38: =B29 -> 350 | E38: 2018-12-31 | H38: =B22 -> Indianapolis | I38: =H18 -> 20 | J38: =H24 -> 350 | K38: 2018-12-31
A41: Estimated Number of full trucks | B41: =_xlfn.FLOOR.MATH($B$11/40000) -> 0 | H41: Estimated Number of full trucks | I41: =_xlfn.FLOOR.MATH($H$11/40000) -> 0
A42: Is this a Milk Run? | B42: =IF(AND($B$41=0,$B$16<50%),"yes","no") -> yes | E42: FT Rate | F42: Partial Rate | H42: Is this a Milk Run? | I42: =IF(AND($I$41=0,$H$16<50%),"yes","no") -> yes | K42: FT Rate | L42: Partial Rate
A43: Full Truck Mile Rate | B43: =VLOOKUP($B$22,State_Rate,(VLOOKUP($B$20,State_Col,2,FALSE)),FALSE) -> 3.15 | D43: =VLOOKUP($B$34,State_Rate,(VLOOKUP($B$20,State_Col,2,FALSE)),FALSE) ->  | E43: =IF($B$42="no",MAX($D43*$C34,1200),0) -> 0 | F43: =(MAX(1200,$D43*$C34)/$B$45) ->  | H43: Full Truck Mile Rate | I43: =VLOOKUP($H$22,State_Rate,(VLOOKUP($H$20,State_Col,2,FALSE)),FALSE) -> 3.15 | J43: =VLOOKUP($B$34,State_Rate,(VLOOKUP($B$20,State_Col,2,FALSE)),FALSE) ->  | K43: =IF($I$42="no",MAX($J43*$I34,1200),0) -> 0 | L43: =(MAX(1200,$J43*$I34)/$I$45) -> 
A44: Freight for Full Truck | B44: =IF($B$42="no",MAX($B$43*$B$18,1200),0) -> 0 | D44: =VLOOKUP($B$35,State_Rate,(VLOOKUP($B$20,State_Col,2,FALSE)),FALSE) ->  | E44: =IF($B$42="no",MAX($D44*$C35,1200),0) -> 0 | F44: =(MAX(1200,$D44*$C35)/$B$45) ->  | H44: Freight for Full Truck | I44: =IF($I$42="no",MAX($I$43*$H$18,1200),0) -> 0 | J44: =VLOOKUP($B$35,State_Rate,(VLOOKUP($B$20,State_Col,2,FALSE)),FALSE) ->  | K44: =IF($I$42="no",MAX($J44*$I35,1200),0) -> 0 | L44: =(MAX(1200,$J44*$I35)/$I$45) -> 
A45: Estimated Sharing for Partial | B45: =VLOOKUP($B$16,Util_Rate,3,TRUE) -> 4 | D45: =VLOOKUP($B$36,State_Rate,(VLOOKUP($B$20,State_Col,2,FALSE)),FALSE) ->  | E45: =IF($B$42="no",MAX($D45*$C36,1200),0) -> 0 | F45: =(MAX(1200,$D45*$C36)/$B$45) ->  | H45: Estimated Sharing for Partial | I45: =VLOOKUP($H$16,Util_Rate,3,TRUE) -> 4 | J45: =VLOOKUP($B$36,State_Rate,(VLOOKUP($B$20,State_Col,2,FALSE)),FALSE) ->  | K45: =IF($I$42="no",MAX($J45*$I36,1200),0) -> 0 | L45: =(MAX(1200,$J45*$I36)/$I$45) -> 
A46: Partial Truck Cost | B46: =(MAX(1200,B43*B18)/B45) -> 300 | D46: =VLOOKUP($B$37,State_Rate,(VLOOKUP($B$20,State_Col,2,FALSE)),FALSE) ->  | E46: =IF($B$42="no",MAX($D46*$C37,1200),0) -> 0 | F46: =(MAX(1200,$D46*$C37)/$B$45) ->  | H46: Partial Truck Cost | I46: =(MAX(1200,I43*H18)/I45) -> 300 | J46: =VLOOKUP($B$37,State_Rate,(VLOOKUP($B$20,State_Col,2,FALSE)),FALSE) ->  | K46: =IF($I$42="no",MAX($J46*$I37,1200),0) -> 0 | L46: =(MAX(1200,$J46*$I37)/$I$45) -> 
A47: Drop Off Fee | B47: 50 | H47: Drop Off Fee | I47: 50
M68: 12 | N68: 1152 | O68: 864 | P68: 576 | Q68: 288
M69: 16 | N69: 1152 | O69: 864 | P69: 576 | Q69: 288
M70: 18 | N70: 1152 | O70: 864 | P70: 576 | Q70: 288
M71: 16 | N71: 1152 | O71: 864 | P71: 576 | Q71: 288 Inquire if over 30'
A72: Fuel Surcharge | B72: =IF(B25<25,25,B25) -> 25 | F72: Fuel Surcharge | H72: =IF(H25<25,25,H25) -> 25
A74: Freight and Fuel Surcharge rates are updated as the freight industry updates. The actual freight and fuel surcharge wil be applied at the time of order. It is the Customer's responsibility to maintain an updated copy of this estimator tool.

Sheet DBCI DOORS (hidden)
G1: Mini Package Add | H1: Commercial Package Add Under 14' Tall | I1: Commercial Package Add 14' Tall & Over | J1: Plywood Crated MINI | K1: Plywood Crated Commercial
B2: Quantity of Mini Doors | C2: 23 | G2: Uncrated on Skids | H2: Uncrated on Skids | I2: Uncrated on Skids | J2: =ROUNDUP(C2/6,0)*C3*20.7 -> 1242 | K2: =ROUNDUP(C22/2,0)*C23*20.7 -> 745.2
B3: Door Width in nearest Foot | C3: 15 | G3: =ROUNDUP(C2/15,0) -> 2 | H3: =IF(C24<14,(ROUNDUP(C22/6,0))) -> 1 | I3: =IF(C24>13,(ROUNDUP(C22/3,0))) -> FALSE
G4: SKIDS | H4: SKIDS | I4: SKIDS
B5: From GA or TX | C5: =ROUNDUP(C2/23,0) -> 1 | D5: Bundles
B6: From AZ | C6: =ROUNDUP(C2/19,0) -> 2 | D6: Bundles
C7: =ROUNDDOWN(50/C3,0) -> 3
B8: % of truck from GA or TX | C8: =SUM((ROUNDUP(C5/2,0))/C7) -> 0.3333333333 | D8: =ROUNDUP(C8/1,0) -> 1 | E8: Truckload(s)
B9: % of truck from AZ | C9: =SUM((ROUNDUP(C6/2,0)/C7)) -> 0.3333333333 | D9: =ROUNDUP(C9/1,0) -> 1 | E9: Truckload(s)
B11: Miles to Delivery Site | C11: 500
B12: Plant | C12: AZ
B13: Ship from Plant | C13: Atlanta, GA | E13: Houston, TX | G13: Phoenix, az
B14: Ship to State | C14: NV
B15: Per mile based on Ship Plant & Delivery State - Adjust Mileage Above | C15: =VLOOKUP($C$13,State_Rate,(VLOOKUP($C$14,State_Col,2,FALSE)),FALSE) ->  | E15: =VLOOKUP($E$13,State_Rate,(VLOOKUP($C$14,State_Col,2,FALSE)),FALSE) ->  | G15: =VLOOKUP($G$13,State_Rate,(VLOOKUP($C$14,State_Col,2,FALSE)),FALSE) -> 
B16: Freight Rate | C16: From DBCI GA Plant | E16: From DBCI TX Plant | G16: From DBCI AZ Plant
C17: =SUM(C15*D8*C11)+100 ->  | E17: =SUM(E15*D8*C11)+100 ->  | G17: =SUM(G15*D9*C11)+100 -> 
B19: Mini Door Dedicated Freight Rate: | C19: =_xlfn.IFS(C12="GA",C17,C12="TX",E17,C12="AZ",G17) ->  | G19: =SUM(G3*C3*5) -> 150 | H19: =IF(C24<14,(H3*C23*5),0) -> 60 | I19: =IF(C24>13,(I3*C23*5),0) -> 0
B20: Mini Door Dedicated Freight Rate: | C20: =(MAX(900,C19)) ->  | G20: Total Package Cost | H20: Total Package Cost | I20: Total Package Cost
B22: Quantity of Commercial Doors | C22: 6
B23: Door Width in nearest Foot | C23: 12
B24: Door Height in nearest Foot | C24: 10
B26: From AZ, GA or TX | C26: =IF(C24<=14,E26,IF(C24>14,G26,0)) -> 1 | D26: Bundles | E26: =ROUNDUP(C22/6,0) -> 1 | G26: =ROUNDUP(C22/3,0) -> 2
B27: From AZ | C27: =IF(C24<=14,E26,IF(C24>14,G26,0)) -> 1 | D27: Bundles
C28: =ROUNDDOWN(50/C23,0) -> 4 | E28: =ROUNDUP(C26/2,0) -> 1
B29: % of truck from AZ, GA or TX | C29: =SUM(E28/C28,0) -> 0.25 | D29: =ROUNDUP(C29/1,0) -> 1 | E29: Truckload(s)
B30: % of truck from AZ | C30: =SUM(((E28*C23)/45)) -> 0.2666666667 | D30: =ROUNDUP(C30/1,0) -> 1 | E30: Truckload(s)
B32: Miles to Delivery Site | C32: 100
B33: Plant | C33: TX
B34: Ship from Plant | C34: Atlanta, GA | E34: Houston, TX | G34: Phoenix, AZ
B35: Ship to State | C35: FL
B36: Per mile based on Ship Plant & Delivery State - Adjust Mileage Above | C36: =VLOOKUP($C$34,State_Rate,(VLOOKUP($C$35,State_Col,2,FALSE)),FALSE) ->  | E36: =VLOOKUP($E$34,State_Rate,(VLOOKUP($C$35,State_Col,2,FALSE)),FALSE) ->  | G36: =VLOOKUP($G$34,State_Rate,(VLOOKUP($C$35,State_Col,2,FALSE)),FALSE) -> 
B37: Freight Rate | C37: From DBCI GA Plant | E37: From DBCI TX Plant | G37: From DBCI AZ Plant
C38: =SUM(C36*D29*C32)+100 ->  | E38: =SUM(E36*D29*C32)+100 ->  | G38: =SUM(G36*D30*C32)+100 -> 
B40: Commercial Door Dedicated Freight Rate: | C40: =_xlfn.IFS(C33="GA",C38,C33="TX",E38,C33="AZ",G38) -> 
B41: Commercial Door Dedicated Freight Rate: | C41: =(MAX(900,C40)) -> 

Sheet Coil Days (hidden)
A1: Coil Load Date Establishment Tool (Select Coil Product Offering and the calculator will estimate Final Load Date based upon Producing and/or Shipping Plants
D4: Strip (inches) | E4: Master (inches) | F4: Producing Plant(s)
A5: Coil Product Offering | B5: PBD | D5: =VLOOKUP($B$5,Coil_Date,9,FALSE) -> 4275 | E5: =VLOOKUP($B$5,Coil_Date,10,FALSE) -> 4275 | F5: =VLOOKUP(B5,Tables!A20360:B20471,2,0) -> HOU/ATL/SLC
A6: Assumes you Book the Order Today | B6: =TODAY() -> 2024-04-09
B7: "=TODAY()" | D7: Type the red formula to the left into the date box if it gets deleted to make the tool automatically know it is today.
A9: Do you have more than 50% of a truckload ? | B9: No | C9: =IF(B9="yes",Tables!A52,Tables!A57) -> OK, proceed to get your dates
A10: Is this Product at 75%? | B10: No | C10: Only answer this yes for the following products: PBR, PBU, Structural, UDEK, DBLK, or Trims - Do not answer yes for any other products - For MBCI use ONLY
A11: Top Tier Capacity Customer? | B11: No | D11: =IF($D$52 = "Does Not Ship Here","(There is no Interplant between these Plants)"," ") -> 
A12: Color | B12: Added Days
A13: Ash Gray | B13: =VLOOKUP(A13,Tables!Z$89:AB$139,3,0) -> 0 | D13: Producing Plant | E13: Atlanta | G13: Shipping Plant * | H13: Frankfort KY
D14: First Available Date to Load at Producing Plant | G14: First Available Date to Load at Shipping Plant
A16: Description | B16: Work Days | D16: Date | E16: Day of Week | G16: Date | H16: Day of Week
A17: Available on Plant Floor | B17: =VLOOKUP($B$5,Coil_Date,2,FALSE) -> 6 | C17: =IF(AND(B10="yes",B11="No"),(8),0) -> 0 | D17: =IFERROR(WORKDAY($B$6,$A28)," ") -> 2024-04-17 | E17: =IFERROR(VLOOKUP(WEEKDAY(D17),Days,2,FALSE)," ") -> Wednesday | G17: =IF($E$44="Does Not Ship Here","N/A",WORKDAY($F$44,$G$44)) -> 2024-04-29 | H17: =IFERROR(VLOOKUP(WEEKDAY(G17),Days,2,FALSE)," ") -> Monday
A18: Available on Coater's Floor | B18: =VLOOKUP($B$5,Coil_Date,3,FALSE) -> 8 | C18: =IF(AND(B10="yes",B11="No"),(8),0) -> 0 | D18: =IFERROR(WORKDAY($B$6,$A29)," ") -> 2024-04-19 | E18: =IFERROR(VLOOKUP(WEEKDAY(D18),Days,2,FALSE)," ") -> Friday | G18: =IF($E$45="Does Not Ship Here","N/A",WORKDAY($F$45,$G$45)) -> 2024-04-29 | H18: =IFERROR(VLOOKUP(WEEKDAY(G18),Days,2,FALSE)," ") -> Monday
A19: No Coil Avaiable - Must Be Ordered | B19: =VLOOKUP($B$5,Coil_Date,B$40,FALSE)+B13+A20+A21 -> 25 | D19: =IFERROR(WORKDAY($B$6,$B19)," ") -> 2024-05-14 | E19: =IFERROR(VLOOKUP(WEEKDAY(D19),Days,2,FALSE)," ") -> Tuesday | G19: =IF($E$46="Does Not Ship Here","N/A",WORKDAY($F$46,$G$46)) -> N/A | H19: =IFERROR(VLOOKUP(WEEKDAY(G19),Days,2,FALSE)," ") -> 
A20: =IF(E13="Salt Lake City",0,IF(E13="Phoenix AZ",0,IF(E13="Atwater CA",0,IF(E13="Rome NY",B20,IF(E13="Iowa",B20,IF(E13="Frankfort KY",B20,IF(E13="OkCity OK",B20,IF(E13="Indianapolis",B20,IF(E13="Memphis TN",C20,IF(E13="Atlanta",C21,IF(E13="Adel GA",C21,-B13))))))))))) -> 0 | B20: =IF(A13="Buckskin",-5,IF(A13="Burgandy",-5,IF(A13="Clay",-5,IF(A13="Coal Black",-5,IF(A13="",-5,IF(A13="Crimsen Red",-5,IF(A13="Evergreen",-5,IF(A13="Radiant Red",-5,IF(A13="Regal White",-5,IF(A13="Solar White",-5,IF(A13="Vintage White",-5,IF(A13="Winter White",0,IF(A13="Burgandy",-5,IF(A13="Bone White",-5,IF(A13="Colonial Red",0,IF(A13="Copper Metalic",0,IF(A13="Everglade",0,IF(A13="Harbor Blue",0,IF(A13="Hunter Green",0,IF(A13="Brite Red",-5,IF(A13="Medium Bronze",-5,IF(A13="Midnight Bronze",0,IF(A13="Natural Patina",0,IF(A13="Spruce",0,IF(A13="Pacific Blue",0,IF(A13="Silver Metalic",-5,IF(A13="Brite Red",-5,IF(A13="Tundra",B20,-B13)))))))))))))))))))))))))))) -> 0 | C20: =IF(A13="Buckskin",-5,IF(A13="Burgandy",-5,IF(A13="Clay",0,IF(A13="Coal Black",-5,IF(A13="Coal Black",0,IF(A13="Evergreen",0,IF(A13="",-5,IF(A13="High Gloss White",-5,IF(A13="Radiant Red",-5,IF(A13="Regal White",-5,IF(A13="Solar White",-5,IF(A13="Vintage White",-5,IF(A13="Winter White",0,IF(A13="Colonial Red",-5,IF(A13="Bone White",-5,IF(A13="Brite Red",-5,IF(A13="Copper Metalic",0,IF(A13="Everglade",0,IF(A13="Hunter Green",0,IF(A13="Harbor Blue",-5,IF(A13="Midnight Bronze",-5,IF(A13="Medium Bronze",-5,IF(A13="Natural Patina",0,IF(A13="Spruce",0,IF(A13="Pacific Blue",0,IF(A13="Silver Metalic",-5,IF(A13="Tundra",C20,-B13))))))))))))))))))))))))))) -> 0
A21: =VLOOKUP(B5,Tables!$Z$141:$AA$208,2,0) -> 0 | C21: =IF(A13="Gray",5,IF(A13="Ivy Green",5,IF(A13="Buckskin",0,IF(A13="Burgandy",0,IF(A13="Clay",0,IF(A13="Coal Black",0,IF(A13="Evergreen",0,IF(A13="",-5,IF(A13="High Gloss White",-5,IF(A13="Winter White",-5,IF(A13="Radiant Red",0,IF(A13="Regal White",0,IF(A13="Vintage White",0,IF(A13="Solar White",0,IF(A13="Ivy Green",5,IF(A13="Bone White",-5,IF(A13="Brite Red",-5,IF(A13="Colonial Red",0,IF(A13="Copper Metalic",0,IF(A13="Everglade",0,IF(A13="Hunter Green",0,IF(A13="Harbor Blue",-5,IF(A13="Midnight Bronze",-5,IF(A13="Medium Bronze",-5,IF(A13="Natural Patina",0,IF(A13="Spruce",0,IF(A13="Pacific Blue",0,IF(A13="Silver Metalic",-5,IF(A13="Tundra",C21,-B13))))))))))))))))))))))))))))) -> 0 | G21: Available Day to Load
A23: Enter Zip Code and the system will return: State and County, Plants servicing that area and day of the week they load for shipment | D23: Zip Code | E23: State / County | G23: Plant | H23: Day of Week | I23: Zone
D24: 69043 | E24: =VLOOKUP($D$24,Zip,2,FALSE) -> Nebraska | G24: =INDEX(Ship_Zones,$A$61,4) -> Mt Pleasant | H24: =INDEX(Ship_Zones,$A$61,8) -> Wed / Fri | I24: =INDEX(Ship_Zones,$A$61,7) -> Zone 6B
E25: =VLOOKUP($D$24,Zip,3,FALSE) -> HITCHCOCK | F25: Zip Code Below | G25: =IF(INDEX(Ship_Zones,$A$61,3) = INDEX(Ship_Zones,$A$61+1,3),INDEX(Ship_Zones,$A$61+1,4)," ") ->  | H25: =IF(INDEX(Ship_Zones,$A$61,3) = INDEX(Ship_Zones,$A$61+1,3),INDEX(Ship_Zones,$A$61+1,8)," ") ->  | I25: =IF(INDEX(Ship_Zones,$A$61,3) = INDEX(Ship_Zones,$A$61+1,3),INDEX(Ship_Zones,$A$61+1,7)," ") -> 
D26: Customer: Choose from List | E26: CASHWAY BLDG PRODUCTS *DIB # 5383* 024 | F26: =VLOOKUP(E26,Tables!E68:F43144,2,0) ->  | G26: =IF(INDEX(Ship_Zones,$A$61,3) = INDEX(Ship_Zones,$A$61+2,3),INDEX(Ship_Zones,$A$61+2,4)," ") ->  | H26: =IF(INDEX(Ship_Zones,$A$61,3) = INDEX(Ship_Zones,$A$61+2,3),INDEX(Ship_Zones,$A$61+2,8)," ") ->  | I26: =IF(INDEX(Ship_Zones,$A$61,3) = INDEX(Ship_Zones,$A$61+2,3),INDEX(Ship_Zones,$A$61+2,7)," ") -> 
D27: Customer # | E27: 190814 | F27: =VLOOKUP(E27,Tables!D67:F43145,3,0) ->  | G27: (**) = Atwater has counties that we only deliver into part of the county. See maps on Atwater Tab below orcall plant for further clarification | I27: =VLOOKUP(D24,Tables!$BA$2:$BD$45588,4,0) -> ABC Spider
A28: =SUM(B17+C17) -> 6
A29: =SUM(B18+C18) -> 8
A38: Calculations:
A39: Today's Weekday number | B39: =WEEKDAY(B6) -> 3 | C39: =VLOOKUP(WEEKDAY(B39),Days,2,FALSE) -> Tuesday | E39: =VLOOKUP(E13,Loc_Name,2,FALSE) -> Atl | H39: =VLOOKUP(H13,Loc_Name,2,FALSE) -> Frank
A40: Weekday column of Coil_Date table | B40: =VLOOKUP(B39,Days,3,FALSE) -> 5
J42: Week Day for VLOOKUP Logic
D43: Week Day | E43: Next Ship Day of Week | F43: Actual Ship Date | G43: Number of Work Days | J43: Plant Fl
A44: Available on Plant Floor | D44: =WEEKDAY(D17) -> 4 | E44: =IFERROR(VLOOKUP($D$44&$E$39&$H$39,Interco_Key,3,FALSE),IFERROR(VLOOKUP(($J$44)&$E$39&$H$39,Interco_Key,3,FALSE),IFERROR(VLOOKUP(($J$45)&$E$39&$H$39,Interco_Key,3,FALSE),IFERROR(VLOOKUP(($J$46)&$E$39&$H$39,Interco_Key,3,FALSE),IFERROR(VLOOKUP(($J$47)&$E$39&$H$39,Interco_Key,3,FALSE),"Does Not Ship Here"))))) -> 6 | F44: =IF(D44<=E44,D17+(E44-D44),D17+D53+D54) -> 2024-04-19 | G44: =IFERROR(VLOOKUP($D$44&$E$39&$H$39,Interco_Key,2,FALSE),IFERROR(VLOOKUP(($J$44)&$E$39&$H$39,Interco_Key,2,FALSE),IFERROR(VLOOKUP(($J$45)&$E$39&$H$39,Interco_Key,2,FALSE),IFERROR(VLOOKUP(($J$46)&$E$39&$H$39,Interco_Key,2,FALSE),IFERROR(VLOOKUP(($J$47)&$E$39&$H$39,Interco_Key,2,FALSE),"Does Not Ship Here"))))) -> 6 | I44: Work Day Plus 1 | J44: =IF($D$44=6,2,$D$44+1) -> 5
A45: Available on Coater's Floor | D45: =WEEKDAY(D18) -> 6 | E45: =IFERROR(VLOOKUP($D45&$E$39&$H$39,Interco_Key,3,FALSE),IFERROR(VLOOKUP((#REF!)&$E$39&$H$39,Interco_Key,3,FALSE),IFERROR(VLOOKUP((#REF!)&$E$39&$H$39,Interco_Key,3,FALSE),IFERROR(VLOOKUP((#REF!)&$E$39&$H$39,Interco_Key,3,FALSE),IFERROR(VLOOKUP((#REF!)&$E$39&$H$39,Interco_Key,3,FALSE),"Does Not Ship Here"))))) -> 6 | F45: =IF(D45<=E45,D18+(E45-D45),D18+E53+E54) -> 2024-04-19 | G45: =IFERROR(VLOOKUP($D45&$E$39&$H$39,Interco_Key,2,FALSE),IFERROR(VLOOKUP((#REF!)&$E$39&$H$39,Interco_Key,2,FALSE),IFERROR(VLOOKUP((#REF!)&$E$39&$H$39,Interco_Key,2,FALSE),IFERROR(VLOOKUP((#REF!)&$E$39&$H$39,Interco_Key,2,FALSE),IFERROR(VLOOKUP((#REF!)&$E$39&$H$39,Interco_Key,2,FALSE),"Does Not Ship Here"))))) -> 6 | I45: Work Day Plus 2 | J45: =IF(J44=6,2,J44+1) -> 6
A46: No Coil Avaiable - Must Be Ordered | D46: =WEEKDAY(D19) -> 3 | E46: =IFERROR(VLOOKUP($D46&$E$39&$H$39,Interco_Key,3,FALSE),IFERROR(VLOOKUP((#REF!)&$E$39&$H$39,Interco_Key,3,FALSE),IFERROR(VLOOKUP((#REF!)&$E$39&$H$39,Interco_Key,3,FALSE),IFERROR(VLOOKUP((#REF!)&$E$39&$H$39,Interco_Key,3,FALSE),IFERROR(VLOOKUP((#REF!)&$E$39&$H$39,Interco_Key,3,FALSE),"Does Not Ship Here"))))) -> Does Not Ship Here | F46: =IF(D46<=E46,D19+(E46-D46),D19+G53+G54) ->  | G46: =IFERROR(VLOOKUP($D46&$E$39&$H$39,Interco_Key,2,FALSE),IFERROR(VLOOKUP((#REF!)&$E$39&$H$39,Interco_Key,2,FALSE),IFERROR(VLOOKUP((#REF!)&$E$39&$H$39,Interco_Key,2,FALSE),IFERROR(VLOOKUP((#REF!)&$E$39&$H$39,Interco_Key,2,FALSE),IFERROR(VLOOKUP((#REF!)&$E$39&$H$39,Interco_Key,2,FALSE),"Does Not Ship Here"))))) -> Does Not Ship Here | I46: Work Day Plus 3 | J46: =IF(J45=6,2,J45+1) -> 2
I47: Work Day Plus 4 | J47: =IF(J46=6,2,J46+1) -> 3
A49: Checking if Plant's Ship At All?
A50: Assumes Monday, looks for each day | D50: 2
D51: Available on Plant Floor | E51: Available on Coater's Floor | G51: No Coil Avaiable - Must Be Ordered
A52: First Ship Date of the Week | D52: =IFERROR(VLOOKUP($D50&$E$39&$H$39,Interco_Key,3,FALSE),IFERROR(VLOOKUP(($D50+1)&$E$39&$H$39,Interco_Key,3,FALSE),IFERROR(VLOOKUP(($D50+2)&$E$39&$H$39,Interco_Key,3,FALSE),IFERROR(VLOOKUP(($D50+3)&$E$39&$H$39,Interco_Key,3,FALSE),IFERROR(VLOOKUP(($D50+4)&$E$39&$H$39,Interco_Key,3,FALSE),"Does Not Ship Here"))))) -> 2 | E52: =IFERROR(VLOOKUP($D50&$E$39&$H$39,Interco_Key,3,FALSE),IFERROR(VLOOKUP(($D50+1)&$E$39&$H$39,Interco_Key,3,FALSE),IFERROR(VLOOKUP(($D50+2)&$E$39&$H$39,Interco_Key,3,FALSE),IFERROR(VLOOKUP(($D50+3)&$E$39&$H$39,Interco_Key,3,FALSE),IFERROR(VLOOKUP(($D50+4)&$E$39&$H$39,Interco_Key,3,FALSE),"Does Not Ship Here"))))) -> 2 | G52: =IFERROR(VLOOKUP($D50&$E$39&$H$39,Interco_Key,3,FALSE),IFERROR(VLOOKUP(($D50+1)&$E$39&$H$39,Interco_Key,3,FALSE),IFERROR(VLOOKUP(($D50+2)&$E$39&$H$39,Interco_Key,3,FALSE),IFERROR(VLOOKUP(($D50+3)&$E$39&$H$39,Interco_Key,3,FALSE),IFERROR(VLOOKUP(($D50+4)&$E$39&$H$39,Interco_Key,3,FALSE),"Does Not Ship Here"))))) -> 2
A53: Number of Days to add to ready date to get to next Monday | D53: =VLOOKUP(WEEKDAY($D$17),Days,4,FALSE) -> 5 | E53: =VLOOKUP(WEEKDAY($D$18),Days,4,FALSE) -> 3 | G53: =VLOOKUP(WEEKDAY($D$19),Days,4,FALSE) -> 6
A54: Number of Days to add to get from Monday to First Ship Date | D54: =VLOOKUP(WEEKDAY($D$52),Days,5,FALSE) -> 0 | E54: =VLOOKUP(WEEKDAY($D$52),Days,5,FALSE) -> 0 | G54: =VLOOKUP(WEEKDAY($D$52),Days,5,FALSE) -> 0
A58: If First check doesn't find; yet in table then use
A59: Zip Code Key For Calculations
A60: =_xlfn.CONCAT(E24," ",E25) -> Nebraska HITCHCOCK
A61: =MATCH(A60,KEY,0) -> 2419
D63: Week Day | E63: Next Ship Day of Week | F63: Actual Ship Date | G63: Number of Work Days
A64: =INDEX(Ship_Zones,$A$61,4) -> Mt Pleasant | D64: =WEEKDAY(D37) -> 7 | E64: =IFERROR(VLOOKUP($D$44&$E$39&$H$39,Interco_Key,3,FALSE),IFERROR(VLOOKUP(($J$44)&$E$39&$H$39,Interco_Key,3,FALSE),IFERROR(VLOOKUP(($J$45)&$E$39&$H$39,Interco_Key,3,FALSE),IFERROR(VLOOKUP(($J$46)&$E$39&$H$39,Interco_Key,3,FALSE),IFERROR(VLOOKUP(($J$47)&$E$39&$H$39,Interco_Key,3,FALSE),"Does Not Ship Here"))))) -> 6 | F64: =IF(D64<E64,D37+(E64-D64),D37+D73+D74) -> 00:00:00 | G64: =IFERROR(VLOOKUP($D$44&$E$39&$H$39,Interco_Key,2,FALSE),IFERROR(VLOOKUP(($J$44)&$E$39&$H$39,Interco_Key,2,FALSE),IFERROR(VLOOKUP(($J$45)&$E$39&$H$39,Interco_Key,2,FALSE),IFERROR(VLOOKUP(($J$46)&$E$39&$H$39,Interco_Key,2,FALSE),IFERROR(VLOOKUP(($J$47)&$E$39&$H$39,Interco_Key,2,FALSE),"Does Not Ship Here"))))) -> 6
A65: =IF(INDEX(Ship_Zones,$A$61,3) = INDEX(Ship_Zones,$A$61+1,3),INDEX(Ship_Zones,$A$61+1,4)," ") ->  | D65: =WEEKDAY(D38) -> 7 | E65: =IFERROR(VLOOKUP($D65&$E$39&$H$39,Interco_Key,3,FALSE),IFERROR(VLOOKUP((#REF!)&$E$39&$H$39,Interco_Key,3,FALSE),IFERROR(VLOOKUP((#REF!)&$E$39&$H$39,Interco_Key,3,FALSE),IFERROR(VLOOKUP((#REF!)&$E$39&$H$39,Interco_Key,3,FALSE),IFERROR(VLOOKUP((#REF!)&$E$39&$H$39,Interco_Key,3,FALSE),"Does Not Ship Here"))))) -> Does Not Ship Here | F65: =IF(D65<E65,D38+(E65-D65),D38+E73+E74) ->  | G65: =IFERROR(VLOOKUP($D65&$E$39&$H$39,Interco_Key,2,FALSE),IFERROR(VLOOKUP((#REF!)&$E$39&$H$39,Interco_Key,2,FALSE),IFERROR(VLOOKUP((#REF!)&$E$39&$H$39,Interco_Key,2,FALSE),IFERROR(VLOOKUP((#REF!)&$E$39&$H$39,Interco_Key,2,FALSE),IFERROR(VLOOKUP((#REF!)&$E$39&$H$39,Interco_Key,2,FALSE),"Does Not Ship Here"))))) -> Does Not Ship Here
A66: =IF(INDEX(Ship_Zones,$A$61,3) = INDEX(Ship_Zones,$A$61+2,3),INDEX(Ship_Zones,$A$61+2,4)," ") ->  | D66: =WEEKDAY(D39) -> 7 | E66: =IFERROR(VLOOKUP($D66&$E$39&$H$39,Interco_Key,3,FALSE),IFERROR(VLOOKUP((#REF!)&$E$39&$H$39,Interco_Key,3,FALSE),IFERROR(VLOOKUP((#REF!)&$E$39&$H$39,Interco_Key,3,FALSE),IFERROR(VLOOKUP((#REF!)&$E$39&$H$39,Interco_Key,3,FALSE),IFERROR(VLOOKUP((#REF!)&$E$39&$H$39,Interco_Key,3,FALSE),"Does Not Ship Here"))))) -> Does Not Ship Here | F66: =IF(D66<E66,D39+(E66-D66),D39+G73+G74) ->  | G66: =IFERROR(VLOOKUP($D66&$E$39&$H$39,Interco_Key,2,FALSE),IFERROR(VLOOKUP((#REF!)&$E$39&$H$39,Interco_Key,2,FALSE),IFERROR(VLOOKUP((#REF!)&$E$39&$H$39,Interco_Key,2,FALSE),IFERROR(VLOOKUP((#REF!)&$E$39&$H$39,Interco_Key,2,FALSE),IFERROR(VLOOKUP((#REF!)&$E$39&$H$39,Interco_Key,2,FALSE),"Does Not Ship Here"))))) -> Does Not Ship Here

Sheet Atwater Partial Counties (hidden)

Sheet Hot Rush Delivery Date (hidden)
A1: This Calculator will determine the maximum quantity and ship date for a specific Plant/Product Combination (You must enter the information highlighted in RED (Blue cells are calculated and cannot be entered)
A5: Description | B5: Value | D5: Instruction
A6: Hot Rush Product Offering | B6: 08" C/Z 14 ga | D6: Select from the drop down menu | E6: Width | F6: Panels per truck 10' or shorter | G6: Panels per truck from 11' to 15' long | H6: Panels per truck from 16 to 25' long | I6: Panels per truck over 25' long not to exceed 52'
A7: OR | E7: 12 | F7: 32 | G7: 32 | H7: 32 | I7: 32
A8: Assumes you Book the Order Today | B8: =TODAY() -> 2024-04-09 | E8: 18 | F8: 960 | G8: 720 | H8: 480 | I8: 240
E9: 10.5 | F9: with | G9: Houston | H9: Plant | I9: per
A10: At Plant Location | B10: Salt Lake City | D10: Select from the drop down menu | E10: 24 | F10: 1008 | G10: 756 | H10: 504 | I10: 252
A12: First Day Available | B12: =_xlfn.IFNA(IF($B$29 < $B$23,_xlfn.CONCAT("Next ",VLOOKUP(B29,Days,2,FALSE)),VLOOKUP(B29,Days,2,FALSE))," ") -> Wednesday | E12: 16 | F12: 1056 | G12: 792 | H12: 528 | I12: 264
A13: Maximum Quantity is | B13: =B30 -> 500 | E13: 16 | F13: 1056 | G13: 792 | H13: 528 | I13: 264
A14: Cut-off Time | B14: =VLOOKUP($B$31,HR_Master,B29,FALSE) -> noon
A19: Calculations: | I19: 240
A21: Location Key | B21: =_xlfn.CONCAT(VLOOKUP($B$10,Loc_Name,2,FALSE),"_",B6) -> Slc_08" C/Z 14 ga
A22: Current Day of the week | B22: =WEEKDAY(B8) -> 3 | D22: 1 = Sunday
A23: First Day of the week Avail for Ship | B23: =IF(B22<5,B22+1,2) -> 4 | D23: 1 = Sunday, 5 = Friday | E23: 18 | F23: 1056 | G23: 792 | H23: 528 | I23: 264
A24: Next Day | B24: =IF(B23<5,B23+1,2) -> 5
A25: Day after that | B25: =IF(B24<5,B24+1,2) -> 2
A26: Day after that | B26: =IF(B25<5,B25+1,2) -> 3
A27: Day after that | B27: =IF(B26<5,B26+1) -> 4 | D27: A business week from today
A29: Next Day Found to Ship | B29: =IF(VLOOKUP($B$21,HR_Master,$B23,FALSE)>0,$B23,IF(VLOOKUP($B$21,HR_Master,$B24,FALSE)>0,$B24,IF(VLOOKUP($B$21,HR_Master,$B25,FALSE)>0,$B25,IF(VLOOKUP($B$21,HR_Master,$B26,FALSE)>0,$B26,IF(VLOOKUP($B$21,HR_Master,$B27,FALSE)>0,$B27,0))))) -> 4 | D29: First Day Available
A30: Maximum Quantity | B30: =IF(B29=0,"Not offered at this Plant",VLOOKUP(B21,HR_Master,B29,FALSE)) -> 500
A31: Cut-off Time | B31: =_xlfn.CONCAT(VLOOKUP($B$10,Loc_Name,2,FALSE),"_Cutoff Time") -> Slc_Cutoff Time
A32: Cut-off Time | B32: =VLOOKUP(B31,HR_Master,B29,FALSE) -> noon
E39: 16 | F39: 1152 | G39: 864 | H39: 576 | I39: 288
E40: 18 | F40: 1152 | G40: 864 | H40: 576 | I40: 288

Sheet Tables (hidden)
A1: This is the main table that defines the width and number of panels per truck for each product offering. (This table MUST be sorted by Panel alphabetically in order for the calculations to be correct!) Titled: Data_Table | H1: Determines Capacity of Truck based upon Panel Footage (Titled Panel_Capacity) | M1: Utilization Table When Less than full truck (Titled Util_Rate) | S1: NCI Freight Rates and Zones Effective 04/16/18 (Titled: Freight_Less) | Z1: This is the main table that defines the width and number of panels per truck for each product offering. (This table MUST be sorted by Panel alphabetically in order for the calculations to be correct!) Titled: Coil_Date | AK1: Structural Products Titled: Structual Structual_Entry | AO1: Intercompany Transfer Schedule Products Titled: Interco_Key | AW1: Interco Locations Titled: Loc_Desc Loc_Name | BA1: Interco Locations Titled: Loc_Desc Loc_Name | BE1: ID | BF1: State | BG1: County | BH1: Key | BI1: Plant | BJ1: Territory | BK1: 6/11 Corrected Territory | BL1: Zone | BM1: Load Day | BO1: Description (HR_Master) | BP1: Reflects the Maximum Number of Breaks that can be Rushed Ordered per Day of the week
A2: Panel | B2: Width | C2: Panels per truck 10' or shorter | D2: Panels per truck from 11' to 15' long | E2: Panels per truck from 16 to 25' long | F2: Panels per truck over 25' long not to exceed 52' | I2: Range | J2: value | N2: Range | O2: value | P2: Sharing Estimate | S2: Utilization | T2: 0-50 | U2: 51-100 | V2: 101-150 | W2: 151-200 | X2: 201 Plus | Z2: Panel | AA2: Coil Avail on Plant Floor | AB2: Coil Avail on Metal Coaters Floor | AC2: Day the Order is Booked & No Coil Available (Coil must be Painted and Slit or Both) | AH2: Coil Width Search | AK2: Product | AL2: Weight | AO2: Load Day of Week | AP2: Producing Location | AQ2: Shipping Location | AR2: Key (Calculated Field) | AS2: # Work Days | AT2: Day of the Week (Calculated) | AW2: Full Name | AX2: Loc | BA2: Zip Code | BB2: State | BC2: County | BE2: 1 | BF2: Alabama | BG2: Autauga | BH2: =_xlfn.CONCAT(BF2," ",BG2) -> Alabama Autauga | BI2: Adel | BJ2: ADL-Zone 2 | BK2: ADL-AB-Zone 5 | BL2: Zone 5 | BM2: Tues / Fri | BO2: Location_Product | BP2: Mon | BQ2: Wed | BR2: Thu | BS2: Fri | BU2: Hot Rush Product Offering (HR_Offer) | BW2: Ship Plant | BX2: AL | BY2: AR | BZ2: AZ | CA2: CA | CB2: CO | CC2: CT | CD2: DC | CE2: DE | CF2: FL | CG2: GA | CH2: IA | CI2: ID | CJ2: IL | CK2: IN | CL2: KS | CM2: KY | CN2: LA | CO2: MA | CP2: MD | CQ2: ME | CR2: MI | CS2: MN | CT2: MO | CU2: MS | CV2: MT | CW2: NC | CX2: ND | CY2: NE | CZ2: NH | DA2: NJ | DB2: NM | DC2: NV | DD2: NY | DE2: OH | DF2: OK | DG2: OR | DH2: PA | DI2: RI | DJ2: SC | DK2: SD | DL2: TN | DM2: TX | DN2: UT | DO2: VA | DP2: VT | DQ2: WA | DR2: WI | DS2: WV | DT2: WY | DV2: State | DW2: Column | DY2: Ship Plant | DZ2: AL | EA2: AR | EB2: AZ | EC2: CA | ED2: CO | EE2: CT | EF2: DC | EG2: DE | EH2: FL | EI2: GA | EJ2: IA | EK2: ID | EL2: IL | EM2: IN | EN2: KS | EO2: KY | EP2: LA | EQ2: MA | ER2: MD | ES2: ME | ET2: MI | EU2: MN | EV2: MO | EW2: MS | EX2: MT | EY2: NC | EZ2: ND | FA2: NE | FB2: NH | FC2: NJ | FD2: NM | FE2: NV | FF2: NY | FG2: OH | FH2: OK | FI2: OR | FJ2: PA | FK2: RI | FL2: SC | FM2: SD | FN2: TN | FO2: TX | FP2: UT | FQ2: VA | FR2: VT | FS2: WA | FT2: WI | FU2: WV | FV2: WY
A3: Artisan (Atlanta) 12" | B3: 12 | C3: 1800 | D3: 1350 | E3: 900 | F3: 450 | I3: 0 | J3: 3 | N3: 0 | O3: A | P3: 1 | Q3: =0% -> 0 | S3: A | T3: 250 | U3: 270 | V3: 400 | W3: 530 | X3: 2.65 | AC3: Mon | AD3: Tue | AE3: Wed | AF3: Thu | AG3: Fri | AH3: Strip | AI3: Master | AK3: 03" C/Z 12 ga | AL3: 2.25 | AO3: 2 | AP3: Adel | AQ3: Atl | AR3: =_xlfn.CONCAT(AO3,AP3,AQ3) -> 2AdelAtl | AS3: 2 | AT3: =AO3 -> 2 | AW3: Adel GA | AX3: Adel | BA3: 00501 | BB3: New York | BC3: SUFFOLK | BE3: 2 | BF3: Alabama | BG3: Autauga | BH3: Alabama Autauga | BI3: Adel | BJ3: ADL-Zone 2 | BK3: ADL-MB-Zone 2 | BL3: =" " ->  | BM3: Tues / Fri | BO3: Adel_03" C/Z 14 ga | BP3: 500 | BQ3: 500 | BR3: 500 | BS3: 500 | BU3: 7.2 | BW3: ADEL | BX3: =IF(DZ3<3, 3.15,DZ3) -> 3.213947076 | BY3: =IF(EA3<3, 3.15,EA3) -> 3.15 | BZ3: =IF(EB3<3, 3.15,EB3) -> 3.15 | CA3: =IF(EC3<3, 3.15,EC3) -> 3.15 | CB3: =IF(ED3<3, 3.15,ED3) -> 3.15 | CC3: =IF(EE3<3, 3.15,EE3) -> 3.15 | CD3: =IF(EF3<3, 3.15,EF3) -> 3.15 | CE3: =IF(EG3<3, 3.15,EG3) -> 3.15 | CF3: =IF(EH3<3, 3.15,EH3) -> 3.955085539 | CG3: =IF(EI3<3, 3.15,EI3) -> 3.15 | CH3: =IF(EJ3<3, 3.15,EJ3) -> 3.15 | CI3: =IF(EK3<3, 3.15,EK3) -> 3.15 | CJ3: =IF(EL3<3, 3.15,EL3) -> 3.15 | CK3: =IF(EM3<3, 3.15,EM3) -> 3.15 | CL3: =IF(EN3<3, 3.15,EN3) -> 3.15 | CM3: =IF(EO3<3, 3.15,EO3) -> 3.15 | CN3: =IF(EP3<3, 3.15,EP3) -> 4.407750247 | CO3: =IF(EQ3<3, 3.15,EQ3) -> 3.026697475 | CP3: =IF(ER3<3, 3.15,ER3) -> 3.15 | CQ3: =IF(ES3<3, 3.15,ES3) -> 3.15 | CR3: =IF(ET3<3, 3.15,ET3) -> 3.15 | CS3: =IF(EU3<3, 3.15,EU3) -> 3.15 | CT3: =IF(EV3<3, 3.15,EV3) -> 3.15 | CU3: =IF(EW3<3, 3.15,EW3) -> 3.15 | CV3: =IF(EX3<3, 3.15,EX3) -> 3.15 | CW3: =IF(EY3<3, 3.15,EY3) -> 3.742347252 | CX3: =IF(EZ3<3, 3.15,EZ3) -> 3.15 | CY3: =IF(FA3<3, 3.15,FA3) -> 3.15 | CZ3: =IF(FB3<3, 3.15,FB3) -> 3.15 | DA3: =IF(FC3<3, 3.15,FC3) -> 3.15 | DB3: =IF(FD3<3, 3.15,FD3) -> 3.15 | DC3: =IF(FE3<3, 3.15,FE3) -> 3.15 | DD3: =IF(FF3<3, 3.15,FF3) -> 3.15 | DE3: =IF(FG3<3, 3.15,FG3) -> 3.15 | DF3: =IF(FH3<3, 3.15,FH3) -> 3.15 | DG3: =IF(FI3<3, 3.15,FI3) -> 3.15 | DH3: =IF(FJ3<3, 3.15,FJ3) -> 3.15 | DI3: =IF(FK3<3, 3.15,FK3) -> 3.058979352 | DJ3: =IF(FL3<3, 3.15,FL3) -> 3.458279609 | DK3: =IF(FM3<3, 3.15,FM3) -> 3.15 | DL3: =IF(FN3<3, 3.15,FN3) -> 3.15 | DM3: =IF(FO3<3, 3.15,FO3) -> 3.15 | DN3: =IF(FP3<3, 3.15,FP3) -> 3.15 | DO3: =IF(FQ3<3, 3.15,FQ3) -> 3.15 | DP3: =IF(FR3<3, 3.15,FR3) -> 3.15 | DQ3: =IF(FS3<3, 3.15,FS3) -> 3.15 | DR3: =IF(FT3<3, 3.15,FT3) -> 3.15 | DS3: =IF(FU3<3, 3.15,FU3) -> 3.15 | DT3: =IF(FV3<3, 3.15,FV3) -> 3.15 | DV3: AL | DW3: 2 | DY3: ADEL | DZ3: 3.213947076 | EA3: 2.116 | EB3: 1.9205 | EC3: 1.817 | ED3: 2.2425 | EE3: 2.2655 | EG3: 2.1735 | EH3: 3.955085539 | EI3: 2.758073819 | EJ3: 1.932 | EK3: 1.9895 | EL3: 1.817 | EM3: 1.932 | EN3: 1.9665 | EO3: 2.277 | EP3: 4.407750247 | EQ3: 3.026697475 | ER3: 2.1275 | ES3: 2.093 | ET3: 1.9435 | EU3: 1.886 | EV3: 2.0125 | EW3: 2.732267461 | EX3: 2.116 | EY3: 3.742347252 | EZ3: 2.024 | FA3: 1.817 | FB3: 2.323 | FC3: 2.185 | FD3: 2.507 | FE3: 2.0815 | FF3: 2.553 | FG3: 1.978 | FH3: 2.116 | FI3: 1.9435 | FJ3: 2.0815 | FK3: 3.058979352 | FL3: 3.458279609 | FM3: 2.0125 | FN3: 2.858980995 | FO3: 1.811071122 | FP3: 2.208 | FQ3: 2.926585339 | FR3: 2.438 | FS3: 1.7825 | FT3: 1.84 | FU3: 2.323 | FV3: 2.1045
A4: Artisan (Houston) 12" | B4: 12 | C4: 2112 | D4: 1584 | E4: 1056 | F4: 528 | I4: 10.1 | J4: 4 | N4: 1e-05 | O4: A | P4: 4 | Q4: <10% | S4: B | T4: 350 | U4: 350 | V4: 400 | W4: 530 | X4: 2.65 | Z4: 7.2 | AA4: 6 | AB4: 8 | AC4: 28 | AD4: 32 | AE4: 31 | AF4: 30 | AG4: 29 | AH4: 4500 -( 4450 SLC Only) | AI4: 4500 or 4450 in SLC only | AK4: 03" C/Z 14 ga | AL4: 1.9 | AO4: 2 | AP4: Adel | AQ4: Frank | AR4: 2AdelFrank | AS4: 10 | AT4: =AO4 -> 2 | AW4: Albuquerque NM | AX4: Albq | BA4: 00544 | BB4: New York | BC4: SUFFOLK | BE4: 3 | BF4: Alabama | BG4: Baldwin | BH4: Alabama Baldwin | BI4: Adel | BJ4: ADL-Zone 2 | BK4: ADL-AB-Zone 5 | BL4: Zone 5 | BM4: Tues / Fri | BO4: Adel_03" C/Z 16 ga | BP4: 500 | BQ4: 500 | BR4: 500 | BS4: 500 | BU4: 03" C/Z 14 ga | BV4: GA | BW4: ATLANTA | BX4: 3.43 | BY4: 3.15 | BZ4: 3.15 | CA4: 3.15 | CB4: 3.15 | CC4: 3.15 | CD4: 3.15 | CE4: 3.15 | CF4: 4.363239126 | CG4: 3.802054241 | CH4: 3.15 | CI4: 3.15 | CJ4: 3.15 | CK4: 3.155562389 | CL4: 3.15 | CM4: 3.15 | CN4: 3.15 | CO4: 3.15 | CP4: 3.15 | CQ4: 3.15 | CR4: 3.15 | CS4: 3.15 | CT4: 3.15 | CU4: 4.709672094 | CV4: 3.15 | CW4: 3.553016933 | CX4: 3.15 | CY4: 3.15 | CZ4: 3.15 | DA4: 3.15 | DB4: 3.15 | DC4: 3.15 | DD4: 3.238458634 | DE4: 3.15 | DF4: 3.15 | DG4: 3.15 | DH4: 3.108 | DI4: 3.15 | DJ4: 4.170316718 | DK4: 3.15 | DL4: 3.170925179 | DM4: 3.15 | DN4: 3.15 | DO4: 4.410632658 | DP4: 3.15 | DQ4: 3.15 | DR4: 3.15 | DS4: 3.15 | DT4: 3.15 | DV4: AR | DW4: 3 | DY4: ATLANTA | DZ4: 3.43 | EA4: 2.116 | EB4: 1.9205 | EC4: 1.817 | ED4: 2.2425 | EE4: 2.2655 | EG4: 2.1735 | EH4: 4.363239126 | EI4: 3.802054241 | EJ4: 1.932 | EK4: 1.9895 | EL4: 1.817 | EM4: 3.155562389 | EN4: 1.9665 | EO4: 2.277 | EP4: 2.024 | EQ4: 2.438 | ER4: 2.1275 | ES4: 2.093 | ET4: 1.9435 | EU4: 1.886 | EV4: 2.0125 | EW4: 4.709672094 | EX4: 2.116 | EY4: 3.553016933 | EZ4: 2.024 | FA4: 1.817 | FB4: 2.323 | FC4: 2.185 | FD4: 2.507 | FE4: 2.0815 | FF4: 3.238458634 | FG4: 1.978 | FH4: 2.116 | FI4: 1.9435 | FJ4: 3.108 | FK4: 2.0815 | FL4: 4.170316718 | FM4: 2.0125 | FN4: 3.170925179 | FO4: 2.70381129 | FP4: 2.208 | FQ4: 4.410632658 | FR4: 2.438 | FS4: 1.7825 | FT4: 1.84 | FU4: 2.323 | FV4: 2.1045
A5: BattenLok 12" | B5: 12 | C5: 960 | D5: 720 | E5: 480 | F5: 240 | I5: 15.1 | J5: 5 | N5: 0.101 | O5: B | P5: 3 | Q5: <25% | S5: C | T5: 400 | U5: 400 | V5: 400 | W5: 530 | X5: 2.65 | Z5: 7/8 Wide Rib | AA5: 3 | AB5: 5 | AC5: 21 | AD5: 25 | AE5: 24 | AF5: 23 | AG5: 22 | AH5: 4087 | AI5: 4087 | AK5: 03" C/Z 16 ga | AL5: 1.6 | AO5: 2 | AP5: Adel | AQ5: Pied | AR5: 2AdelPied | AS5: 2 | AT5: 2 | AW5: Atlanta | AX5: Atl | BA5: 00601 | BB5: Puerto Rico | BC5: ADJUNTAS | BE5: 4 | BF5: Alabama | BG5: Baldwin | BH5: Alabama Baldwin | BI5: Adel | BJ5: ADL-Zone 2 | BK5: ADL-MB-Zone 2 | BL5: =" " ->  | BM5: Tues / Fri | BO5: Adel_04" C/Z 12 ga | BP5: 500 | BQ5: 500 | BR5: 500 | BS5: 500 | BU5: 03" C/Z 16 ga | BV5: TX | BW5: ATWATER | BX5: 3.15 | BY5: 3.15 | BZ5: 3.351288108 | CA5: 5 | CB5: 3.15 | CC5: 3.15 | CD5: 3.15 | CE5: 3.15 | CF5: 3.15 | CG5: 3.15 | CH5: 3.15 | CI5: 3.052593122 | CJ5: 3.15 | CK5: 3.15 | CL5: 3.15 | CM5: 3.15 | CN5: 3.15 | CO5: 3.15 | CP5: 3.15 | CQ5: 3.15 | CR5: 3.15 | CS5: 3.15 | CT5: 3.15 | CU5: 3.15 | CV5: 3.464158331 | CW5: 3.15 | CX5: 3.15 | CY5: 3.15 | CZ5: 3.15 | DA5: 3.15 | DB5: 3.359241203 | DC5: 4 | DD5: 3.15 | DE5: 3.15 | DF5: 3.15 | DG5: 3.767292585 | DH5: 3.15 | DI5: 3.15 | DJ5: 3.15 | DK5: 3.15 | DL5: 3.15 | DM5: 3.15 | DN5: 3.15 | DO5: 3.15 | DP5: 3.15 | DQ5: 3.542409093 | DR5: 3.15 | DS5: 3.15 | DT5: 3.15 | DV5: AZ | DW5: 4 | DY5: ATWATER | DZ5: 1.633 | EA5: 1.7365 | EB5: 3.351288108 | EC5: 5 | ED5: 2.5185 | EE5: 1.7365 | EG5: 1.633 | EH5: 1.4835 | EI5: 1.541 | EJ5: 1.910997981 | EK5: 3.052593122 | EL5: 1.495 | EM5: 1.4835 | EN5: 1.656 | EO5: 1.472 | EP5: 1.5295 | EQ5: 1.5755 | ER5: 1.4835 | ES5: 1.633 | ET5: 1.633 | EU5: 1.564 | EV5: 1.633 | EW5: 1.7595 | EX5: 3.464158331 | EY5: 1.426 | EZ5: 2.07 | FA5: 1.6215 | FB5: 1.541 | FC5: 1.7135 | FD5: 3.359241203 | FE5: 4 | FF5: 1.725 | FG5: 1.5295 | FH5: 1.679 | FI5: 3.767292585 | FJ5: 1.541 | FK5: 1.564 | FL5: 1.4605 | FM5: 1.9895 | FN5: 1.7325 | FO5: 1.518 | FP5: 2.257680279 | FQ5: 1.564 | FR5: 1.38 | FS5: 3.542409093 | FT5: 1.587 | FU5: 1.7595 | FV5: 2.5875
A6: BattenLok 16" | B6: 16 | C6: 960 | D6: 720 | E6: 480 | F6: 240 | I6: 25.1 | J6: 6 | N6: 0.251 | O6: C | P6: 2 | Q6: <33% | S6: D | T6: 500 | U6: 500 | V6: 500 | W6: 530 | X6: 2.65 | Z6: Ameri-drain | AA6: 3 | AB6: 5 | AC6: 21 | AD6: 25 | AE6: 24 | AF6: 23 | AG6: 22 | AH6: 4087 | AI6: 4087 | AK6: 04" C/Z 12 ga | AL6: 2.98 | AO6: 2 | AP6: Adel | AQ6: Rome | AR6: 2AdelRome | AS6: 5 | AT6: 2 | AW6: Atwater CA | AX6: Atw | BA6: 00602 | BB6: Puerto Rico | BC6: AGUADA | BE6: 5 | BF6: Alabama | BG6: Barbour | BH6: Alabama Barbour | BI6: Adel | BJ6: ADL-Zone 2 | BK6: ADL-AB-Zone 5 | BL6: Zone 5 | BM6: Tues / Fri | BO6: Adel_04" C/Z 14 ga | BP6: 500 | BQ6: 500 | BR6: 500 | BS6: 500 | BU6: 04" C/Z 12 ga | BV6: AZ | BX6: 3.15 | BY6: 3.15 | BZ6: 3.15 | CA6: 3.15 | CB6: 3.15 | CC6: 3.15 | CD6: 3.15 | CE6: 3.15 | CF6: 3.15 | CG6: 3.15 | CH6: 3.15 | CI6: 3.15 | CJ6: 3.15 | CK6: 3.15 | CL6: 3.15 | CM6: 3.15 | CN6: 3.15 | CO6: 3.15 | CP6: 3.15 | CQ6: 3.15 | CR6: 3.15 | CS6: 3.15 | CT6: 3.15 | CU6: 3.15 | CV6: 3.15 | CW6: 3.15 | CX6: 3.15 | CY6: 3.15 | CZ6: 3.15 | DA6: 3.15 | DB6: 3.15 | DC6: 3.15 | DD6: 3.15 | DE6: 3.15 | DF6: 3.15 | DG6: 3.15 | DH6: 3.15 | DI6: 3.15 | DJ6: 3.15 | DK6: 3.15 | DL6: 3.15 | DM6: 3.15 | DN6: 3.15 | DO6: 3.15 | DP6: 3.15 | DQ6: 3.15 | DR6: 3.15 | DS6: 3.15 | DT6: 3.15 | DV6: CA | DW6: 5
A7: Classic 16" | B7: 16 | C7: 792 | D7: 594 | E7: 396 | F7: 198 | N7: 0.331 | O7: D | P7: 1.5 | Q7: <50% | S7: E | T7: 800 | U7: 800 | V7: 990 | W7: 1320 | X7: 2.65 | Z7: Artisan | AA7: 6 | AB7: 8 | AC7: 21 | AD7: 25 | AE7: 24 | AF7: 23 | AG7: 22 | AH7: 1575 | AI7: 4837 | AK7: 04" C/Z 14 ga | AL7: 2.57 | AO7: 2 | AP7: Atl | AQ7: Pied | AR7: 2AtlPied | AS7: 4 | AT7: 2 | AW7: Baton Rouge LA | AX7: Brge | BA7: 00603 | BB7: Puerto Rico | BC7: AGUADILLA | BE7: 6 | BF7: Alabama | BG7: Barbour | BH7: Alabama Barbour | BI7: Adel | BJ7: ADL-Zone 2 | BK7: ADL-MB-Zone 2 | BL7: =" " ->  | BM7: Tues / Fri | BO7: Adel_04" C/Z 16 ga | BP7: 500 | BQ7: 500 | BR7: 500 | BS7: 500 | BU7: 04" C/Z 14 ga | BW7: MBCI - HOUSTON | BX7: 3.15 | BY7: 4.152414535 | BZ7: 3.027012339 | CA7: 3.05332024 | CB7: 3.394179916 | CC7: 3.15 | CD7: 3.15 | CE7: 3.15 | CF7: 3.15 | CG7: 3.15 | CH7: 3.15 | CI7: 3.104416779 | CJ7: 3.15 | CK7: 3.15 | CL7: 3.201613524 | CM7: 3.15 | CN7: 3.877679377 | CO7: 3.15 | CP7: 3.15 | CQ7: 3.15 | CR7: 3.15 | CS7: 4.06923141 | CT7: 3.15 | CU7: 3.80418732 | CV7: 3.15 | CW7: 3.07190866 | CX7: 3.15 | CY7: 3.15 | CZ7: 3.15 | DA7: 3.15 | DB7: 3.15 | DC7: 3.15 | DD7: 3.15 | DE7: 3.15 | DF7: 3.15 | DG7: 3.15 | DH7: 3.15 | DI7: 3.15 | DJ7: 3.15 | DK7: 3.15 | DL7: 3.15 | DM7: 3.43 | DN7: 3.276121219 | DO7: 3.15 | DP7: 3.15 | DQ7: 3.15 | DR7: 3.15 | DS7: 3.15 | DT7: 3.15 | DV7: CO | DW7: 6 | DY7: MBCI - HOUSTON | DZ7: 2.842069424 | EA7: 4.152414535 | EB7: 3.027012339 | EC7: 3.05332024 | ED7: 3.394179916 | EE7: 1.8515 | EG7: 1.8975 | EH7: 2.918997085 | EI7: 2.527885743 | EJ7: 2.908633556 | EK7: 3.104416779 | EL7: 1.868589525 | EM7: 2.966802914 | EN7: 3.201613524 | EO7: 1.61 | EP7: 3.877679377 | EQ7: 2.536790924 | ER7: 1.7135 | ES7: 1.9205 | ET7: 1.587 | EU7: 4.06923141 | EV7: 2.568348345 | EW7: 3.80418732 | EX7: 2.2655 | EY7: 3.07190866 | EZ7: 2.139 | FA7: 2.093 | FB7: 1.794 | FC7: 1.7135 | FD7: 2.645 | FE7: 2.657183775 | FF7: 2.389984192 | FG7: 1.856416819 | FH7: 2.91862003 | FI7: 1.863 | FJ7: 2.330970932 | FK7: 1.7135 | FL7: 1.587 | FM7: 1.955 | FN7: 1.6215 | FO7: 3.43 | FP7: 3.276121219 | FQ7: 1.748 | FR7: 1.886 | FS7: 1.932 | FT7: 1.956727584 | FU7: 1.679 | FV7: 2.4495
A8: Craftsman 12" | B8: 12 | C8: 2640 | D8: 1980 | E8: 1320 | F8: 660 | N8: 0.501 | O8: E | P8: 1 | Q8: Full Truck | Z8: AVP or (AVP2 Atlanta Only) | AA8: 6 | AB8: 8 | AC8: 21 | AD8: 25 | AE8: 24 | AF8: 23 | AG8: 22 | AH8: 4275 | AI8: 4275 | AK8: 04" C/Z 16 ga | AL8: 2.15 | AO8: 2 | AP8: Atl | AQ8: Adel | AR8: 2AtlAdel | AS8: 2 | AT8: 2 | AW8: Baytown TX | AX8: Bytn | BA8: 00604 | BB8: Puerto Rico | BC8: AGUADILLA | BE8: 7 | BF8: Alabama | BG8: Bibb | BH8: Alabama Bibb | BI8: Adel | BK8: ADL-AB-Zone 5 | BL8: ADL-AB-Zone 5 | BM8: Tues / Fri | BO8: Adel_05" C/Z 12 ga | BP8: 500 | BQ8: 500 | BR8: 500 | BS8: 500 | BU8: 04" C/Z 16 ga | BW8: INDIANAPOLIS | BX8: 3.15 | BY8: 3.15 | BZ8: 3.15 | CA8: 3.15 | CB8: 3.15 | CC8: 3.708405313 | CD8: 3.15 | CE8: 3.15 | CF8: 3.360595203 | CG8: 3.15 | CH8: 4.321983426 | CI8: 3.15 | CJ8: 3.526332018 | CK8: 4 | CL8: 3.36 | CM8: 4.933391388 | CN8: 3.15 | CO8: 3.951474567 | CP8: 3.15 | CQ8: 3.15 | CR8: 3.145650055 | CS8: 3.199033485 | CT8: 4.771569479 | CU8: 3.15 | CV8: 3.15 | CW8: 3.15 | CX8: 3.1625 | CY8: 3.082 | CZ8: 3.645485408 | DA8: 4.076422922 | DB8: 3.15 | DC8: 3.15 | DD8: 3.110716804 | DE8: 3.766985577 | DF8: 3.15 | DG8: 3.15 | DH8: 3.855362192 | DI8: 3.941315793 | DJ8: 3.15 | DK8: 3.496 | DL8: 3.135562405 | DM8: 3.155996301 | DN8: 3.092450988 | DO8: 4.356888727 | DP8: 3.15 | DQ8: 3.15 | DR8: 3.793057112 | DS8: 3.844742651 | DT8: 3.151 | DV8: CT | DW8: 7 | DY8: INDIANAPOLIS | DZ8: 2.507 | EA8: 2.369 | EB8: 2.3115 | EC8: 1.9435 | ED8: 2.829 | EE8: 3.708405313 | EG8: 2.6795 | EH8: 3.360595203 | EI8: 2.559277744 | EJ8: 4.321983426 | EK8: 2.3575 | EL8: 3.526332018 | EM8: 4 | EN8: 3.36 | EO8: 4.933391388 | EP8: 2.231 | EQ8: 3.951474567 | ER8: 2.944 | ES8: 2.507 | ET8: 3.145650055 | EU8: 3.199033485 | EV8: 4.771569479 | EW8: 2.346 | EX8: 2.5645 | EY8: 2.553 | EZ8: 3.1625 | FA8: 3.082 | FB8: 3.645485408 | FC8: 4.076422922 | FD8: 2.369 | FE8: 2.1275 | FF8: 3.110716804 | FG8: 3.766985577 | FH8: 1.300364899 | FI8: 2.2195 | FJ8: 3.855362192 | FK8: 3.941315793 | FL8: 2.553 | FM8: 3.496 | FN8: 3.135562405 | FO8: 3.155996301 | FP8: 3.092450988 | FQ8: 4.356888727 | FR8: 2.668 | FS8: 2.1965 | FT8: 3.793057112 | FU8: 3.844742651 | FV8: 3.151
A9: Craftsman 16.5" (Atlanta) | B9: 16.5 | C9: 1536 | D9: 1152 | E9: 768 | F9: 384 | Z9: BatLok old style by Manager approval only | AA9: 16 | AB9: 16 | AC9: 21 | AD9: 25 | AE9: 24 | AF9: 23 | AG9: 22 | AH9: 2200 | AI9: 4500 | AK9: 05" C/Z 12 ga | AL9: 3.73 | AO9: 2 | AP9: Atl | AQ9: Hou | AR9: 2AtlHou | AS9: 3 | AT9: 2 | AW9: Cleveland TX | AX9: Clvd | BA9: 00605 | BB9: Puerto Rico | BC9: AGUADILLA | BE9: 8 | BF9: Alabama | BG9: Bibb | BH9: Alabama Bibb | BI9: Adel | BK9: ADL-MB-Zone 5 | BL9: ADL-MB-Zone 5 | BM9: Tues / Fri | BO9: Adel_05" C/Z 14 ga | BP9: 500 | BQ9: 500 | BR9: 500 | BS9: 500 | BU9: 05" C/Z 12 ga | BW9: MONTICELLO | BX9: 3.15 | BY9: 3.675 | BZ9: 3.15 | CA9: 3.15 | CB9: 3.710788682 | CC9: 3.15 | CD9: 3.15 | CE9: 3.15 | CF9: 3.15 | CG9: 3.15 | CH9: 4 | CI9: 4.198706697 | CJ9: 4.278887106 | CK9: 3.069641402 | CL9: 3.32463691 | CM9: 3.15 | CN9: 3.15 | CO9: 3.15 | CP9: 3.15 | CQ9: 3.15 | CR9: 3.038021986 | CS9: 3.740337204 | CT9: 3.650325069 | CU9: 3.15 | CV9: 3.6225 | CW9: 3.15 | CX9: 3.966059224 | CY9: 3.15 | CZ9: 3.15 | DA9: 3.15 | DB9: 3.15 | DC9: 3.15 | DD9: 3.613138046 | DE9: 3.218290467 | DF9: 3.15 | DG9: 3.15 | DH9: 3.15 | DI9: 3.15 | DJ9: 3.15 | DK9: 4.076821179 | DL9: 3.15 | DM9: 3.15 | DN9: 3.15 | DO9: 3.15 | DP9: 3.381 | DQ9: 3.15 | DR9: 4.267556831 | DS9: 3.15 | DT9: 3.9375 | DV9: DC | DW9: 8 | DY9: MONTICELLO | DZ9: 2.024 | EA9: 3.675 | EB9: 2.576 | EC9: 2.4265 | ED9: 3.710788682 | EE9: 2.6335 | EG9: 2.507 | EH9: 2.484 | EI9: 2.1735 | EJ9: 4 | EK9: 4.198706697 | EL9: 4.278887106 | EM9: 3.069641402 | EN9: 3.32463691 | EO9: 2.208 | EP9: 2.3345 | EQ9: 2.221154011 | ER9: 2.553 | ES9: 2.3805 | ET9: 3.038021986 | EU9: 3.740337204 | EV9: 3.650325069 | EW9: 2.507 | EX9: 3.6225 | EY9: 2.1275 | EZ9: 3.966059224 | FA9: 2.616504248 | FB9: 2.714 | FC9: 2.4725 | FD9: 2.8635 | FE9: 2.4265 | FF9: 3.613138046 | FG9: 3.218290467 | FH9: 2.5645 | FI9: 2.2655 | FJ9: 2.3 | FK9: 2.254 | FL9: 2.1965 | FM9: 4.076821179 | FN9: 2.8875 | FO9: 2.8875 | FP9: 2.956398615 | FQ9: 1.905529574 | FR9: 3.381 | FS9: 2.438 | FT9: 4.267556831 | FU9: 2.392 | FV9: 3.9375
Z10: BatLok/SupLok 12" no endlapped panels in SLC until March 2020 | AA10: 11 | AB10: 11 | AC10: 21 | AD10: 25 | AE10: 24 | AF10: 23 | AG10: 22 | AH10: 1825/1800 | AI10: 3700 | AO10: 2 | AP10: Atl | AQ10: Frank | AR10: 2AtlFrank | AS10: 5 | AT10: =AO10 -> 2 | AW10: Farmington NM | AX10: Farm | BF10: Alabama | BG10: Blount | BH10: Alabama Blount | BI10: Atlanta | BJ10: ATL-Zone 5 | BK10: ATL | BL10: =" " ->  | BM10: Wed | BW10: FAIRVIEW | BX10: 3.15 | BY10: 3.15 | BZ10: 3.15 | CA10: 3.15 | CB10: 3.15 | CC10: 3.15 | CD10: 3.15 | CE10: 3.15 | CF10: 3.15 | CG10: 3.15 | CH10: 3.15 | CI10: 3.15 | CJ10: 3.15 | CK10: 3.15 | CL10: 3.15 | CM10: 3.15 | CN10: 3.598163696 | CO10: 3.15 | CP10: 3.15 | CQ10: 3.15 | CR10: 3.15 | CS10: 3.15 | CT10: 3.15 | CU10: 3.15 | CV10: 3.521764793 | CW10: 3.15 | CX10: 3.499072562 | CY10: 3.15 | CZ10: 3.15 | DA10: 3.15 | DB10: 3.366562334 | DC10: 3.15 | DD10: 3.15 | DE10: 3.15 | DF10: 3.188957528 | DG10: 3.15 | DH10: 3.15 | DI10: 3.15 | DJ10: 3.15 | DK10: 3.15 | DL10: 3.15 | DM10: 3.43 | DN10: 3.28 | DO10: 3.15 | DP10: 3.15 | DQ10: 3.15 | DR10: 3.15 | DS10: 3.15 | DT10: 3.15 | DY10: FAIRVIEW | DZ10: 1.702 | EA10: 2.605418588 | EB10: 2.963086374 | EC10: 2.685255659 | ED10: 2.572152913 | EE10: 1.8515 | EG10: 1.8975 | EH10: 1.84 | EI10: 2.123516652 | EJ10: 2.630149409 | EK10: 2.944192219 | EL10: 2.369216107 | EM10: 2.001915754 | EN10: 2.54310414 | EO10: 1.61 | EP10: 3.598163696 | EQ10: 1.8515 | ER10: 2.411781752 | ES10: 1.9205 | ET10: 2.037 | EU10: 1.702 | EV10: 2.419754633 | EW10: 2.094342668 | EX10: 3.521764793 | EY10: 2.258021646 | EZ10: 3.499072562 | FA10: 2.093 | FB10: 1.794 | FC10: 1.7135 | FD10: 3.366562334 | FE10: 1.842067525 | FF10: 1.863 | FG10: 1.633 | FH10: 3.188957528 | FI10: 1.863 | FJ10: 1.702 | FK10: 1.7135 | FL10: 2.139134167 | FM10: 1.955 | FN10: 2.486293861 | FO10: 3.43 | FP10: 3.28 | FQ10: 1.748 | FR10: 1.886 | FS10: 2.898 | FT10: 1.5525 | FU10: 1.679 | FV10: 2.4495
A11: Craftsman 16.5" (Houston) | B11: 16.5 | C11: 1800 | D11: 1350 | E11: 900 | F11: 450 | H11: Mileage Table less than Full Truck | S11: Full Truck NCI Freight Rates and Zones | Z11: BatLok/SupLok 16" no endlapped panels in SLC until March 2020 | AA11: 11 | AB11: 11 | AC11: 21 | AD11: 25 | AE11: 24 | AF11: 23 | AG11: 22 | AH11: 2225/2200 | AI11: 4500 | AK11: 05" C/Z 14 ga | AL11: 2.8 | AO11: 2 | AP11: Atl | AQ11: Indy | AR11: 2AtlIndy | AS11: 2 | AT11: 2 | AW11: Frankfort KY | AX11: Frank | BA11: 00606 | BB11: Puerto Rico | BC11: MARICAO | BE11: 9 | BF11: Alabama | BG11: Blount | BH11: Alabama Blount | BI11: Adel | BJ11: ADL-Zone 6 | BK11: ADL-AB-Zone 6 | BL11: ADL-AB-Zone 6 | BM11: Tues / Fri | BO11: Adel_05" C/Z 16 ga | BP11: 500 | BQ11: 500 | BR11: 500 | BS11: 500 | BU11: 05" C/Z 14 ga | BW11: ELIZABETHTON | BX11: 3.15 | BY11: 3.3005 | BZ11: 3.15 | CA11: 3.15 | CB11: 3.15 | CC11: 3.631970136 | CD11: 3.15 | CE11: 3.15 | CF11: 3.234963907 | CG11: 3.15 | CH11: 3.15 | CI11: 3.15 | CJ11: 3.15 | CK11: 3.15 | CL11: 3.15 | CM11: 3.743085176 | CN11: 3.15 | CO11: 3.466208323 | CP11: 3.358437804 | CQ11: 3.465 | CR11: 3.15 | CS11: 3.15 | CT11: 3.15 | CU11: 3.15 | CV11: 3.15 | CW11: 3.793095291 | CX11: 3.15 | CY11: 3.15 | CZ11: 3.500924829 | DA11: 3.276 | DB11: 3.15 | DC11: 3.15 | DD11: 3.274499695 | DE11: 3.15 | DF11: 3.15 | DG11: 3.15 | DH11: 3.040290814 | DI11: 3.15 | DJ11: 3.915392938 | DK11: 3.15 | DL11: 3.226096459 | DM11: 3.15 | DN11: 3.15 | DO11: 3.738080266 | DP11: 3.57 | DQ11: 3.15 | DR11: 3.15 | DS11: 4.184155181 | DT11: 3.15 | DV11: DE | DW11: 9 | DY11: ELIZABETHTON | DZ11: 2.415 | EA11: 3.3005 | EB11: 2.4265 | EC11: 2.1045 | ED11: 2.7945 | EE11: 3.631970136 | EG11: 2.7715 | EH11: 3.234963907 | EI11: 2.862324186 | EJ11: 2.257522395 | EK11: 2.139 | EL11: 2.2195 | EM11: 2.5645 | EN11: 2.576 | EO11: 3.743085176 | EP11: 2.3 | EQ11: 3.466208323 | ER11: 3.358437804 | ES11: 3.465 | ET11: 2.1735 | EU11: 2.323 | EV11: 2.898 | EW11: 2.6795 | EX11: 2.3575 | EY11: 3.793095291 | EZ11: 2.4035 | FA11: 2.415 | FB11: 3.500924829 | FC11: 3.276 | FD11: 2.6795 | FE11: 1.9895 | FF11: 3.274499695 | FG11: 2.415 | FH11: 2.783 | FI11: 2.116 | FJ11: 3.040290814 | FK11: 2.484 | FL11: 3.915392938 | FM11: 2.691 | FN11: 3.226096459 | FO11: 2.135875833 | FP11: 2.277 | FQ11: 3.738080266 | FR11: 3.57 | FS11: 2.185 | FT11: 2.1965 | FU11: 4.184155181 | FV11: 2.921
A12: Designer 12" | B12: 12 | C12: 1440 | D12: 1080 | E12: 720 | F12: 360 | H12: (Titled Mile_Less) | M12: Mileage Table for Full Truck | S12: (Titled: Freight_Full) | Z12: Batten Caps | AA12: 11 | AB12: 11 | AC12: 21 | AD12: 25 | AE12: 24 | AF12: 23 | AG12: 22 | AH12: 4837 | AI12: 4837 | AK12: 05" C/Z 16 ga | AL12: 2.34 | AO12: 2 | AP12: Atl | AQ12: Ralg | AR12: 2AtlRalg | AS12: 2 | AT12: 2 | AW12: Houston | AX12: Hou | BA12: 00610 | BB12: Puerto Rico | BC12: ANASCO | BE12: 10 | BF12: Alabama | BG12: Bullock | BH12: Alabama Bullock | BI12: Adel | BJ12: ADL-Zone 2 | BK12: ADL-AB-Zone 5 | BL12: ADL-AB-Zone 5 | BM12: Tues / Fri | BO12: Adel_06" C/Z 12 ga | BP12: 500 | BQ12: 500 | BR12: 500 | BS12: 500 | BU12: 05" C/Z 16 ga | BW12: MOUNT PLEASANT | BX12: 3.15 | BY12: 3.15 | BZ12: 4.222795115 | CA12: 3.15 | CB12: 4.281406804 | CC12: 3.15 | CD12: 3.15 | CE12: 3.15 | CF12: 3.15 | CG12: 3.15 | CH12: 3.958769309 | CI12: 3.15 | CJ12: 3.15 | CK12: 3.192663464 | CL12: 4.349077685 | CM12: 3.15 | CN12: 3.15 | CO12: 3.15 | CP12: 3.15 | CQ12: 3.15 | CR12: 3.347765327 | CS12: 4 | CT12: 3.27625408 | CU12: 3.15 | CV12: 3.6225 | CW12: 3.15 | CX12: 4 | CY12: 3.52771404 | CZ12: 4 | DA12: 3.15 | DB12: 3.15 | DC12: 3.15 | DD12: 3.287081145 | DE12: 3.15 | DF12: 3.154906348 | DG12: 3.15 | DH12: 3.15 | DI12: 3.15 | DJ12: 3.15 | DK12: 4.349688418 | DL12: 3.15 | DM12: 3.15 | DN12: 3.15 | DO12: 3.15 | DP12: 3.381 | DQ12: 3.15 | DR12: 3.569838281 | DS12: 3.15 | DT12: 3.381 | DV12: FL | DW12: 10 | DY12: MOUNT PLEASANT | DZ12: 2.024 | EA12: 2.668260668 | EB12: 4.222795115 | EC12: 2.502544253 | ED12: 4.281406804 | EE12: 2.6335 | EG12: 2.507 | EH12: 2.484 | EI12: 2.1735 | EJ12: 3.958769309 | EK12: 2.76 | EL12: 2.697730789 | EM12: 3.192663464 | EN12: 4.349077685 | EO12: 2.208 | EP12: 2.3345 | EQ12: 2.76 | ER12: 2.553 | ES12: 2.3805 | ET12: 3.347765327 | EU12: 4 | EV12: 3.27625408 | EW12: 2.507 | EX12: 3.6225 | EY12: 2.1275 | EZ12: 4 | FA12: 3.52771404 | FB12: 4 | FC12: 2.4725 | FD12: 2.8635 | FE12: 2.4265 | FF12: 3.287081145 | FG12: 1.933073005 | FH12: 3.154906348 | FI12: 2.2655 | FJ12: 2.3 | FK12: 2.254 | FL12: 2.1965 | FM12: 4.349688418 | FN12: 2.498418503 | FO12: 1.588032987 | FP12: 2.829 | FQ12: 2.231 | FR12: 3.381 | FS12: 2.650658373 | FT12: 3.569838281 | FU12: 2.392 | FV12: 3.381
A13: Designer 16" | B13: 16 | C13: 1440 | D13: 1080 | E13: 720 | F13: 360 | I13: Range | J13: value | M13: (Titled Mile_Full) | S13: Utilization | T13: 0-125 | U13: 126-250 | V13: 250 Plus | Z13: Classic Atlanta | AA13: 12 | AB13: 12 | AC13: 21 | AD13: 25 | AE13: 24 | AF13: 23 | AG13: 22 | AH13: 2400 | AI13: 4837 | AK13: 06" C/Z 12 ga | AL13: 4.48 | AO13: 2 | AP13: Hou | AQ13: Okc | AR13: 2HouOkc | AS13: 3 | AT13: 2 | AW13: Indianapolis | AX13: Indy | BA13: 00611 | BB13: Puerto Rico | BC13: UTUADO | BE13: 11 | BF13: Alabama | BG13: Bullock | BH13: Alabama Bullock | BI13: Adel | BJ13: ADL-Zone 2 | BK13: ADL-Zone 5 | BM13: Tues / Fri | BO13: Adel_06" C/Z 14 ga | BP13: 500 | BQ13: 500 | BR13: 500 | BS13: 500 | BU13: 06" C/Z 12 ga | BW13: MBCI - OKC | BX13: 3.15 | BY13: 3.480085291 | BZ13: 3.15 | CA13: 3.15 | CB13: 4.969862537 | CC13: 3.15 | CD13: 3.15 | CE13: 3.15 | CF13: 3.15 | CG13: 3.15 | CH13: 3.15 | CI13: 3.15 | CJ13: 3.15 | CK13: 3.15 | CL13: 3.15 | CM13: 3.15 | CN13: 4.064884356 | CO13: 3.15 | CP13: 3.15 | CQ13: 3.15 | CR13: 3.15 | CS13: 3.15 | CT13: 3.15 | CU13: 3.15 | CV13: 3.15 | CW13: 3.15 | CX13: 3.15 | CY13: 3.15 | CZ13: 3.15 | DA13: 3.15 | DB13: 3.43 | DC13: 3.15 | DD13: 3.15 | DE13: 3.15 | DF13: 3.910872379 | DG13: 3.15 | DH13: 3.15 | DI13: 3.15 | DJ13: 3.15 | DK13: 3.15 | DL13: 3.15 | DM13: 3.448656867 | DN13: 3.15 | DO13: 3.15 | DP13: 3.15 | DQ13: 3.15 | DR13: 3.15 | DS13: 3.15 | DT13: 3.15 | DV13: GA | DW13: 11 | DY13: MBCI - OKC | DZ13: 1.725 | EA13: 3.480085291 | EB13: 2.4035 | EC13: 2.162 | ED13: 4.969862537 | EE13: 1.886 | EG13: 1.8745 | EH13: 2.047 | EI13: 1.7595 | EJ13: 2.3345 | EK13: 2.2195 | EL13: 1.6445 | EM13: 2.845650535 | EN13: 2.733061685 | EO13: 1.61 | EP13: 4.064884356 | EQ13: 1.9665 | ER13: 1.909 | ES13: 2.07 | ET13: 1.8285 | EU13: 1.886 | EV13: 2.949570204 | EW13: 1.8515 | EX13: 2.346 | EY13: 1.7825 | EZ13: 2.737 | FA13: 2.507 | FB13: 2.024 | FC13: 1.771 | FD13: 3.43 | FE13: 2.1505 | FF13: 2.0355 | FG13: 1.8975 | FH13: 3.910872379 | FI13: 2.07 | FJ13: 1.8055 | FK13: 2.001 | FL13: 1.817 | FM13: 2.576 | FN13: 1.748 | FO13: 3.448656867 | FP13: 2.970258661 | FQ13: 1.587 | FR13: 2.07 | FS13: 2.047 | FT13: 1.633 | FU13: 1.84 | FV13: 2.4955
A14: Double-Lok 18" | B14: 18 | C14: 960 | D14: 720 | E14: 480 | F14: 240 | I14: 0 | J14: 2 | N14: Range | O14: value | S14: A | T14: 800 | U14: 800 | V14: 3.25 | Z14: Classic Houston | AA14: 12 | AB14: 12 | AC14: 21 | AD14: 25 | AE14: 24 | AF14: 23 | AG14: 22 | AH14: 2400 | AI14: 4837 | AK14: 06" C/Z 14 ga | AL14: 3.04 | AO14: 2 | AP14: Hou | AQ14: Albq | AR14: 2HouAlbq | AS14: 6 | AT14: 2 | AW14: Iowa | AX14: Iwa | BA14: 00612 | BB14: Puerto Rico | BC14: ARECIBO | BE14: 12 | BF14: Alabama | BG14: Butler | BH14: Alabama Butler | BI14: Adel | BJ14: ADL-Zone 2 | BK14: ADL-AB-Zone 5 | BL14: ADL-AB-Zone 5 | BM14: Tues / Fri | BO14: Adel_06" C/Z 16 ga | BP14: 500 | BQ14: 500 | BR14: 500 | BS14: 500 | BU14: 06" C/Z 14 ga | BW14: PHOENIX | BX14: 3.15 | BY14: 3.15 | BZ14: 4.809950311 | CA14: 3.247227226 | CB14: 4.954761594 | CC14: 3.15 | CD14: 3.15 | CE14: 3.15 | CF14: 3.15 | CG14: 3.15 | CH14: 3.15 | CI14: 3.15 | CJ14: 3.15 | CK14: 3.15 | CL14: 3.15 | CM14: 3.15 | CN14: 3.15 | CO14: 3.15 | CP14: 3.15 | CQ14: 3.15 | CR14: 3.15 | CS14: 3.15 | CT14: 3.15 | CU14: 3.15 | CV14: 3.15 | CW14: 3.15 | CX14: 3.15 | CY14: 3.15 | CZ14: 3.15 | DA14: 3.15 | DB14: 3.337234307 | DC14: 3.15 | DD14: 3.15 | DE14: 3.15 | DF14: 3.15 | DG14: 3.15 | DH14: 3.15 | DI14: 3.4335 | DJ14: 3.15 | DK14: 3.15 | DL14: 3.15 | DM14: 3.15 | DN14: 3.15 | DO14: 3.15 | DP14: 3.4335 | DQ14: 3.15 | DR14: 3.15 | DS14: 3.15 | DT14: 3.15 | DV14: IA | DW14: 12 | DY14: PHOENIX | DZ14: 1.2535 | EA14: 1.2305 | EB14: 4.809950311 | EC14: 3.247227226 | ED14: 4.954761594 | EE14: 1.449 | EG14: 1.196 | EH14: 1.4375 | EI14: 1.4375 | EJ14: 1.518 | EK14: 1.7825 | EL14: 1.334 | EM14: 1.1615 | EN14: 1.449 | EO14: 1.2995 | EP14: 1.288 | EQ14: 1.5525 | ER14: 1.288 | ES14: 1.4145 | ET14: 1.8745 | EU14: 1.5755 | EV14: 1.2535 | EW14: 1.2535 | EX14: 1.9205 | EY14: 1.3455 | EZ14: 2.2885 | FA14: 1.265 | FB14: 1.265 | FC14: 1.5985 | FD14: 3.337234307 | FE14: 2.991406121 | FF14: 2.1735 | FG14: 1.265 | FH14: 1.3455 | FI14: 1.61 | FJ14: 1.426 | FK14: 3.4335 | FL14: 1.2995 | FM14: 1.495 | FN14: 1.265 | FO14: 1.3915 | FP14: 2.646141306 | FQ14: 1.518 | FR14: 3.4335 | FS14: 1.5065 | FT14: 1.4375 | FU14: 1.0695 | FV14: 2.0815
A15: Double-Lok 24" | B15: 24 | C15: 960 | D15: 720 | E15: 480 | F15: 240 | I15: 51 | J15: 3 | N15: 0 | O15: 2 | Z15: Coils | AA15: 6 | AB15: 8 | AC15: 21 | AD15: 25 | AE15: 24 | AF15: 23 | AG15: 22 | AH15: n/a | AI15: n/a | AK15: 06" C/Z 16 ga | AL15: 2.54 | AO15: 2 | AP15: Hou | AQ15: Farm | AR15: 2HouFarm | AS15: 6 | AT15: =AO15 -> 2 | AW15: Las Cruces NM | AX15: Lacr | BA15: 00613 | BB15: Puerto Rico | BC15: ARECIBO | BE15: 13 | BF15: Alabama | BG15: Butler | BH15: Alabama Butler | BI15: Adel | BJ15: ADL-Zone 2 | BK15: ADL-MB-Zone 5 | BL15: =" " ->  | BM15: Tues / Fri | BO15: Adel_07" C/Z 12 ga | BP15: 500 | BQ15: 500 | BR15: 500 | BS15: 500 | BU15: 06" C/Z 16 ga | BW15: ROME | BX15: 3.15 | BY15: 3.15 | BZ15: 3.15 | CA15: 3.15 | CB15: 3.15 | CC15: 4.864898253 | CD15: 3.15 | CE15: 3.417979754 | CF15: 3.15 | CG15: 3.15 | CH15: 3.15 | CI15: 3.15 | CJ15: 3.15 | CK15: 3.15 | CL15: 3.15 | CM15: 3.15 | CN15: 3.15 | CO15: 4 | CP15: 3.15 | CQ15: 3.592188927 | CR15: 3.15 | CS15: 3.15 | CT15: 3.15 | CU15: 3.15 | CV15: 3.15 | CW15: 3.15 | CX15: 3.15 | CY15: 3.15 | CZ15: 3.980229502 | DA15: 4.440939799 | DB15: 3.15 | DC15: 3.15 | DD15: 3.977796647 | DE15: 3.15 | DF15: 3.15 | DG15: 3.15 | DH15: 3.580352528 | DI15: 4.840868529 | DJ15: 3.15 | DK15: 3.15 | DL15: 3.15 | DM15: 3.15 | DN15: 3.15 | DO15: 4 | DP15: 3.050226343 | DQ15: 3.15 | DR15: 3.15 | DS15: 3.15 | DT15: 3.15 | DV15: ID | DW15: 13 | DY15: ROME | DZ15: 1.9665 | EA15: 2.07 | EB15: 2.1045 | EC15: 1.8975 | ED15: 2.4955 | EE15: 4.864898253 | EG15: 3.417979754 | EH15: 2.2195 | EI15: 2.07 | EJ15: 2.2655 | EK15: 2.2655 | EL15: 1.909 | EM15: 2.598465447 | EN15: 2.2195 | EO15: 2.093 | EP15: 1.909 | EQ15: 4 | ER15: 2.445933262 | ES15: 3.592188927 | ET15: 2.1965 | EU15: 2.2885 | EV15: 2.024 | EW15: 1.909 | EX15: 2.2425 | EY15: 2.2195 | EZ15: 2.921 | FA15: 2.4035 | FB15: 3.980229502 | FC15: 4.440939799 | FD15: 1.8975 | FE15: 2.0125 | FF15: 3.977796647 | FG15: 2.346 | FH15: 2.047 | FI15: 1.656 | FJ15: 3.580352528 | FK15: 4.840868529 | FL15: 2.1965 | FM15: 1.955 | FN15: 1.978 | FO15: 1.909 | FP15: 2.3575 | FQ15: 4 | FR15: 3.050226343 | FS15: 2.1275 | FT15: 1.9665 | FU15: 2.599 | FV15: 2.1965
A16: FlexLoc | B16: 10.5 | C16: 2640 | D16: 1980 | E16: 1320 | F16: 660 | I16: 101 | J16: 4 | N16: 126 | O16: 3 | Z16: 1-1/4" Corrugated ABC | AA16: 3 | AB16: 5 | AC16: 21 | AD16: 25 | AE16: 24 | AF16: 23 | AG16: 22 | AK16: 07" C/Z 12 ga | AL16: 5.23 | AO16: 2 | AP16: Hou | AQ16: Lacr | AR16: 2HouLacr | AS16: 8 | AT16: =AO16 -> 2 | AW16: Lubbock TX | AX16: Lub | BA16: 00614 | BB16: Puerto Rico | BC16: ARECIBO | BE16: 14 | BF16: Alabama | BG16: Calhoun | BH16: Alabama Calhoun | BI16: Atlanta | BJ16: ATL-Zone 5 | BK16: ATL | BL16: =" " ->  | BM16: Wed | BO16: Adel_07" C/Z 16 ga | BP16: 500 | BQ16: 500 | BR16: 500 | BS16: 500 | BU16: 07" C/Z 12 ga | BW16: SALT LAKE CITY | BX16: 3.15 | BY16: 3.15 | BZ16: 3.365266756 | CA16: 3.206529789 | CB16: 3.380660991 | CC16: 3.15 | CD16: 3.15 | CE16: 3.4335 | CF16: 3.15 | CG16: 3.15 | CH16: 3.15 | CI16: 3.675211299 | CJ16: 3.15 | CK16: 3.15 | CL16: 3.248714235 | CM16: 3.15 | CN16: 3.15 | CO16: 3.15 | CP16: 3.15 | CQ16: 3.15 | CR16: 3.15 | CS16: 3.15 | CT16: 3.15 | CU16: 3.15 | CV16: 3.722348201 | CW16: 3.15 | CX16: 3.15 | CY16: 3.15 | CZ16: 3.15 | DA16: 3.15 | DB16: 3.094343681 | DC16: 4.233739449 | DD16: 3.15 | DE16: 3.15 | DF16: 3.15 | DG16: 3.002087788 | DH16: 3.15 | DI16: 3.4335 | DJ16: 3.15 | DK16: 3.15 | DL16: 3.15 | DM16: 3.15 | DN16: 3.949767483 | DO16: 3.15 | DP16: 3.4335 | DQ16: 3.069925778 | DR16: 3.15 | DS16: 3.15 | DT16: 3.15 | DV16: IL | DW16: 14 | DY16: SALT LAKE CITY | DZ16: 1.5065 | EA16: 1.6215 | EB16: 3.365266756 | EC16: 3.206529789 | ED16: 3.380660991 | EE16: 1.403 | EG16: 3.4335 | EH16: 1.633 | EI16: 1.6215 | EJ16: 1.286223733 | EK16: 3.675211299 | EL16: 1.311 | EM16: 1.6445 | EN16: 3.248714235 | EO16: 1.794 | EP16: 1.495 | EQ16: 1.863 | ER16: 1.748 | ES16: 1.311 | ET16: 1.357 | EU16: 1.5755 | EV16: 1.38 | EW16: 1.587 | EX16: 3.722348201 | EY16: 1.679 | EZ16: 1.771 | FA16: 1.6675 | FB16: 1.863 | FC16: 1.403 | FD16: 3.094343681 | FE16: 4.233739449 | FF16: 1.8285 | FG16: 1.357 | FH16: 1.564 | FI16: 3.002087788 | FJ16: 1.541 | FK16: 3.4335 | FL16: 1.449 | FM16: 1.771 | FN16: 1.3455 | FO16: 2.248440597 | FP16: 3.949767483 | FQ16: 1.5295 | FR16: 3.4335 | FS16: 3.069925778 | FT16: 1.5065 | FU16: 1.5295 | FV16: 2.848221191
A17: FW 12" | B17: 12 | C17: 1440 | D17: 1080 | E17: 720 | F17: 360 | I17: 151 | J17: 5 | N17: 251 | O17: 4 | Z17: 1/2 x 2-1/2 Corrugated | AA17: 6 | AB17: 8 | AC17: 21 | AD17: 25 | AE17: 24 | AF17: 23 | AG17: 22 | AH17: 2743 | AI17: 2800 | AK17: 07" C/Z 14 ga | AL17: 3.5 | AO17: 2 | AP17: Hou | AQ17: Pho | AR17: 2HouPho | AS17: 4 | AT17: =AO17 -> 2 | AW17: OkCity OK | AX17: Okc | BA17: 00616 | BB17: Puerto Rico | BC17: ARECIBO | BE17: 15 | BF17: Alabama | BG17: Calhoun | BH17: Alabama Calhoun | BI17: Adel | BJ17: ADL-Zone 6 | BK17: ADL-AB-Zone 6 | BL17: ADL-AB-Zone 6 | BM17: Tues / Fri | BO17: Adel_08" C/Z 12 ga | BP17: 500 | BQ17: 500 | BR17: 500 | BS17: 500 | BU17: 07" C/Z 16 ga | BW17: SAN ANTONIO | BX17: 3.15 | BY17: 3.15 | BZ17: 3.15 | CA17: 3.15 | CB17: 3.15 | CC17: 3.15 | CD17: 3.15 | CE17: 3.15 | CF17: 3.15 | CG17: 3.15 | CH17: 3.15 | CI17: 3.15 | CJ17: 3.15 | CK17: 3.15 | CL17: 3.15 | CM17: 3.15 | CN17: 3.15 | CO17: 3.15 | CP17: 3.15 | CQ17: 3.15 | CR17: 3.15 | CS17: 3.15 | CT17: 3.15 | CU17: 3.15 | CV17: 3.15 | CW17: 3.15 | CX17: 3.15 | CY17: 3.15 | CZ17: 3.15 | DA17: 3.15 | DB17: 3.15 | DC17: 3.15 | DD17: 3.15 | DE17: 3.15 | DF17: 3.15 | DG17: 3.15 | DH17: 3.15 | DI17: 3.15 | DJ17: 3.15 | DK17: 3.15 | DL17: 3.15 | DM17: 3.43 | DN17: 3.15 | DO17: 3.15 | DP17: 3.15 | DQ17: 3.15 | DR17: 3.15 | DS17: 3.15 | DT17: 3.15 | DV17: IN | DW17: 15 | DY17: SAN ANTONIO | DZ17: 1.702 | EA17: 2.0125 | EB17: 2.1275 | EC17: 1.8975 | ED17: 2.53 | EE17: 1.8515 | EG17: 1.8975 | EH17: 1.84 | EI17: 1.6675 | EJ17: 1.702 | EK17: 2.024 | EL17: 1.5525 | EM17: 1.4605 | EN17: 2.1275 | EO17: 1.61 | EP17: 2.438 | EQ17: 1.8515 | ER17: 1.7135 | ES17: 1.9205 | ET17: 1.587 | EU17: 1.702 | EV17: 1.771 | EW17: 1.7365 | EX17: 2.2655 | EY17: 1.679 | EZ17: 2.139 | FA17: 2.093 | FB17: 1.794 | FC17: 1.7135 | FD17: 2.645 | FE17: 1.909 | FF17: 1.863 | FG17: 1.633 | FH17: 2.438 | FI17: 1.863 | FJ17: 1.702 | FK17: 1.7135 | FL17: 1.587 | FM17: 1.955 | FN17: 1.6215 | FO17: 3.43 | FP17: 2.1965 | FQ17: 1.748 | FR17: 1.886 | FS17: 1.932 | FT17: 1.5525 | FU17: 1.679 | FV17: 2.4495
A18: LokSeam (Atlanta/Indy/S. Lake) 12" | B18: 12 | C18: 1056 | D18: 792 | E18: 528 | F18: 264 | I18: 201 | J18: 6 | Z18: Craftsman HB 12" AtLanta | AA18: 11 | AB18: 11 | AC18: 21 | AD18: 25 | AE18: 24 | AF18: 23 | AG18: 22 | AH18: 1518 | AI18: 3700 | AK18: 07" C/Z 16 ga | AL18: 2.9 | AO18: 2 | AP18: Indy | AQ18: Iwa | AR18: 2IndyIwa | AS18: 2 | AT18: 2 | AW18: Phoenix AZ | AX18: Pho | BA18: 00617 | BB18: Puerto Rico | BC18: BARCELONETA | BE18: 16 | BF18: Alabama | BG18: Chambers | BH18: Alabama Chambers | BI18: Adel | BJ18: ADL-Zone 2 | BK18: ADL-AB-Zone 5 | BL18: ADL-AB-Zone 5 | BM18: Tues / Fri | BO18: Adel_08" C/Z 14 ga | BP18: 500 | BQ18: 500 | BR18: 500 | BS18: 500 | BU18: 08" C/Z 12 ga | BW18: Fuel Surcharge | BX18: 0.46 | DV18: KS | DW18: 16
A19: LokSeam (Atlanta/Indy/S. Lake) 16" | B19: 16 | C19: 1056 | D19: 792 | E19: 528 | F19: 264 | Z19: Craftsman HB 12" Houston | AA19: 12 | AB19: 12 | AC19: 21 | AD19: 25 | AE19: 24 | AF19: 23 | AG19: 22 | AH19: 1518 | AI19: 3700 | AK19: 08" C/Z 12 ga | AL19: 5.23 | AO19: 2 | AP19: Iwa | AQ19: Indy | AR19: 2IwaIndy | AS19: 2 | AT19: 2 | AW19: Piedmont SC | AX19: Pied | BA19: 00622 | BB19: Puerto Rico | BC19: CABO ROJO | BE19: 17 | BF19: Alabama | BG19: Chambers | BH19: Alabama Chambers | BI19: Adel | BJ19: ADL-Zone 2 | BK19: ADL-MB-Zone 2 | BL19: =" " ->  | BM19: Tues / Fri | BO19: Adel_08" C/Z 16 ga | BP19: 500 | BQ19: 500 | BR19: 500 | BS19: 500 | BU19: 08" C/Z 14 ga | DV19: KY | DW19: 17
A20: LokSeam (Atlanta/Indy/S. Lake) 18" | B20: 18 | C20: 1056 | D20: 792 | E20: 528 | F20: 264 | Z20: Craftsman SB 12" Atlanta | AA20: 11 | AB20: 11 | AC20: 21 | AD20: 25 | AE20: 24 | AF20: 23 | AG20: 22 | AH20: 1337 | AI20: 4837 | AK20: 08" C/Z 14 ga | AL20: 3.5 | AO20: 2 | AP20: Okc | AQ20: Indy | AR20: =_xlfn.CONCAT(AO20,AP20,AQ20) -> 2OkcIndy | AS20: 3 | AT20: 2 | AW20: Raleigh NC | AX20: Ralg | BA20: 00623 | BB20: Puerto Rico | BC20: CABO ROJO | BE20: 18 | BF20: Alabama | BG20: Cherokee | BH20: Alabama Cherokee | BI20: Atlanta | BJ20: ATL-Zone 5 | BK20: ATL | BL20: =" " ->  | BM20: Wed | BO20: Adel_08" ES 12 ga | BP20: 100 | BQ20: 100 | BR20: 100 | BS20: 100 | BU20: 08" C/Z 16 ga | DV20: LA | DW20: 18
A21: Lokseam (Atwater) 12" | B21: 12 | C21: 1152 | D21: 864 | E21: 576 | F21: 288 | Z21: Craftsman SB 12" Houston | AA21: 12 | AB21: 12 | AC21: 21 | AD21: 25 | AE21: 24 | AF21: 23 | AG21: 22 | AH21: 1337 | AI21: 4837 | AK21: 08" C/Z 16 ga | AL21: 2.93 | AO21: 2 | AP21: Okc | AQ21: Rome | AR21: 2OkcRome | AS21: 6 | AT21: =AO21 -> 2 | AW21: Rome NY | AX21: Rome | BA21: 00624 | BB21: Puerto Rico | BC21: PENUELAS | BE21: 19 | BF21: Alabama | BG21: Cherokee | BH21: Alabama Cherokee | BI21: Adel | BJ21: ADL-Zone 6 | BK21: ADL-AB-Zone 6 | BL21: ADL-AB-Zone 6 | BM21: Tues / Fri | BO21: Adel_08" ES 14 ga | BP21: 100 | BQ21: 100 | BR21: 100 | BS21: 100 | BU21: 08" ES 12 ga | DV21: MA | DW21: 19
A22: Lokseam (Atwater) 16" | B22: 16 | C22: 1152 | D22: 864 | E22: 576 | F22: 288 | Z22: Craftsman HB 16.5" Atlanta | AA22: 11 | AB22: 11 | AC22: 21 | AD22: 25 | AE22: 24 | AF22: 23 | AG22: 22 | AH22: 1968 | AI22: 4837 | AK22: 08" ES 12 ga | AL22: 6.63 | AO22: 2 | AP22: Okc | AQ22: Frank | AR22: 2OkcFrank | AS22: 5 | AT22: =AO22 -> 2 | AW22: Salt Lake City | AX22: Slc | BA22: 00627 | BB22: Puerto Rico | BC22: CAMUY | BE22: 20 | BF22: Alabama | BG22: Chilton | BH22: Alabama Chilton | BI22: Adel | BJ22: ADL-Zone 5 | BK22: ADL-AB-Zone 5 | BL22: Zone 5 | BM22: Tues / Fri | BO22: Adel_08" ES 16 ga | BP22: 100 | BQ22: 100 | BR22: 100 | BS22: 100 | BU22: 08" ES 14 ga | DV22: MD | DW22: 20
A23: Lokseam (Atwater) 18" | B23: 18 | C23: 1152 | D23: 864 | E23: 576 | F23: 288 | Z23: Craftsman HB 16.5" Houston | AA23: 12 | AB23: 12 | AC23: 21 | AD23: 25 | AE23: 24 | AF23: 23 | AG23: 22 | AH23: 1968 | AI23: 4837 | AK23: 08" ES 14 ga | AL23: 4.44 | AO23: 2 | AP23: Okc | AQ23: Iwa | AR23: 2OkcIwa | AS23: 7 | AT23: =AO23 -> 2 | AW23: San Antonio | AX23: SanA | BA23: 00631 | BB23: Puerto Rico | BC23: LARES | BE23: 21 | BF23: Alabama | BG23: Chilton | BH23: Alabama Chilton | BI23: Adel | BJ23: ADL-Zone 5 | BK23: ADL-MB-Zone 5 | BL23: =" " ->  | BM23: Tues / Fri | BO23: Adel_09" C/Z 12 ga | BP23: 500 | BQ23: 500 | BR23: 500 | BS23: 500 | BU23: 08" ES 16 ga | DV23: ME | DW23: 21
A24: LokSeam (Houston) 12" | B24: 12 | C24: 1152 | D24: 864 | E24: 576 | F24: 288 | Z24: Craftsman SB 16.5" Atlanta | AA24: 11 | AB24: 11 | AC24: 21 | AD24: 25 | AE24: 24 | AF24: 23 | AG24: 22 | AH24: 1775 | AI24: 4837 | AK24: 08" ES 16 ga | AL24: 3.97 | AO24: 2 | AP24: Okc | AQ24: Ralg | AR24: 2OkcRalg | AS24: 9 | AT24: =AO24 -> 2 | AW24: Waller TX | AX24: Wall | BA24: 00636 | BB24: Puerto Rico | BC24: SAN GERMAN | BE24: 22 | BF24: Alabama | BG24: Choctaw | BH24: Alabama Choctaw | BI24: Adel | BJ24: ADL-Zone 5 | BK24: ADL-AB-Zone 5 | BL24: Zone 5 | BM24: Tues / Fri | BO24: Adel_09" C/Z 14 ga | BP24: 500 | BQ24: 500 | BR24: 500 | BS24: 500 | BU24: 09" C/Z 12 ga | DV24: MI | DW24: 22
A25: LokSeam (Houston) 16" | B25: 16 | C25: 1152 | D25: 864 | E25: 576 | F25: 288 | Z25: Craftsman SB 16.5" Houston | AA25: 12 | AB25: 12 | AC25: 21 | AD25: 25 | AE25: 24 | AF25: 23 | AG25: 22 | AH25: 1775 | AI25: 4837 | AK25: 09" C/Z 12 ga | AL25: 5.58 | AO25: 2 | AP25: Okc | AQ25: Pied | AR25: 2OkcPied | AS25: 11 | AT25: =AO25 -> 2 | BA25: 00637 | BB25: Puerto Rico | BC25: SABANA GRANDE | BE25: 23 | BF25: Alabama | BG25: Choctaw | BH25: Alabama Choctaw | BI25: Adel | BJ25: ADL-Zone 5 | BK25: ADL-MB-Zone 5 | BL25: =" " ->  | BM25: Tues / Fri | BO25: Adel_09" C/Z 16 ga | BP25: 500 | BQ25: 500 | BR25: 500 | BS25: 500 | BU25: 09" C/Z 14 ga | DV25: MN | DW25: 23
A26: LokSeam (Houston) 18" | B26: 18 | C26: 1152 | D26: 864 | E26: 576 | F26: 288 | Z26: Designer 12" | AA26: 11 | AB26: 11 | AC26: 21 | AD26: 25 | AE26: 24 | AF26: 23 | AG26: 22 | AH26: 1950 | AI26: 4275 | AK26: 09" C/Z 14 ga | AL26: 3.74 | AO26: 2 | AP26: Pho | AQ26: Slc | AR26: =_xlfn.CONCAT(AO26,AP26,AQ26) -> 2PhoSlc | AS26: 3 | AT26: 2 | BA26: 00638 | BB26: Puerto Rico | BC26: CIALES | BE26: 24 | BF26: Alabama | BG26: Clarke | BH26: Alabama Clarke | BI26: Adel | BJ26: ADL-Zone 5 | BK26: ADL-AB-Zone 5 | BL26: Zone 5 | BM26: Tues / Fri | BO26: Adel_1/2" X 2-1/2" Corrugated | BP26: 0 | BQ26: 0 | BR26: 0 | BS26: 0 | BU26: 09" C/Z 16 ga | DV26: MO | DW26: 24
A27: MasterLIne 16" | B27: 16 | C27: 1152 | D27: 864 | E27: 576 | F27: 288 | Z27: Designer 16" | AA27: 11 | AB27: 11 | AC27: 21 | AD27: 25 | AE27: 24 | AF27: 23 | AG27: 22 | AH27: 2400 | AI27: 4837 | AK27: 09" C/Z 16 ga | AL27: 2.9 | AO27: 2 | AP27: Rome | AQ27: Indy | AR27: 2RomeIndy | AS27: 3 | AT27: 2 | BA27: 00641 | BB27: Puerto Rico | BC27: UTUADO | BE27: 25 | BF27: Alabama | BG27: Clarke | BH27: Alabama Clarke | BI27: Adel | BJ27: ADL-Zone 5 | BK27: ADL-MB-Zone 5 | BL27: =" " ->  | BM27: Tues / Fri | BO27: Adel_1/4" X 1-1/4" Corrugated | BP27: 0 | BQ27: 0 | BR27: 0 | BS27: 0 | BU27: 1/2" X 2-1/2" Corrugated | DV27: MS | DW27: 25
A28: NuWall 12" | B28: 12 | C28: 792 | D28: 594 | E28: 396 | F28: 198 | Z28: Flatsheets 29-18g | AA28: 4 | AB28: 4 | AC28: 21 | AD28: 25 | AE28: 24 | AF28: 23 | AG28: 22 | AH28: width | AI28: varies | AK28: 10" C/Z 12 ga | AL28: 5.93 | AO28: 2 | AP28: Rome | AQ28: Atl | AR28: 2RomeAtl | AS28: 5 | AT28: =AO28 -> 2 | BA28: 00646 | BB28: Puerto Rico | BC28: DORADO | BE28: 26 | BF28: Alabama | BG28: Clay | BH28: Alabama Clay | BI28: Atlanta | BJ28: ATL-Zone 5 | BK28: ATL | BL28: =" " ->  | BM28: Wed | BO28: Adel_10" C/Z 12 ga | BP28: 500 | BQ28: 500 | BR28: 500 | BS28: 500 | BU28: 1/4" X 1-1/4" Corrugated | DV28: MT | DW28: 26
A29: Quicklok 12" | B29: 12 | C29: 792 | D29: 594 | E29: 396 | F29: 198 | Z29: Flexloc | AA29: 13 | AB29: 11 | AC29: 21 | AD29: 25 | AE29: 24 | AF29: 23 | AG29: 22 | AH29: 1175 | AI29: 4837 | AK29: 10" C/Z 14 ga | AL29: 3.97 | AO29: 2 | AP29: Rome | AQ29: Adel | AR29: 2RomeAdel | AS29: 7 | AT29: 2 | BA29: 00647 | BB29: Puerto Rico | BC29: GUANICA | BE29: 27 | BF29: Alabama | BG29: Clay | BH29: Alabama Clay | BI29: Adel | BJ29: ADL-Zone 6 | BK29: ADL-AB-Zone 6 | BL29: ADL-AB-Zone 6 | BM29: Tues / Fri | BO29: Adel_10" C/Z 14 ga | BP29: 500 | BQ29: 500 | BR29: 500 | BS29: 500 | BU29: 10" C/Z 12 ga | DV29: NC | DW29: 27
A30: Shadowrib 16" | B30: 16 | C30: 648 | D30: 486 | E30: 324 | F30: 162 | Z30: 5V Crimp Adel | AA30: 3 | AB30: 3 | AC30: 21 | AD30: 25 | AE30: 24 | AF30: 23 | AG30: 22 | AH30: 2743 | AI30: 2800 | AK30: 10" C/Z 16 ga | AL30: 3.3 | AO30: 2 | AP30: Rome | AQ30: Frank | AR30: 2RomeFrank | AS30: 4 | AT30: 2 | BA30: 00650 | BB30: Puerto Rico | BC30: FLORIDA | BE30: 28 | BF30: Alabama | BG30: Cleburne | BH30: Alabama Cleburne | BI30: Atlanta | BJ30: ATL-Zone 5 | BK30: ATL | BL30: =" " ->  | BM30: Wed | BO30: Adel_10" C/Z 16 ga | BP30: 500 | BQ30: 500 | BR30: 500 | BS30: 500 | BU30: 10" C/Z 14 ga | DV30: ND | DW30: 28
A31: Slimline 12" | B31: 12 | C31: 1920 | D31: 1440 | E31: 960 | F31: 480 | Z31: 5V Crimp Houston | AA31: 6 | AB31: 8 | AC31: 21 | AD31: 25 | AE31: 24 | AF31: 23 | AG31: 22 | AH31: 2743 | AI31: 2800 | AK31: 10" ES 12 ga | AL31: 7.95 | AO31: 2 | AP31: Rome | AQ31: Iwa | AR31: 2RomeIwa | AS31: 7 | AT31: 2 | BA31: 00652 | BB31: Puerto Rico | BC31: ARECIBO | BE31: 29 | BF31: Alabama | BG31: Cleburne | BH31: Alabama Cleburne | BI31: Adel | BJ31: ADL-Zone 6 | BK31: ADL-AB-Zone 6 | BL31: ADL-AB-Zone 6 | BM31: Tues / Fri | BO31: Adel_10" ES 12 ga | BP31: 100 | BQ31: 100 | BR31: 100 | BS31: 100 | BU31: 10" C/Z 16 ga | DV31: NE | DW31: 29
A32: Slimline 16" | B32: 16 | C32: 1080 | D32: 810 | E32: 540 | F32: 270 | Z32: FW | AA32: 11 | AB32: 11 | AC32: 21 | AD32: 25 | AE32: 24 | AF32: 23 | AG32: 22 | AH32: 1750 | AI32: 3700 | AK32: 10" ES 14 ga | AL32: 5.33 | AO32: 2 | AP32: Rome | AQ32: Ralg | AR32: 2RomeRalg | AS32: 9 | AT32: 2 | BA32: 00653 | BB32: Puerto Rico | BC32: GUANICA | BE32: 30 | BF32: Alabama | BG32: Coffee | BH32: Alabama Coffee | BI32: Adel | BJ32: ADL-Zone 5 | BK32: ADL-AB-Zone 5 | BL32: Zone 5 | BM32: Tues / Fri | BO32: Adel_10" ES 14 ga | BP32: 100 | BQ32: 100 | BR32: 100 | BS32: 100 | BU32: 10" ES 12 ga | DV32: NH | DW32: 30
A33: Soundwall Atlanta Only | B33: 16 | C33: 648 | D33: 486 | E33: 324 | F33: 162 | Z33: Imperial Rib | AA33: 3 | AB33: 5 | AC33: 21 | AD33: 25 | AE33: 24 | AF33: 23 | AG33: 22 | AH33: 4087 | AI33: 4087 | AK33: 10" ES 16 ga | AL33: 4.75 | AO33: 2 | AP33: Rome | AQ33: Pied | AR33: 2RomePied | AS33: 9 | AT33: 2 | BA33: 00656 | BB33: Puerto Rico | BC33: GUAYANILLA | BE33: 31 | BF33: Alabama | BG33: Coffee | BH33: Alabama Coffee | BI33: Adel | BJ33: ADL-Zone 5 | BK33: ADL-MB-Zone 5 | BL33: =" " ->  | BM33: Tues / Fri | BO33: Adel_10" ES 16 ga | BP33: 100 | BQ33: 100 | BR33: 100 | BS33: 100 | BU33: 10" ES 14 ga | DV33: NJ | DW33: 31
A34: SuperLok 12" | B34: 12 | C34: 960 | D34: 720 | E34: 480 | F34: 240 | Z34: Imperial Rib Drip Stop | AA34: 3 | AB34: 5 | AC34: 21 | AD34: 25 | AE34: 24 | AF34: 23 | AG34: 22 | AH34: 4087 | AI34: 4087 | AK34: 11" C/Z 12 ga | AL34: 6.28 | AO34: 2 | AP34: Rome | AQ34: Hou | AR34: 2RomeHou | AS34: 11 | AT34: 2 | BA34: 00659 | BB34: Puerto Rico | BC34: HATILLO | BE34: 32 | BF34: Alabama | BG34: Colbert | BH34: Alabama Colbert | BI34: Adel | BJ34: ADL-Zone 6 | BK34: ADL-AB-Zone 6 | BL34: ADL-AB-Zone 6 | BM34: Tues / Fri | BO34: Adel_11" C/Z 12 ga | BP34: 500 | BQ34: 500 | BR34: 500 | BS34: 500 | BU34: 10" ES 16 ga | DV34: NM | DW34: 32
A35: Trim Box 10' (works on Arch_SSR_Num Panels Tab Only) | B35: 12 | C35: 24 | D35: 24 | E35: 24 | F35: 24 | Z35: LokSeam 12" no peak/eave in SLC | AA35: 11 | AB35: 11 | AC35: 21 | AD35: 25 | AE35: 24 | AF35: 23 | AG35: 22 | AH35: 1800 | AI35: 3700 | AK35: 11" C/Z 14 ga | AL35: 4.21 | AO35: 2 | AP35: Slc | AQ35: Hou | AR35: 2SlcHou | AS35: 3 | AT35: 2 | BA35: 00660 | BB35: Puerto Rico | BC35: HORMIGUEROS | BE35: 33 | BF35: Alabama | BG35: Colbert | BH35: =_xlfn.CONCAT(BF35," ",BG35) -> Alabama Colbert | BI35: Atlanta | BJ35: ATL-Zone 5 | BK35: ATL | BL35: =" " ->  | BM35: Wed | BO35: Adel_11" C/Z 14 ga | BP35: 500 | BQ35: 500 | BR35: 500 | BS35: 500 | BU35: 11" C/Z 12 ga | DV35: NV | DW35: 33
A36: Trim Box 14'(works on Arch_SSR_Num Panels Tab Only) | B36: 12 | C36: 18 | D36: 18 | E36: 18 | F36: 18 | Z36: LokSeam 16" no peak/eave in SLC | AA36: 11 | AB36: 11 | AC36: 21 | AD36: 25 | AE36: 24 | AF36: 23 | AG36: 22 | AH36: 2200 | AI36: 4500 | AK36: 11" C/Z 16 ga | AL36: 3.65 | AO36: 2 | AP36: Slc | AQ36: Okc | AR36: 2SlcOkc | AS36: 6 | AT36: 2 | BA36: 00662 | BB36: Puerto Rico | BC36: ISABELA | BE36: 34 | BF36: Alabama | BG36: Conecuh | BH36: Alabama Conecuh | BI36: Adel | BJ36: ADL-Zone 5 | BK36: ADL-AB-Zone 5 | BL36: Zone 5 | BM36: Tues / Fri | BO36: Adel_11" C/Z 16 ga | BP36: 500 | BQ36: 500 | BR36: 500 | BS36: 500 | BU36: 11" C/Z 14 ga | DV36: NY | DW36: 34
A37: Trim Box 20' (works on Arch_SSR_Num Panels Tab Only) | B37: 12 | C37: 12 | D37: 12 | E37: 12 | F37: 12 | H37: Titled: Days | Z37: LokSeam 18" no peak/eave in SLC | AA37: 11 | AB37: 11 | AC37: 21 | AD37: 25 | AE37: 24 | AF37: 23 | AG37: 22 | AH37: 2400 | AI37: 4837 | AK37: 12" C/Z 12 ga | AL37: 6.63 | AO37: 2 | AP37: Slc | AQ37: SanA | AR37: 2SlcSanA | AS37: 5 | AT37: 2 | BA37: 00664 | BB37: Puerto Rico | BC37: JAYUYA | BE37: 35 | BF37: Alabama | BG37: Conecuh | BH37: Alabama Conecuh | BI37: Adel | BJ37: ADL-Zone 5 | BK37: ADL-MB-Zone 5 | BL37: =" " ->  | BM37: Tues / Fri | BO37: Adel_12" C/Z 12 ga | BP37: 500 | BQ37: 500 | BR37: 500 | BS37: 500 | BU37: 11" C/Z 16 ga | DV37: OH | DW37: 35
A38: SuperLok 16" | B38: 16 | C38: 960 | D38: 720 | E38: 480 | F38: 240 | H38: Day Num | I38: Name | J38: Col Ref | K38: Next Wk | Z38: MasterLine | AA38: 11 | AB38: 11 | AC38: 21 | AD38: 25 | AE38: 24 | AF38: 23 | AG38: 22 | AH38: 2400 | AI38: 4837 | AK38: 12" C/Z 14 ga | AL38: 4.44 | AO38: 2 | AP38: Slc | AQ38: Atl | AR38: 2SlcAtl | AS38: 6 | AT38: 2 | BA38: 00667 | BB38: Puerto Rico | BC38: LAJAS | BE38: 36 | BF38: Alabama | BG38: Coosa | BH38: Alabama Coosa | BI38: Adel | BJ38: ADL-Zone 5 | BK38: ADL-AB-Zone 5 | BL38: Zone 5 | BM38: Tues / Fri | BO38: Adel_12" C/Z 14 ga | BP38: 500 | BQ38: 500 | BR38: 500 | BS38: 500 | BU38: 12" C/Z 12 ga | DV38: OK | DW38: 36
A39: U-Dek (all except Atwater) 18" | B39: 18 | C39: 1200 | D39: 900 | E39: 600 | F39: 300 | H39: 1 | I39: Sunday | J39: 4 | K39: 8 | L39: 0 | Z39: Monarch Rib | AA39: 3 | AB39: 5 | AC39: 21 | AD39: 25 | AE39: 24 | AF39: 23 | AG39: 22 | AH39: 4087 | AI39: 4087 | AK39: 12" C/Z 16 ga | AL39: 3.97 | AO39: 2 | AP39: Slc | AQ39: Indy | AR39: 2SlcIndy | AS39: 6 | AT39: 2 | BA39: 00669 | BB39: Puerto Rico | BC39: LARES | BE39: 37 | BF39: Alabama | BG39: Coosa | BH39: Alabama Coosa | BI39: Adel | BJ39: ADL-Zone 5 | BK39: ADL-MB-Zone 5 | BL39: =" " ->  | BM39: Tues / Fri | BO39: Adel_12" C/Z 16 ga | BP39: 500 | BQ39: 500 | BR39: 500 | BS39: 500 | BU39: 12" C/Z 14 ga | DV39: OR | DW39: 37
A40: U-Dek (all except Atwater) 24" | B40: 24 | C40: 1200 | D40: 900 | E40: 600 | F40: 300 | H40: 2 | I40: Monday | J40: 4 | K40: 7 | L40: 0 | Z40: Nuwall | AA40: 14 | AB40: 14 | AC40: 21 | AD40: 25 | AE40: 24 | AF40: 23 | AG40: 22 | AH40: 2200 | AI40: 4500 | AO40: 2 | AP40: Slc | AQ40: Rome | AR40: 2SlcRome | AS40: 7 | AT40: 2 | BA40: 00670 | BB40: Puerto Rico | BC40: ANASCO | BE40: 38 | BF40: Alabama | BG40: Covington | BH40: Alabama Covington | BI40: Adel | BJ40: ADL-Zone 5 | BK40: ADL-AB-Zone 5 | BL40: Zone 5 | BM40: Tues / Fri | BO40: Adel_5V-Crimp | BP40: 100 | BQ40: 100 | BR40: 100 | BS40: 100 | BU40: 12" C/Z 16 ga | DV40: PA | DW40: 38
A41: U-Dek (Atwater) 18" | B41: 18 | C41: 960 | D41: 720 | E41: 480 | F41: 240 | H41: 3 | I41: Tuesday | J41: 5 | K41: 6 | L41: 1 | Z41: PBC | AA41: 6 | AB41: 8 | AC41: 21 | AD41: 25 | AE41: 24 | AF41: 23 | AG41: 22 | AH41: 4275 | AI41: 4275 | AO41: 2 | AP41: Slc | AQ41: Adel | AR41: 2SlcAdel | AS41: 7 | AT41: 2 | BA41: 00674 | BB41: Puerto Rico | BC41: MANATI | BE41: 39 | BF41: Alabama | BG41: Covington | BH41: Alabama Covington | BI41: Adel | BJ41: ADL-Zone 5 | BK41: ADL-MB-Zone 5 | BL41: =" " ->  | BM41: Tues / Fri | BO41: Adel_7.2 | BP41: 0 | BQ41: 0 | BR41: 0 | BS41: 0 | BU41: 5V-Crimp | DV41: RI | DW41: 39
A42: U-Dek (Atwater) 24" | B42: 24 | C42: 960 | D42: 720 | E42: 480 | F42: 240 | H42: 4 | I42: Wednesday | J42: 6 | K42: 5 | L42: 2 | Z42: PBD | AA42: 6 | AB42: 8 | AC42: 21 | AD42: 25 | AE42: 24 | AF42: 23 | AG42: 22 | AH42: 4275 | AI42: 4275 | AO42: 2 | AP42: Slc | AQ42: Frank | AR42: 2SlcFrank | AS42: 15 | AT42: =AO42 -> 2 | BA42: 00676 | BB42: Puerto Rico | BC42: MOCA | BE42: 40 | BF42: Alabama | BG42: Crenshaw | BH42: Alabama Crenshaw | BI42: Adel | BJ42: ADL-Zone 5 | BK42: ADL-AB-Zone 5 | BL42: Zone 5 | BM42: Tues / Fri | BO42: Adel_Artisan | BP42: 0 | BQ42: 0 | BR42: 0 | BS42: 0 | BU42: Artisan | DV42: SC | DW42: 40
A43: Vents 12" | B43: 12 | C43: 32 | D43: 32 | E43: 32 | F43: 32 | H43: 5 | I43: Thursday | J43: 7 | K43: 4 | L43: 3 | Z43: PBR | AA43: 4 | AB43: 6 | AC43: 21 | AD43: 25 | AE43: 24 | AF43: 23 | AG43: 22 | AH43: 4275 | AI43: 4275 | AO43: 2 | AP43: Slc | AQ43: Iwa | AR43: 2SlcIwa | AS43: 12 | AT43: =AO43 -> 2 | BA43: 00677 | BB43: Puerto Rico | BC43: RINCON | BE43: 41 | BF43: Alabama | BG43: Crenshaw | BH43: Alabama Crenshaw | BI43: Adel | BJ43: ADL-Zone 5 | BK43: ADL-MB-Zone 5 | BL43: =" " ->  | BM43: Tues / Fri | BO43: Adel_AVP | BP43: 0 | BQ43: 0 | BR43: 0 | BS43: 0 | BU43: AVP | DV43: SD | DW43: 41
A44: Vents 9" | B44: 9 | C44: 40 | D44: 40 | E44: 40 | F44: 40 | H44: 6 | I44: Friday | J44: 8 | K44: 3 | L44: 4 | Z44: PBR Drip Stop | AA44: 4 | AB44: 6 | AC44: 21 | AD44: 25 | AE44: 24 | AF44: 23 | AG44: 22 | AH44: 4275 | AI44: 4275 | AO44: 3 | AP44: Adel | AQ44: Atl | AR44: 3AdelAtl | AS44: 2 | AT44: 3 | BA44: 00678 | BB44: Puerto Rico | BC44: QUEBRADILLAS | BE44: 42 | BF44: Alabama | BG44: Cullman | BH44: Alabama Cullman | BI44: Atlanta | BJ44: ATL-Zone 5 | BK44: ATL | BL44: =" " ->  | BM44: Wed | BO44: Adel_BatLok/SupLok 12" | BP44: 0 | BQ44: 0 | BR44: 0 | BS44: 0 | BU44: BatLok/SupLok 12" | DV44: TN | DW44: 42
H45: 7 | I45: Saturday | J45: 4 | K45: 2 | L45: 4 | Z45: PBU all except SLC | AA45: 4 | AB45: 6 | AC45: 21 | AD45: 25 | AE45: 24 | AF45: 23 | AG45: 22 | AH45: 4275 | AI45: 4275 | AO45: 3 | AP45: Adel | AQ45: Frank | AR45: 3AdelFrank | AS45: 9 | AT45: =AO45 -> 3 | BA45: 00680 | BB45: Puerto Rico | BC45: MAYAGUEZ | BE45: 43 | BF45: Alabama | BG45: Cullman | BH45: Alabama Cullman | BI45: Adel | BJ45: ADL-Zone 6 | BK45: ADL-AB-Zone 6 | BL45: ADL-AB-Zone 6 | BM45: Tues / Fri | BO45: Adel_BatLok/SupLok 16" | BP45: 0 | BQ45: 0 | BR45: 0 | BS45: 0 | BU45: BatLok/SupLok 16" | DV45: TX | DW45: 43
Z46: PBU SLC only | AA46: 6 | AB46: 8 | AC46: 21 | AD46: 25 | AE46: 24 | AF46: 23 | AG46: 22 | AH46: 4275 | AI46: 4275 | AO46: 3 | AP46: Adel | AQ46: Indy | AR46: 3AdelIndy | AS46: 4 | AT46: 3 | BA46: 00681 | BB46: Puerto Rico | BC46: MAYAGUEZ | BE46: 44 | BF46: Alabama | BG46: Dale | BH46: Alabama Dale | BI46: Adel | BJ46: ADL-Zone 5 | BK46: ADL-AB-Zone 5 | BL46: Zone 5 | BM46: Tues / Fri | BO46: Adel_Classic | BP46: 0 | BQ46: 0 | BR46: 0 | BS46: 0 | BU46: Classic | DV46: UT | DW46: 44
Z47: Perforted Steel or Alum | AA47: 10 | AB47: 10 | AC47: 21 | AD47: 25 | AE47: 24 | AF47: 23 | AG47: 22 | AO47: 3 | AP47: Adel | AQ47: Brge | AR47: 3AdelBrge | AS47: 3 | AT47: 3 | BA47: 00683 | BB47: Puerto Rico | BC47: SAN GERMAN | BE47: 45 | BF47: Alabama | BG47: Dale | BH47: Alabama Dale | BI47: Adel | BJ47: ADL-Zone 5 | BK47: ADL-MB-Zone 5 | BL47: =" " ->  | BM47: Tues / Fri | BO47: Adel_Craftsman HB 12" | BP47: 0 | BQ47: 0 | BR47: 0 | BS47: 0 | BU47: Craftsman HB 12" | DV47: VA | DW47: 45
H48: Titled: Route | Z48: Perma-Clad | AA48: 3 | AB48: 5 | AC48: 21 | AD48: 25 | AE48: 24 | AF48: 23 | AG48: 22 | AH48: 4087 | AI48: 4087 | AO48: 3 | AP48: Atl | AQ48: Adel | AR48: 3AtlAdel | AS48: 2 | AT48: 3 | BA48: 00685 | BB48: Puerto Rico | BC48: SAN SEBASTIAN | BE48: 46 | BF48: Alabama | BG48: Dallas | BH48: Alabama Dallas | BI48: Adel | BJ48: ADL-Zone 5 | BK48: ADL-AB-Zone 5 | BL48: Zone 5 | BM48: Tues / Fri | BO48: Adel_Craftsman HB 16.5" | BP48: 0 | BQ48: 0 | BR48: 0 | BS48: 0 | BU48: Craftsman HB 16.5" | DV48: VT | DW48: 46
A49: Yes | I49: Options | Z49: QwikLok Atlanta | AA49: 14 | AB49: 14 | AC49: 21 | AD49: 25 | AE49: 24 | AF49: 23 | AG49: 22 | AH49: 2125 | AI49: 4275 | AO49: 3 | AP49: Atl | AQ49: Pied | AR49: 3AtlPied | AS49: 4 | AT49: =AO49 -> 3 | BA49: 00687 | BB49: Puerto Rico | BC49: MOROVIS | BE49: 47 | BF49: Alabama | BG49: Dallas | BH49: Alabama Dallas | BI49: Adel | BJ49: ADL-Zone 5 | BK49: ADL-MB-Zone 5 | BL49: =" " ->  | BM49: Tues / Fri | BO49: Adel_Craftsman SB 12" | BP49: 0 | BQ49: 0 | BR49: 0 | BS49: 0 | BU49: Craftsman SB 12" | DV49: WA | DW49: 47
A50: No | I50: Revised | Z50: QwikLok Houston | AA50: 14 | AB50: 14 | AC50: 21 | AD50: 25 | AE50: 24 | AF50: 23 | AG50: 22 | AH50: 2125 | AI50: 4275 | AO50: 3 | AP50: Atl | AQ50: Rome | AR50: 3AtlRome | AS50: 3 | AT50: 3 | BA50: 00688 | BB50: Puerto Rico | BC50: ARECIBO | BE50: 48 | BF50: Alabama | BG50: De Kalb | BH50: Alabama De Kalb | BI50: Atlanta | BJ50: ATL-Zone 5 | BK50: ATL | BL50: =" " ->  | BM50: Wed | BO50: Adel_Craftsman SB 16.5" | BP50: 0 | BQ50: 0 | BR50: 0 | BS50: 0 | BU50: Craftsman SB 16.5" | DV50: WI | DW50: 48
I51: N/A | Z51: Rain Guard | AA51: 6 | AB51: 8 | AC51: 21 | AD51: 25 | AE51: 24 | AF51: 23 | AG51: 22 | AH51: 4087 | AI51: 4087 | AO51: 3 | AP51: Hou | AQ51: Brge | AR51: 3HouBrge | AS51: 2 | AT51: 3 | BA51: 00690 | BB51: Puerto Rico | BC51: AGUADILLA | BE51: 49 | BF51: Alabama | BG51: De Kalb | BH51: Alabama De Kalb | BI51: Adel | BJ51: ADL-Zone 6 | BK51: ADL-AB-Zone 6 | BL51: ADL-AB-Zone 6 | BM51: Tues / Fri | BO51: Adel_Cutoff Time | BP51: 10:00 AM | BQ51: 10:00 AM | BR51: 10:00 AM | BS51: 10:00 AM | BU51: Designer 12" | DV51: WV | DW51: 49
A52: "Please be sure to check and ALIGN your load date with the DAY or WEEK the producing plant is running your profile. You can click on the link below to get to that tool: Because of this large quanitity we cannot produce and put material on the floor." You are now shipping from the PRODUCING PLANT. | Z52: Regal Rib | AA52: 3 | AB52: 5 | AC52: 21 | AD52: 25 | AE52: 24 | AF52: 23 | AG52: 22 | AH52: 4087 | AI52: 4087 | AO52: 3 | AP52: Hou | AQ52: Clvd | AR52: 3HouClvd | AS52: 2 | AT52: 3 | BA52: 00692 | BB52: Puerto Rico | BC52: VEGA ALTA | BE52: 50 | BF52: Alabama | BG52: Elmore | BH52: Alabama Elmore | BI52: Adel | BJ52: ADL-Zone 5 | BK52: ADL-AB-Zone 5 | BL52: Zone 5 | BM52: Tues / Fri | BO52: Adel_Designer 12" | BP52: 0 | BQ52: 0 | BR52: 0 | BS52: 0 | BU52: Designer 16" | DV52: WY | DW52: 50
Z53: Retro R | AA53: 6 | AB53: 8 | AC53: 21 | AD53: 25 | AE53: 24 | AF53: 23 | AG53: 22 | AH53: 4087 | AI53: 4087 | AO53: 3 | AP53: Hou | AQ53: Iwa | AR53: 3HouIwa | AS53: 3 | AT53: 3 | BA53: 00693 | BB53: Puerto Rico | BC53: VEGA ALTA | BE53: 51 | BF53: Alabama | BG53: Elmore | BH53: Alabama Elmore | BI53: Adel | BJ53: ADL-Zone 5 | BK53: ADL-MB-Zone 5 | BL53: =" " ->  | BM53: Tues / Fri | BO53: Adel_Designer 16" | BP53: 0 | BQ53: 0 | BR53: 0 | BS53: 0 | BU53: Flexloc 9.5"
Z54: Rugged Rib | AA54: 3 | AB54: 5 | AC54: 21 | AD54: 25 | AE54: 24 | AF54: 23 | AG54: 22 | AH54: 4087 | AI54: 4087 | AO54: 3 | AP54: Hou | AQ54: SanA | AR54: 3HouSanA | AS54: 2 | AT54: 3 | BA54: 00694 | BB54: Puerto Rico | BC54: VEGA ALTA | BE54: 52 | BF54: Alabama | BG54: Escambia | BH54: Alabama Escambia | BI54: Adel | BJ54: ADL-Zone 5 | BK54: ADL-AB-Zone 5 | BL54: Zone 5 | BM54: Tues / Fri | BO54: Adel_Flexloc 9.5" | BP54: 0 | BQ54: 0 | BR54: 0 | BS54: 0 | BU54: FW
Z55: Rustic C - SLC Only | AA55: 6 | AB55: 8 | AC55: 21 | AD55: 25 | AE55: 24 | AF55: 23 | AG55: 22 | AO55: 3 | AP55: Indy | AQ55: Atl | AR55: 3IndyAtl | AS55: 2 | AT55: 3 | BA55: 00698 | BB55: Puerto Rico | BC55: YAUCO | BE55: 53 | BF55: Alabama | BG55: Escambia | BH55: Alabama Escambia | BI55: Adel | BJ55: ADL-Zone 5 | BK55: ADL-MB-Zone 5 | BL55: =" " ->  | BM55: Tues / Fri | BO55: Adel_FW | BP55: 0 | BQ55: 0 | BR55: 0 | BS55: 0 | BU55: LokSeam 12"
Z56: Shadowrib Atllanta | AA56: 13 | AB56: 13 | AC56: 21 | AD56: 25 | AE56: 24 | AF56: 23 | AG56: 22 | AH56: 2575 | AI56: 2993 | AO56: 3 | AP56: Indy | AQ56: Ralg | AR56: 3IndyRalg | AS56: 8 | AT56: =AO56 -> 3 | BA56: 00703 | BB56: Puerto Rico | BC56: AGUAS BUENAS | BE56: 54 | BF56: Alabama | BG56: Etowah | BH56: Alabama Etowah | BI56: Atlanta | BJ56: ATL-Zone 5 | BK56: ATL | BL56: =" " ->  | BM56: Wed | BO56: Adel_LokSeam 12" | BP56: 0 | BQ56: 0 | BR56: 0 | BS56: 0 | BU56: LokSeam 16"
A57: OK, proceed to get your dates | Z57: Shadowrib Houston | AA57: 13 | AB57: 13 | AC57: 21 | AD57: 25 | AE57: 24 | AF57: 23 | AG57: 22 | AH57: 2575 | AI57: 2993 | AO57: 3 | AP57: Indy | AQ57: Pied | AR57: 3IndyPied | AS57: 7 | AT57: =AO57 -> 3 | BA57: 00704 | BB57: Puerto Rico | BC57: GUAYAMA | BE57: 55 | BF57: Alabama | BG57: Etowah | BH57: Alabama Etowah | BI57: Adel | BJ57: ADL-Zone 6 | BK57: ADL-AB-Zone 6 | BL57: ADL-AB-Zone 6 | BM57: Tues / Fri | BO57: Adel_LokSeam 16" | BP57: 0 | BQ57: 0 | BR57: 0 | BS57: 0 | BU57: LokSeam 18"
Z58: Slimline 16" SLC/ROME ZONE 7 ONLY | AA58: 4 | AB58: 6 | AC58: 21 | AD58: 25 | AE58: 24 | AF58: 23 | AG58: 22 | AH58: 2018 | AI58: 4087 | AO58: 3 | AP58: Indy | AQ58: Adel | AR58: =_xlfn.CONCAT(AO58,AP58,AQ58) -> 3IndyAdel | AS58: 2 | AT58: =AO58 -> 3 | BA58: 00705 | BB58: Puerto Rico | BC58: AIBONITO | BE58: 56 | BF58: Alabama | BG58: Fayette | BH58: =_xlfn.CONCAT(BF58," ",BG58) -> Alabama Fayette | BI58: Atlanta | BJ58: ATL-Zone 5 | BK58: ATL | BL58: =" " ->  | BM58: Wed | BO58: Adel_LokSeam 18" | BP58: 0 | BQ58: 0 | BR58: 0 | BS58: 0 | BU58: MasterLine
Z59: Slimline 16" Rome all except zone 7 | AA59: 3 | AB59: 5 | AC59: 21 | AD59: 25 | AE59: 24 | AF59: 23 | AG59: 22 | AH59: 2018 | AI59: 4087 | AO59: 3 | AP59: Indy | AQ59: Rome | AR59: 3IndyRome | AS59: 3 | AT59: 3 | BA59: 00707 | BB59: Puerto Rico | BC59: MAUNABO | BE59: 57 | BF59: Alabama | BG59: Fayette | BH59: Alabama Fayette | BI59: Adel | BJ59: ADL-Zone 6 | BK59: ADL-AB-Zone 6 | BL59: ADL-AB-Zone 6 | BM59: Tues / Fri | BO59: Adel_MasterLine | BP59: 0 | BQ59: 0 | BR59: 0 | BS59: 0 | BU59: Monarch Rib
Z60: Soundwall Atllanta | AA60: 15 | AB60: 15 | AC60: 45 | AD60: 45 | AE60: 45 | AF60: 45 | AG60: 45 | AO60: 3 | AP60: Pho | AQ60: Slc | AR60: 3PhoSlc | AS60: 3 | AT60: 3 | BA60: 00714 | BB60: Puerto Rico | BC60: ARROYO | BE60: 58 | BF60: Alabama | BG60: Franklin | BH60: Alabama Franklin | BI60: Adel | BJ60: ADL-Zone 6 | BK60: ADL-AB-Zone 6 | BL60: ADL-AB-Zone 6 | BM60: Tues / Fri | BO60: Adel_Monarch Rib | BP60: 0 | BQ60: 0 | BR60: 0 | BS60: 0 | BU60: Nuwall
Z61: Stormproof | AA61: 3 | AB61: 5 | AC61: 21 | AD61: 25 | AE61: 24 | AF61: 23 | AG61: 22 | AH61: 4087 | AI61: 4087 | AO61: 3 | AP61: Pho | AQ61: Lacr | AR61: 3PhoLacr | AS61: 3 | AT61: 3 | BA61: 00715 | BB61: Puerto Rico | BC61: PONCE | BE61: 59 | BF61: Alabama | BG61: Franklin | BH61: =_xlfn.CONCAT(BF61," ",BG61) -> Alabama Franklin | BI61: Adel | BJ61: Atlanta | BK61: ATL-Zone 5 | BL61: ATL | BM61: Wed | BO61: Adel_Nuwall | BP61: 0 | BQ61: 0 | BR61: 0 | BS61: 0 | BU61: PBC
Z62: Stormproof Drip Stop | AA62: 3 | AB62: 5 | AC62: 21 | AD62: 25 | AE62: 24 | AF62: 23 | AG62: 22 | AH62: 4087 | AI62: 4087 | AO62: 3 | AP62: Pho | AQ62: Albq | AR62: 3PhoAlbq | AS62: 3 | AT62: 3 | BA62: 00718 | BB62: Puerto Rico | BC62: NAGUABO | BE62: 60 | BF62: Alabama | BG62: Geneva | BH62: Alabama Geneva | BI62: Adel | BJ62: ADL-Zone 5 | BK62: ADL-AB-Zone 5 | BL62: Zone 5 | BM62: Tues / Fri | BO62: Adel_PBC | BP62: 0 | BQ62: 0 | BR62: 0 | BS62: 0 | BU62: PBR
Z63: Structural Parts Galvz | AA63: 5 | AB63: 7 | AC63: 8 | AD63: 8 | AE63: 8 | AF63: 8 | AG63: 8 | AO63: 3 | AP63: Pho | AQ63: Farm | AR63: 3PhoFarm | AS63: 3 | AT63: 3 | BA63: 00719 | BB63: Puerto Rico | BC63: NARANJITO | BE63: 61 | BF63: Alabama | BG63: Geneva | BH63: Alabama Geneva | BI63: Adel | BJ63: ADL-Zone 5 | BK63: ADL-MB-Zone 5 | BL63: =" " ->  | BM63: Tues / Fri | BO63: Adel_PBR | BP63: 500 | BQ63: 500 | BR63: 500 | BS63: 500 | BU63: PBU
Z64: Structural Parts Red-Ox or Gary-Ox | AA64: 5 | AB64: 7 | AC64: 8 | AD64: 8 | AE64: 8 | AF64: 8 | AG64: 8 | AO64: 3 | AP64: Iwa | AQ64: Indy | AR64: 3IwaIndy | AS64: 2 | AT64: 3 | BA64: 00720 | BB64: Puerto Rico | BC64: OROCOVIS | BE64: 62 | BF64: Alabama | BG64: Greene | BH64: Alabama Greene | BI64: Adel | BJ64: ADL-Zone 5 | BK64: ADL-AB-Zone 5 | BL64: Zone 5 | BM64: Tues / Fri | BO64: Adel_PBU | BP64: 500 | BQ64: 500 | BR64: 500 | BS64: 500 | BU64: Perma-Clad (P-36)
Z65: Trim 26 or 29 Ga | AA65: 4 | AB65: 6 | AC65: 21 | AD65: 25 | AE65: 24 | AF65: 23 | AG65: 22 | AO65: 3 | AP65: Iwa | AQ65: Frank | AR65: 3IwaFrank | AS65: 4 | AT65: =AO65 -> 3 | BA65: 00721 | BB65: Puerto Rico | BC65: RIO GRANDE | BE65: 63 | BF65: Alabama | BG65: Greene | BH65: Alabama Greene | BI65: Adel | BJ65: ADL-Zone 5 | BK65: ADL-MB-Zone 5 | BL65: =" " ->  | BM65: Tues / Fri | BO65: Adel_Perma-Clad (P-36) | BP65: 0 | BQ65: 0 | BR65: 0 | BS65: 0 | BU65: QwikLok
Z66: Trim 24, 22, 20, 18 Ga | AA66: 6 | AB66: 8 | AC66: 21 | AD66: 25 | AE66: 24 | AF66: 23 | AG66: 22 | AO66: 3 | AP66: Iwa | AQ66: Rome | AR66: 3IwaRome | AS66: 5 | AT66: =AO66 -> 3 | BA66: 00723 | BB66: Puerto Rico | BC66: PATILLAS | BE66: 64 | BF66: Alabama | BG66: Hale | BH66: Alabama Hale | BI66: Adel | BJ66: ADL-Zone 5 | BK66: ADL-AB-Zone 5 | BL66: Zone 5 | BM66: Tues / Fri | BO66: Adel_QwikLok | BP66: 0 | BQ66: 0 | BR66: 0 | BS66: 0 | BU66: Rain Guard (Ameri-drain)
Z67: WeatherSafe | AA67: 3 | AB67: 5 | AC67: 21 | AD67: 25 | AE67: 24 | AF67: 23 | AG67: 22 | AH67: 4087 | AI67: 4087 | AO67: 3 | AP67: Iwa | AQ67: Atl | AR67: 3IwaAtl | AS67: 4 | AT67: =AO67 -> 3 | BA67: 00725 | BB67: Puerto Rico | BC67: CAGUAS | BE67: 65 | BF67: Alabama | BG67: Hale | BH67: Alabama Hale | BI67: Adel | BJ67: ADL-Zone 5 | BK67: ADL-MB-Zone 5 | BL67: =" " ->  | BM67: Tues / Fri | BO67: Adel_Rain Guard (Ameri-drain) | BP67: 0 | BQ67: 0 | BR67: 0 | BS67: 0 | BU67: Regal Rib
Z68: Udek/Dblok 18" | AA68: 11 | AB68: 11 | AC68: 21 | AD68: 25 | AE68: 24 | AF68: 23 | AG68: 22 | AH68: 2400 | AI68: 4837 | AO68: 3 | AP68: Iwa | AQ68: Adel | AR68: 3IwaAdel | AS68: 6 | AT68: =AO68 -> 3 | BA68: 00726 | BB68: Puerto Rico | BC68: CAGUAS | BE68: 66 | BF68: Alabama | BG68: Henry | BH68: Alabama Henry | BI68: Adel | BJ68: ADL-Zone 5 | BK68: ADL-AB-Zone 5 | BL68: Zone 5 | BM68: Tues / Fri | BO68: Adel_Regal Rib | BP68: 0 | BQ68: 0 | BR68: 0 | BS68: 0 | BU68: Retro R
Z69: Udek/Dblok 24" Glmpus | AA69: 6 | AB69: 8 | AC69: 21 | AD69: 25 | AE69: 24 | AF69: 23 | AG69: 22 | AH69: 2993 | AI69: 2993 | AO69: 4 | AP69: Adel | AQ69: Atl | AR69: 4AdelAtl | AS69: 2 | AT69: 4 | BA69: 00729 | BB69: Puerto Rico | BC69: CANOVANAS | BE69: 67 | BF69: Alabama | BG69: Henry | BH69: Alabama Henry | BI69: Adel | BJ69: ADL-Zone 5 | BK69: ADL-MB-Zone 5 | BL69: =" " ->  | BM69: Tues / Fri | BO69: Adel_Retro R | BP69: 0 | BQ69: 0 | BR69: 0 | BS69: 0 | BU69: Rugged Rib
Z70: Udek/Dblok 24" | AA70: 11 | AB70: 11 | AC70: 21 | AD70: 25 | AE70: 24 | AF70: 23 | AG70: 22 | AH70: 2993 | AI70: 2993 | AO70: 4 | AP70: Adel | AQ70: Frank | AR70: 4AdelFrank | AS70: 8 | AT70: =AO70 -> 4 | BA70: 00731 | BB70: Puerto Rico | BC70: PONCE | BE70: 68 | BF70: Alabama | BG70: Houston | BH70: Alabama Houston | BI70: Adel | BJ70: ADL-Zone 5 | BK70: ADL-AB-Zone 5 | BL70: Zone 5 | BM70: Tues / Fri | BO70: Adel_Rugged Rib | BP70: 0 | BQ70: 0 | BR70: 0 | BS70: 0 | BU70: Shadowrib
AO71: 4 | AP71: Adel | AQ71: Pied | AR71: 4AdelPied | AS71: 2 | AT71: 4 | BA71: 00732 | BB71: Puerto Rico | BC71: PONCE | BE71: 69 | BF71: Alabama | BG71: Houston | BH71: Alabama Houston | BI71: Adel | BJ71: ADL-Zone 5 | BK71: ADL-MB-Zone 5 | BL71: =" " ->  | BM71: Tues / Fri | BO71: Adel_Shadowrib | BP71: 0 | BQ71: 0 | BR71: 0 | BS71: 0 | BU71: Slimline 12"
AO72: 4 | AP72: Adel | AQ72: Rome | AR72: 4AdelRome | AS72: 5 | AT72: 4 | BA72: 00733 | BB72: Puerto Rico | BC72: PONCE | BE72: 70 | BF72: Alabama | BG72: Jackson | BH72: Alabama Jackson | BI72: Atlanta | BJ72: ATL-Zone 5 | BK72: ATL | BL72: =" " ->  | BM72: Wed | BO72: Adel_Slimline 12" | BP72: 0 | BQ72: 0 | BR72: 0 | BS72: 0 | BU72: Slimline 16"
AO73: 4 | AP73: Adel | AQ73: Indy | AR73: 4AdelIndy | AS73: 3 | AT73: 4 | BA73: 00734 | BB73: Puerto Rico | BC73: PONCE | BE73: 71 | BF73: Alabama | BG73: Jackson | BH73: Alabama Jackson | BI73: Adel | BJ73: ADL-Zone 6 | BK73: ADL-AB-Zone 6 | BL73: ADL-AB-Zone 6 | BM73: Tues / Fri | BO73: Adel_Slimline 16" | BP73: 0 | BQ73: 0 | BR73: 0 | BS73: 0 | BU73: Stormproof (Imperial Rib)
AO74: 4 | AP74: Atl | AQ74: Adel | AR74: 4AtlAdel | AS74: 2 | AT74: 4 | BA74: 00735 | BB74: Puerto Rico | BC74: CEIBA | BE74: 72 | BF74: Alabama | BG74: Jefferson | BH74: Alabama Jefferson | BI74: Atlanta | BJ74: ATL-Zone 5 | BK74: ATL | BL74: =" " ->  | BM74: Wed | BO74: Adel_Stormproof (Imperial Rib) | BP74: 100 | BQ74: 100 | BR74: 100 | BS74: 100 | BU74: Trim Breaks
AO75: 4 | AP75: Atl | AQ75: Pied | AR75: 4AtlPied | AS75: 5 | AT75: =AO75 -> 4 | BA75: 00736 | BB75: Puerto Rico | BC75: CAYEY | BE75: 73 | BF75: Alabama | BG75: Jefferson | BH75: Alabama Jefferson | BI75: Adel | BJ75: ADL-Zone 6 | BK75: ADL-AB-Zone 6 | BL75: ADL-AB-Zone 6 | BM75: Tues / Fri | BO75: Adel_Trim Breaks | BP75: 100 | BQ75: 100 | BR75: 100 | BS75: 100 | BU75: Udek/Dblok 18"
AO76: 4 | AP76: Atl | AQ76: Indy | AR76: 4AtlIndy | AS76: 2 | AT76: 4 | BA76: 00737 | BB76: Puerto Rico | BC76: CAYEY | BE76: 74 | BF76: Alabama | BG76: Lamar | BH76: Alabama Lamar | BI76: Atlanta | BJ76: ATL-Zone 5 | BK76: ATL | BL76: =" " ->  | BM76: Wed | BO76: Adel_Udek/Dblok 18" | BP76: 0 | BQ76: 0 | BR76: 0 | BS76: 0 | BU76: Udek/Dblok 24"
AO77: 4 | AP77: Atl | AQ77: Mem | AR77: 4AtlMem | AS77: 2 | AT77: 4 | BA77: 00738 | BB77: Puerto Rico | BC77: FAJARDO | BE77: 75 | BF77: Alabama | BG77: Lamar | BH77: Alabama Lamar | BI77: Adel | BJ77: ADL-Zone 6 | BK77: ADL-AB-Zone 6 | BL77: ADL-AB-Zone 6 | BM77: Tues / Fri | BO77: Adel_Udek/Dblok 24" | BP77: 0 | BQ77: 0 | BR77: 0 | BS77: 0 | BU77: Vintage Rib
AO78: 4 | AP78: Atl | AQ78: Ralg | AR78: 4AtlRalg | AS78: 2 | AT78: 4 | BA78: 00739 | BB78: Puerto Rico | BC78: CIDRA | BE78: 76 | BF78: Alabama | BG78: Lauderdale | BH78: Alabama Lauderdale | BI78: Adel | BJ78: ADL-Zone 6 | BK78: ADL-AB-Zone 6 | BL78: ADL-AB-Zone 6 | BM78: Tues / Fri | BO78: Adel_Vintage Rib | BP78: 0 | BQ78: 0 | BR78: 0 | BS78: 0 | BU78: Vistashadow
AO79: 4 | AP79: Hou | AQ79: Adel | AR79: 4HouAdel | AS79: 5 | AT79: 4 | BA79: 00740 | BB79: Puerto Rico | BC79: FAJARDO | BE79: 77 | BF79: Alabama | BG79: Lauderdale | BH79: =_xlfn.CONCAT(BF79," ",BG79) -> Alabama Lauderdale | BI79: Atlanta | BJ79: ATL-Zone 5 | BK79: ATL | BL79: =" " ->  | BM79: Wed | BO79: Adel_Vistashadow | BP79: 0 | BQ79: 0 | BR79: 0 | BS79: 0 | BU79: Vistasheen
AO80: 4 | AP80: Hou | AQ80: Atl | AR80: 4HouAtl | AS80: 3 | AT80: 4 | BA80: 00741 | BB80: Puerto Rico | BC80: HUMACAO | BE80: 78 | BF80: Alabama | BG80: Lawrence | BH80: Alabama Lawrence | BI80: Adel | BJ80: ADL-Zone 6 | BK80: ADL-AB-Zone 6 | BL80: ADL-AB-Zone 6 | BM80: Tues / Fri | BO80: Adel_Vistasheen | BP80: 0 | BQ80: 0 | BR80: 0 | BS80: 0 | BU80: WeatherSaFe (7/8 Wide Rib)
AO81: 4 | AP81: Hou | AQ81: Wall | AR81: 4HouWall | AS81: 2 | AT81: 4 | BA81: 00744 | BB81: Puerto Rico | BC81: NAGUABO | BE81: 79 | BF81: Alabama | BG81: Lawrence | BH81: =_xlfn.CONCAT(BF81," ",BG81) -> Alabama Lawrence | BI81: Atlanta | BJ81: ATL-Zone 5 | BK81: ATL | BL81: =" " ->  | BM81: Wed | BO81: Adel_WeatherSaFe (7/8 Wide Rib) | BP81: 0 | BQ81: 0 | BR81: 0 | BS81: 0
AO82: 5 | AP82: Adel | AQ82: Atl | AR82: 5AdelAtl | AS82: 2 | AT82: 5 | BA82: 00745 | BB82: Puerto Rico | BC82: RIO GRANDE | BE82: 80 | BF82: Alabama | BG82: Lee | BH82: Alabama Lee | BI82: Adel | BJ82: ADL-Zone 5 | BK82: ADL-AB-Zone 5 | BL82: Zone 5 | BM82: Tues / Fri | BO82: Atl_03" C/Z 14 ga | BP82: 500 | BQ82: 500 | BR82: 500 | BS82: 500
AO83: 5 | AP83: Adel | AQ83: Indy | AR83: 5AdelIndy | AS83: 4 | AT83: 5 | BA83: 00751 | BB83: Puerto Rico | BC83: SALINAS | BE83: 81 | BF83: Alabama | BG83: Lee | BH83: Alabama Lee | BI83: Adel | BJ83: ADL-Zone 5 | BK83: ADL-MB-Zone 5 | BL83: =" " ->  | BM83: Tues / Fri | BO83: Atl_03" C/Z 16 ga | BP83: 500 | BQ83: 500 | BR83: 500 | BS83: 500
AO84: 5 | AP84: Adel | AQ84: Frank | AR84: 5AdelFrank | AS84: 7 | AT84: =AO84 -> 5 | BA84: 00754 | BB84: Puerto Rico | BC84: SAN LORENZO | BE84: 82 | BF84: Alabama | BG84: Limestone | BH84: Alabama Limestone | BI84: Atlanta | BJ84: ATL-Zone 5 | BK84: ATL | BL84: =" " ->  | BM84: Wed | BO84: Atl_04" C/Z 12 ga | BP84: 500 | BQ84: 500 | BR84: 500 | BS84: 500
AO85: 5 | AP85: Atl | AQ85: Adel | AR85: 5AtlAdel | AS85: 2 | AT85: 5 | BA85: 00757 | BB85: Puerto Rico | BC85: SANTA ISABEL | BE85: 83 | BF85: Alabama | BG85: Limestone | BH85: Alabama Limestone | BI85: Adel | BJ85: ADL-Zone 6 | BK85: ADL-AB-Zone 6 | BL85: ADL-AB-Zone 6 | BM85: Tues / Fri | BO85: Atl_04" C/Z 14 ga | BP85: 500 | BQ85: 500 | BR85: 500 | BS85: 500
AO86: 5 | AP86: Atl | AQ86: Pied | AR86: 5AtlPied | AS86: 4 | AT86: =AO86 -> 5 | BA86: 00765 | BB86: Puerto Rico | BC86: VIEQUES | BE86: 84 | BF86: Alabama | BG86: Lowndes | BH86: Alabama Lowndes | BI86: Adel | BJ86: ADL-Zone 5 | BK86: ADL-AB-Zone 5 | BL86: Zone 5 | BM86: Tues / Fri | BO86: Atl_04" C/Z 16 ga | BP86: 500 | BQ86: 500 | BR86: 500 | BS86: 500
AA87: CCA | AB87: MCC | AC87: MCO | AD87: MCO | AE87: MCJ | AF87: MCJ | AG87: MCG | AH87: MCG | AO87: 5 | AP87: Frank | AQ87: Indy | AR87: 5FrankIndy | AS87: 2 | AT87: 5 | BA87: 00766 | BB87: Puerto Rico | BC87: VILLALBA | BE87: 85 | BF87: Alabama | BG87: Lowndes | BH87: Alabama Lowndes | BI87: Adel | BJ87: ADL-Zone 5 | BK87: ADL-MB-Zone 5 | BL87: =" " ->  | BM87: Tues / Fri | BO87: Atl_05" C/Z 12 ga | BP87: 500 | BQ87: 500 | BR87: 500 | BS87: 500
Z88: Color | AA88: Category | AB88: Days | AO88: 5 | AP88: Frank | AQ88: Iwa | AR88: 5FrankIwa | AS88: 4 | AT88: =AO88 -> 5 | BA88: 00767 | BB88: Puerto Rico | BC88: YABUCOA | BE88: 86 | BF88: Alabama | BG88: Macon | BH88: Alabama Macon | BI88: Adel | BJ88: ADL-Zone 5 | BK88: ADL-AB-Zone 5 | BL88: Zone 5 | BM88: Tues / Fri | BO88: Atl_05" C/Z 14 ga | BP88: 500 | BQ88: 500 | BR88: 500 | BS88: 500
Z89: Ash Gray | AA89: Consignment | AB89: 0 | AC89: Consignment | AD89: 0 | AE89: Consignment | AF89: 0 | AG89: Consignment/Stock | AH89: 0 | AO89: 5 | AP89: Frank | AQ89: Okc | AR89: 5FrankOkc | AS89: 8 | AT89: 5 | BA89: 00769 | BB89: Puerto Rico | BC89: COAMO | BE89: 87 | BF89: Alabama | BG89: Macon | BH89: Alabama Macon | BI89: Adel | BJ89: ADL-Zone 5 | BK89: ADL-MB-Zone 5 | BL89: =" " ->  | BM89: Tues / Fri | BO89: Atl_05" C/Z 16 ga | BP89: 500 | BQ89: 500 | BR89: 500 | BS89: 500
Z90: Aztec Gold | AA90: Non-stock | AB90: 5 | AC90: Non-stock | AD90: 5 | AE90: Non-stock | AF90: 5 | AG90: Non-stock | AH90: 5 | AO90: 5 | AP90: Frank | AQ90: Atl | AR90: =_xlfn.CONCAT(AO90,AP90,AQ90) -> 5FrankAtl | AS90: 5 | AT90: 5 | BA90: 00771 | BB90: Puerto Rico | BC90: LAS PIEDRAS | BE90: 88 | BF90: Alabama | BG90: Madison | BH90: Alabama Madison | BI90: Atlanta | BJ90: ATL-Zone 5 | BK90: ATL | BL90: =" " ->  | BM90: Wed | BO90: Atl_06" C/Z 12 ga | BP90: 500 | BQ90: 500 | BR90: 500 | BS90: 500
Z91: Buckskin | AA91: Non-stock | AB91: 5 | AC91: Consignment | AD91: 0 | AE91: Consignment | AF91: 0 | AG91: Non-stock | AH91: 5 | AO91: 5 | AP91: Frank | AQ91: Rome | AR91: 5FrankRome | AS91: 6 | AT91: 5 | BA91: 00772 | BB91: Puerto Rico | BC91: LOIZA | BE91: 89 | BF91: Alabama | BG91: Madison | BH91: Alabama Madison | BI91: Adel | BJ91: ADL-Zone 6 | BK91: ADL-AB-Zone 6 | BL91: ADL-AB-Zone 6 | BM91: Tues / Fri | BO91: Atl_06" C/Z 14 ga | BP91: 500 | BQ91: 500 | BR91: 500 | BS91: 500
Z92: Burgandy | AA92: Non-stock | AB92: 5 | AC92: Consignment | AD92: 0 | AE92: Consignment | AF92: 0 | AG92: Non-stock | AH92: 5 | AO92: 5 | AP92: Frank | AQ92: Adel | AR92: 5FrankAdel | AS92: 7 | AT92: 5 | BA92: 00773 | BB92: Puerto Rico | BC92: LUQUILLO | BE92: 90 | BF92: Alabama | BG92: Marengo | BH92: Alabama Marengo | BI92: Adel | BJ92: ADL-Zone 5 | BK92: ADL-AB-Zone 5 | BL92: Zone 5 | BM92: Tues / Fri | BO92: Atl_06" C/Z 16 ga | BP92: 500 | BQ92: 500 | BR92: 500 | BS92: 500
Z93: Burnished Slate | AA93: Consignment | AB93: 0 | AC93: Consignment | AD93: 0 | AE93: Consignment | AF93: 0 | AG93: Consignment/Stock | AH93: 0 | AO93: 5 | AP93: Frank | AQ93: Ralg | AR93: 5FrankRalg | AS93: 11 | AT93: 5 | BA93: 00775 | BB93: Puerto Rico | BC93: CULEBRA | BE93: 91 | BF93: Alabama | BG93: Marengo | BH93: Alabama Marengo | BI93: Adel | BJ93: ADL-Zone 5 | BK93: ADL-MB-Zone 5 | BL93: =" " ->  | BM93: Tues / Fri | BO93: Atl_07" C/Z 12 ga | BP93: 500 | BQ93: 500 | BR93: 500 | BS93: 500
Z94: Charcoal Gray | AA94: Consignment | AB94: 0 | AC94: Consignment | AD94: 0 | AE94: Consignment | AF94: 0 | AG94: Consignment/Stock | AH94: 0 | AO94: 5 | AP94: Frank | AQ94: Hou | AR94: 5FrankHou | AS94: 8 | AT94: 5 | BA94: 00777 | BB94: Puerto Rico | BC94: JUNCOS | BE94: 92 | BF94: Alabama | BG94: Marion | BH94: Alabama Marion | BI94: Adel | BJ94: ADL-Zone 6 | BK94: ADL-AB-Zone 6 | BL94: ADL-AB-Zone 6 | BM94: Tues / Fri | BO94: Atl_07" C/Z 16 ga | BP94: 500 | BQ94: 500 | BR94: 500 | BS94: 500
Z95: Clay | AA95: Non-stock | AB95: 5 | AC95: Consignment | AD95: 0 | AE95: Non-stock | AF95: 5 | AG95: Non-stock | AH95: 5 | AO95: 5 | AP95: Frank | AQ95: Slc | AR95: 5FrankSlc | AS95: 12 | AT95: 5 | BA95: 00778 | BB95: Puerto Rico | BC95: GURABO | BE95: 93 | BF95: Alabama | BG95: Marshall | BH95: Alabama Marshall | BI95: Atlanta | BJ95: ATL-Zone 5 | BK95: ATL | BL95: =" " ->  | BM95: Wed | BO95: Atl_08" C/Z 12 ga | BP95: 500 | BQ95: 500 | BR95: 500 | BS95: 500
Z96: Coal Black | AA96: Non-stock | AB96: 5 | AC96: Consignment | AD96: 0 | AE96: Consignment | AF96: 0 | AG96: Non-stock | AH96: 5 | AO96: 5 | AP96: Frank | AQ96: pho | AR96: 5Frankpho | AS96: 16 | AT96: 5 | BA96: 00780 | BB96: Puerto Rico | BC96: PONCE | BE96: 94 | BF96: Alabama | BG96: Marshall | BH96: Alabama Marshall | BI96: Adel | BJ96: ADL-Zone 6 | BK96: ADL-AB-Zone 6 | BL96: ADL-AB-Zone 6 | BM96: Tues / Fri | BO96: Atl_08" C/Z 14 ga | BP96: 500 | BQ96: 500 | BR96: 500 | BS96: 500
Z97: Cobalt Blue | AA97: Consignment | AB97: 0 | AC97: Consignment | AD97: 0 | AE97: Consignment | AF97: 0 | AG97: Consignment/stock | AH97: 0 | AO97: 5 | AP97: Frank | AQ97: Albq | AR97: 5FrankAlbq | AS97: 20 | AT97: 5 | BA97: 00782 | BB97: Puerto Rico | BC97: COMERIO | BE97: 95 | BF97: Alabama | BG97: Mobile | BH97: Alabama Mobile | BI97: Adel | BJ97: ADL-Zone 5 | BK97: ADL-AB-Zone 5 | BL97: Zone 5 | BM97: Tues / Fri | BO97: Atl_08" C/Z 16 ga | BP97: 500 | BQ97: 500 | BR97: 500 | BS97: 500
Z98: Crimson Red | AA98: Non-stock | AB98: 5 | AC98: Consignment | AD98: 0 | AE98: Non-stock | AF98: 5 | AG98: Non-stock | AH98: 5 | AO98: 5 | AP98: Frank | AQ98: Lacr | AR98: 5FrankLacr | AS98: 20 | AT98: 5 | BA98: 00783 | BB98: Puerto Rico | BC98: COROZAL | BE98: 96 | BF98: Alabama | BG98: Mobile | BH98: Alabama Mobile | BI98: Adel | BJ98: ADL-Zone 5 | BK98: ADL-MB-Zone 5 | BL98: =" " ->  | BM98: Tues / Fri | BO98: Atl_08" ES 12 ga | BP98: 100 | BQ98: 100 | BR98: 100 | BS98: 100
Z99: Desert Sand | AA99: Consignment | AB99: 0 | AC99: Consignment | AD99: 0 | AE99: Consignment | AF99: 0 | AG99: Consignment/stock | AH99: 0 | AO99: 5 | AP99: Frank | AQ99: Farm | AR99: 5FrankFarm | AS99: 20 | AT99: 5 | BA99: 00784 | BB99: Puerto Rico | BC99: GUAYAMA | BE99: 97 | BF99: Alabama | BG99: Monroe | BH99: Alabama Monroe | BI99: Adel | BJ99: ADL-Zone 5 | BK99: ADL-AB-Zone 5 | BL99: Zone 5 | BM99: Tues / Fri | BO99: Atl_08" ES 14 ga | BP99: 100 | BQ99: 100 | BR99: 100 | BS99: 100
Z100: Evergreen | AA100: Non-stock | AB100: 5 | AC100: Consignment | AD100: 0 | AE100: Non-stock | AF100: 5 | AG100: Non-stock | AH100: 5 | AO100: 5 | AP100: Frank | AQ100: Pied | AR100: 5FrankPied | AS100: 9 | AT100: 5 | BA100: 00785 | BB100: Puerto Rico | BC100: GUAYANILLA | BE100: 98 | BF100: Alabama | BG100: Monroe | BH100: Alabama Monroe | BI100: Adel | BJ100: ADL-Zone 5 | BK100: ADL-MB-Zone 5 | BL100: =" " ->  | BM100: Tues / Fri | BO100: Atl_08" ES 16 ga | BP100: 100 | BQ100: 100 | BR100: 100 | BS100: 100
Z101: Fern Green | AA101: Consignment | AB101: 0 | AC101: Consignment | AD101: 0 | AE101: Consignment | AF101: 0 | AG101: Consignment/stock | AH101: 0 | AO101: 5 | AP101: Frank | AQ101: Brge | AR101: 5FrankBrge | AS101: 10 | AT101: 5 | BA101: 00786 | BB101: Puerto Rico | BC101: AIBONITO | BE101: 99 | BF101: Alabama | BG101: Montgomery | BH101: Alabama Montgomery | BI101: Adel | BJ101: ADL-Zone 5 | BK101: ADL-AB-Zone 5 | BL101: Zone 5 | BM101: Tues / Fri | BO101: Atl_09" C/Z 12 ga | BP101: 500 | BQ101: 500 | BR101: 500 | BS101: 500
Z102: Gray-Ox | AB102: 0 | AD102: 0 | AF102: 0 | AH102: 0 | AO102: 5 | AP102: Hou | AQ102: Atw | AR102: 5HouAtw | AS102: 4 | AT102: 5 | BA102: 00791 | BB102: Puerto Rico | BC102: HUMACAO | BE102: 100 | BF102: Alabama | BG102: Montgomery | BH102: Alabama Montgomery | BI102: Adel | BJ102: ADL-Zone 5 | BK102: ADL-MB-Zone 5 | BL102: =" " ->  | BM102: Tues / Fri | BO102: Atl_09" C/Z 14 ga | BP102: 500 | BQ102: 500 | BR102: 500 | BS102: 500
Z103: Galvz | AB103: 5 | AD103: 5 | AF103: 5 | AH103: 5 | AO103: 5 | AP103: Hou | AQ103: Bytn | AR103: 5HouBytn | AS103: 2 | AT103: 5 | BA103: 00792 | BB103: Puerto Rico | BC103: HUMACAO | BE103: 101 | BF103: Alabama | BG103: Morgan | BH103: Alabama Morgan | BI103: Atlanta | BJ103: ATL-Zone 5 | BK103: ATL | BL103: =" " ->  | BM103: Wed | BO103: Atl_09" C/Z 16 ga | BP103: 500 | BQ103: 500 | BR103: 500 | BS103: 500
Z104: Glmplus | AB104: 0 | AD104: 0 | AF104: 0 | AH104: 0 | AO104: 5 | AP104: Hou | AQ104: Slc | AR104: 5HouSlc | AS104: 4 | AT104: 5 | BA104: 00794 | BB104: Puerto Rico | BC104: BARRANQUITAS | BE104: 102 | BF104: Alabama | BG104: Morgan | BH104: Alabama Morgan | BI104: Adel | BJ104: ADL-Zone 6 | BK104: ADL-AB-Zone 6 | BL104: ADL-AB-Zone 6 | BM104: Tues / Fri | BO104: Atl_1/2" X 2-1/2" Corrugated | BP104: 0 | BQ104: 0 | BR104: 0 | BS104: 0
Z105: Gray | AA105: Consignment | AB105: 0 | AC105: Consignment | AD105: 0 | AE105: Consignment | AF105: 0 | AG105: Non-stock | AH105: 5 | AO105: 5 | AP105: Hou | AQ105: SanA | AR105: 5HouSanA | AS105: 2 | AT105: 5 | BA105: 00795 | BB105: Puerto Rico | BC105: JUANA DIAZ | BE105: 103 | BF105: Alabama | BG105: Perry | BH105: Alabama Perry | BI105: Adel | BJ105: ADL-Zone 5 | BK105: ADL-AB-Zone 5 | BL105: Zone 5 | BM105: Tues / Fri | BO105: Atl_1/4" X 1-1/4" Corrugated | BP105: 0 | BQ105: 0 | BR105: 0 | BS105: 0
Z106: Hawaiian Blue | AA106: Consignment | AB106: 0 | AC106: Consignment | AD106: 0 | AE106: Consignment | AF106: 0 | AG106: Consignment/stock | AH106: 0 | AO106: 5 | AP106: Indy | AQ106: Atl | AR106: 5IndyAtl | AS106: 2 | AT106: 5 | BA106: 00801 | BB106: Puerto Rico | BC106: SAN JUAN | BE106: 104 | BF106: Alabama | BG106: Perry | BH106: Alabama Perry | BI106: Adel | BJ106: ADL-Zone 5 | BK106: ADL-MB-Zone 5 | BL106: =" " ->  | BM106: Tues / Fri | BO106: Atl_10" C/Z 12 ga | BP106: 500 | BQ106: 500 | BR106: 500 | BS106: 500
Z107: High Gloss White | AA107: Non-stock | AB107: 5 | AC107: Non-stock | AD107: 5 | AE107: Consignment | AF107: 0 | AG107: Consignment/stock | AH107: 0 | AO107: 5 | AP107: Indy | AQ107: Ralg | AR107: 5IndyRalg | AS107: 6 | AT107: =AO107 -> 5 | BA107: 00802 | BB107: Virgin Islands | BC107: SAINT THOMAS | BE107: 105 | BF107: Alabama | BG107: Perry | BH107: Alabama Perry | BI107: Atlanta | BJ107: ATL-Zone 4 | BK107: ATL | BL107: =" " ->  | BM107: Thurs | BO107: Atl_10" C/Z 14 ga | BP107: 500 | BQ107: 500 | BR107: 500 | BS107: 500
Z108: Ivy Green | AA108: Consignment | AB108: 0 | AC108: Consignment | AD108: 0 | AE108: Consignment | AF108: 0 | AG108: Non-stock | AH108: 5 | AO108: 5 | AP108: Indy | AQ108: Pied | AR108: 5IndyPied | AS108: 6 | AT108: =AO108 -> 5 | BA108: 00803 | BB108: Virgin Islands | BC108: SAINT THOMAS | BE108: 106 | BF108: Alabama | BG108: Pickens | BH108: Alabama Pickens | BI108: Atlanta | BJ108: ATL-Zone 5 | BK108: ATL | BL108: =" " ->  | BM108: Wed | BO108: Atl_10" C/Z 16 ga | BP108: 500 | BQ108: 500 | BR108: 500 | BS108: 500
Z109: Koko Brown | AA109: Consignment | AB109: 0 | AC109: Consignment | AD109: 0 | AE109: Consignment | AF109: 0 | AG109: Consignment/stock | AH109: 0 | AO109: 5 | AP109: Indy | AQ109: Adel | AR109: 5IndyAdel | AS109: 4 | AT109: =AO109 -> 5 | BA109: 00804 | BB109: Virgin Islands | BC109: SAINT THOMAS | BE109: 107 | BF109: Alabama | BG109: Pickens | BH109: Alabama Pickens | BI109: Adel | BJ109: ADL-Zone 6 | BK109: ADL-AB-Zone 6 | BL109: ADL-AB-Zone 6 | BM109: Tues / Fri | BO109: Atl_10" ES 12 ga | BP109: 100 | BQ109: 100 | BR109: 100 | BS109: 100
Z110: Light Stone | AA110: Consignment | AB110: 0 | AC110: Consignment | AD110: 0 | AE110: Consignment | AF110: 0 | AG110: Consignment/stock | AH110: 0 | AO110: 5 | AP110: Indy | AQ110: Frank | AR110: 5IndyFrank | AS110: 2 | AT110: 5 | BA110: 00805 | BB110: Virgin Islands | BC110: SAINT THOMAS | BE110: 108 | BF110: Alabama | BG110: Pike | BH110: Alabama Pike | BI110: Adel | BJ110: ADL-Zone 5 | BK110: ADL-AB-Zone 5 | BL110: Zone 5 | BM110: Tues / Fri | BO110: Atl_10" ES 14 ga | BP110: 100 | BQ110: 100 | BR110: 100 | BS110: 100
Z111: Polar White | AA111: Consignment | AB111: 0 | AC111: Consignment | AD111: 0 | AE111: Consignment | AF111: 0 | AG111: Consignment/stock | AH111: 0 | AO111: 5 | AP111: Rome | AQ111: Indy | AR111: 5RomeIndy | AS111: 3 | AT111: 5 | BA111: 00820 | BB111: Virgin Islands | BC111: SAINT CROIX | BE111: 109 | BF111: Alabama | BG111: Pike | BH111: Alabama Pike | BI111: Adel | BJ111: ADL-Zone 5 | BK111: ADL-MB-Zone 5 | BL111: =" " ->  | BM111: Tues / Fri | BO111: Atl_10" ES 16 ga | BP111: 100 | BQ111: 100 | BR111: 100 | BS111: 100
Z112: Radiant Red | AA112: Non-stock | AB112: 5 | AC112: Consignment | AD112: 0 | AE112: Consignment | AF112: 0 | AG112: Non-stock | AH112: 5 | AO112: 5 | AP112: Rome | AQ112: Atl | AR112: 5RomeAtl | AS112: 5 | AT112: =AO112 -> 5 | BA112: 00821 | BB112: Virgin Islands | BC112: SAINT CROIX | BE112: 110 | BF112: Alabama | BG112: Randolph | BH112: Alabama Randolph | BI112: Atlanta | BJ112: ATL-Zone 5 | BK112: ATL | BL112: =" " ->  | BM112: Wed | BO112: Atl_11" C/Z 12 ga | BP112: 500 | BQ112: 500 | BR112: 500 | BS112: 500
Z113: Red-Ox | AB113: 0 | AD113: 0 | AF113: 0 | AH113: 0 | AO113: 5 | AP113: Rome | AQ113: Adel | AR113: 5RomeAdel | AS113: 7 | AT113: 5 | BA113: 00822 | BB113: Virgin Islands | BC113: SAINT CROIX | BE113: 111 | BF113: Alabama | BG113: Randolph | BH113: Alabama Randolph | BI113: Adel | BJ113: ADL-Zone 6 | BK113: ADL-AB-Zone 6 | BL113: ADL-AB-Zone 6 | BM113: Tues / Fri | BO113: Atl_11" C/Z 14 ga | BP113: 500 | BQ113: 500 | BR113: 500 | BS113: 500
Z114: Regal White | AA114: Non-stock | AB114: 5 | AC114: Consignment | AD114: 0 | AE114: Consignment | AF114: 0 | AG114: Non-stock | AH114: 5 | AO114: 5 | AP114: Rome | AQ114: Frank | AR114: 5RomeFrank | AS114: 7 | AT114: 5 | BA114: 00823 | BB114: Virgin Islands | BC114: SAINT CROIX | BE114: 112 | BF114: Alabama | BG114: Russell | BH114: Alabama Russell | BI114: Adel | BJ114: ADL-Zone 5 | BK114: ADL-AB-Zone 5 | BL114: Zone 5 | BM114: Tues / Fri | BO114: Atl_11" C/Z 16 ga | BP114: 500 | BQ114: 500 | BR114: 500 | BS114: 500
Z115: Rustic Red | AA115: Consignment | AB115: 0 | AC115: Consignment | AD115: 0 | AE115: Consignment | AF115: 0 | AG115: Consignment/stock | AH115: 0 | AO115: 5 | AP115: Rome | AQ115: Iwa | AR115: 5RomeIwa | AS115: 8 | AT115: 5 | BA115: 00824 | BB115: Virgin Islands | BC115: SAINT CROIX | BE115: 113 | BF115: Alabama | BG115: Russell | BH115: Alabama Russell | BI115: Adel | BJ115: ADL-Zone 5 | BK115: ADL-MB-Zone 5 | BL115: =" " ->  | BM115: Tues / Fri | BO115: Atl_12" C/Z 12 ga | BP115: 500 | BQ115: 500 | BR115: 500 | BS115: 500
Z116: Saddle Tan | AA116: Consignment | AB116: 0 | AC116: Consignment | AD116: 0 | AE116: Consignment | AF116: 0 | AG116: Consignment/stock | AH116: 0 | AO116: 5 | AP116: Rome | AQ116: Ralg | AR116: 5RomeRalg | AS116: 11 | AT116: 5 | BA116: 00830 | BB116: Virgin Islands | BC116: SAINT JOHN | BE116: 114 | BF116: Alabama | BG116: Shelby | BH116: Alabama Shelby | BI116: Atlanta | BJ116: ATL-Zone 5 | BK116: ATL | BL116: =" " ->  | BM116: Wed | BO116: Atl_12" C/Z 14 ga | BP116: 500 | BQ116: 500 | BR116: 500 | BS116: 500
Z117: Solar White | AA117: Non-stock | AB117: 5 | AC117: Consignment | AD117: 0 | AE117: Consignment | AF117: 0 | AG117: Non-stock | AH117: 5 | AO117: 5 | AP117: Rome | AQ117: Pied | AR117: 5RomePied | AS117: 9 | AT117: 5 | BA117: 00831 | BB117: Virgin Islands | BC117: SAINT JOHN | BE117: 115 | BF117: Alabama | BG117: Shelby | BH117: =_xlfn.CONCAT(BF117," ",BG117) -> Alabama Shelby | BI117: Adel | BJ117: ADL-Zone 6 | BK117: ADL-AB-Zone 6 | BL117: ADL-AB-Zone 6 | BM117: Tues / Fri | BO117: Atl_12" C/Z 16 ga | BP117: 500 | BQ117: 500 | BR117: 500 | BS117: 500
Z118: Vintage White | AA118: Non-stock | AB118: 5 | AC118: Consignment | AD118: 0 | AE118: Consignment | AF118: 0 | AG118: Non-stock | AH118: 5 | AO118: 5 | AP118: Rome | AQ118: Hou | AR118: 5RomeHou | AS118: 12 | AT118: 5 | BA118: 00840 | BB118: Virgin Islands | BC118: SAINT CROIX | BE118: 116 | BF118: Alabama | BG118: Saint Clair | BH118: Alabama Saint Clair | BI118: Atlanta | BJ118: ATL-Zone 5 | BK118: ATL | BL118: =" " ->  | BM118: Wed | BO118: Atl_5V-Crimp | BP118: 100 | BQ118: 100 | BR118: 100 | BS118: 100
Z119: Winter White | AA119: no history | AB119: 5 | AC119: no history | AD119: 5 | AE119: no history | AF119: 5 | AG119: Consignment/stock | AH119: 0 | AO119: 6 | AP119: Adel | AQ119: Brge | AR119: 6AdelBrge | AS119: 2 | AT119: 6 | BA119: 00841 | BB119: Virgin Islands | BC119: SAINT CROIX | BE119: 117 | BF119: Alabama | BG119: Saint Clair | BH119: Alabama Saint Clair | BI119: Adel | BJ119: ADL-Zone 6 | BK119: ADL-AB-Zone 6 | BL119: ADL-AB-Zone 6 | BM119: Tues / Fri | BO119: Atl_7.2 | BP119: 0 | BQ119: 0 | BR119: 0 | BS119: 0
Z120: Sunset Orange | AA120: no history | AB120: 5 | AC120: no history | AD120: 5 | AE120: Non-stock | AF120: 5 | AG120: Non-stock | AH120: 5 | AO120: 6 | AP120: Atl | AQ120: Hou | AR120: 6AtlHou | AS120: 2 | AT120: 6 | BA120: 00850 | BB120: Virgin Islands | BC120: SAINT CROIX | BE120: 118 | BF120: Alabama | BG120: Sumter | BH120: Alabama Sumter | BI120: Adel | BJ120: ADL-Zone 5 | BK120: ADL-AB-Zone 5 | BL120: Zone 5 | BM120: Tues / Fri | BO120: Atl_Artisan | BP120: 0 | BQ120: 0 | BR120: 0 | BS120: 0
Z121: Almond | AA121: Consignment | AB121: 0 | AC121: Consignment | AD121: 0 | AE121: Consignment | AF121: 0 | AG121: Consignment/stock | AH121: 0 | AO121: 6 | AP121: Atl | AQ121: Indy | AR121: 6AtlIndy | AS121: 2 | AT121: 6 | BA121: 00851 | BB121: Virgin Islands | BC121: SAINT CROIX | BE121: 119 | BF121: Alabama | BG121: Sumter | BH121: Alabama Sumter | BI121: Adel | BJ121: ADL-Zone 5 | BK121: ADL-MB-Zone 5 | BL121: =" " ->  | BM121: Tues / Fri | BO121: Atl_AVP | BP121: 0 | BQ121: 0 | BR121: 0 | BS121: 0
Z122: Bone White | AA122: Non-stock | AB122: 5 | AC122: Consignment | AD122: 0 | AE122: Consignment | AF122: 0 | AG122: Consignment/stock | AH122: 0 | AO122: 6 | AP122: Atl | AQ122: Frank | AR122: =_xlfn.CONCAT(AO122,AP122,AQ122) -> 6AtlFrank | AS122: 6 | AT122: =AO122 -> 6 | BA122: 00901 | BB122: Puerto Rico | BC122: SAN JUAN | BE122: 120 | BF122: Alabama | BG122: Talladega | BH122: Alabama Talladega | BI122: Atlanta | BJ122: ATL-Zone 5 | BK122: ATL | BL122: =" " ->  | BM122: Wed | BO122: Atl_BatLok/SupLok 12" | BP122: 0 | BQ122: 0 | BR122: 0 | BS122: 0
Z123: Brite Red | AA123: Non-stock | AB123: 5 | AC123: Consignment | AD123: 0 | AE123: Consignment | AF123: 0 | AG123: Consignment/stock | AH123: 0 | AO123: 6 | AP123: Atl | AQ123: Rome | AR123: 6AtlRome | AS123: 2 | AT123: 6 | BA123: 00902 | BB123: Puerto Rico | BC123: SAN JUAN | BE123: 121 | BF123: Alabama | BG123: Talladega | BH123: Alabama Talladega | BI123: Adel | BJ123: ADL-Zone 6 | BK123: ADL-AB-Zone 6 | BL123: ADL-AB-Zone 6 | BM123: Tues / Fri | BO123: Atl_BatLok/SupLok 16" | BP123: 0 | BQ123: 0 | BR123: 0 | BS123: 0
Z124: Brownstone | AA124: Consignment | AB124: 0 | AC124: Consignment | AD124: 0 | AE124: Consignment | AF124: 0 | AG124: Consignment/stock | AH124: 0 | AO124: 6 | AP124: Hou | AQ124: Adel | AR124: 6HouAdel | AS124: 4 | AT124: 6 | BA124: 00903 | BB124: Puerto Rico | BC124: SAN JUAN | BE124: 122 | BF124: Alabama | BG124: Tallapoosa | BH124: Alabama Tallapoosa | BI124: Adel | BJ124: ADL-Zone 5 | BK124: ADL-AB-Zone 5 | BL124: Zone 5 | BM124: Tues / Fri | BO124: Atl_Classic | BP124: 0 | BQ124: 0 | BR124: 0 | BS124: 0
Z125: Classic Green | AA125: Consignment | AB125: 0 | AC125: Consignment | AD125: 0 | AE125: Consignment | AF125: 0 | AG125: Consignment/stock | AH125: 0 | AO125: 6 | AP125: Hou | AQ125: Atl | AR125: 6HouAtl | AS125: 2 | AT125: 6 | BA125: 00904 | BB125: Puerto Rico | BC125: SAN JUAN | BE125: 123 | BF125: Alabama | BG125: Tallapoosa | BH125: Alabama Tallapoosa | BI125: Adel | BJ125: ADL-Zone 5 | BK125: ADL-MB-Zone 5 | BL125: =" " ->  | BM125: Tues / Fri | BO125: Atl_Craftsman HB 12" | BP125: 0 | BQ125: 0 | BR125: 0 | BS125: 0
Z126: Colonial Red | AA126: Non-stock | AB126: 5 | AC126: Non-stock | AD126: 5 | AE126: Consignment | AF126: 0 | AG126: Non-stock | AH126: 5 | AO126: 6 | AP126: Hou | AQ126: Frank | AR126: 6HouFrank | AS126: 10 | AT126: =AO126 -> 6 | BA126: 00905 | BB126: Puerto Rico | BC126: SAN JUAN | BE126: 124 | BF126: Alabama | BG126: Tuscaloosa | BH126: Alabama Tuscaloosa | BI126: Atlanta | BJ126: ATL-Zone 5 | BK126: ATL | BL126: =" " ->  | BM126: Wed | BO126: Atl_Craftsman HB 16.5" | BP126: 0 | BQ126: 0 | BR126: 0 | BS126: 0
Z127: Copper Metalic | AA127: Non-stock | AB127: 5 | AC127: Non-stock | AD127: 5 | AE127: Non-stock | AF127: 5 | AG127: Non-stock | AH127: 5 | AO127: 6 | AP127: Hou | AQ127: Indy | AR127: 6HouIndy | AS127: 5 | AT127: 6 | BA127: 00906 | BB127: Puerto Rico | BC127: SAN JUAN | BE127: 125 | BF127: Alabama | BG127: Tuscaloosa | BH127: Alabama Tuscaloosa | BI127: Adel | BJ127: ADL-Zone 6 | BK127: ADL-AB-Zone 6 | BL127: ADL-AB-Zone 6 | BM127: Tues / Fri | BO127: Atl_Craftsman SB 12" | BP127: 0 | BQ127: 0 | BR127: 0 | BS127: 0
Z128: Everglade | AA128: Non-stock | AB128: 5 | AC128: Non-stock | AD128: 5 | AE128: Non-stock | AF128: 5 | AG128: Non-stock | AH128: 5 | AO128: 6 | AP128: Hou | AQ128: Okc | AR128: 6HouOkc | AS128: 2 | AT128: 6 | BA128: 00907 | BB128: Puerto Rico | BC128: SAN JUAN | BE128: 126 | BF128: Alabama | BG128: Walker | BH128: Alabama Walker | BI128: Atlanta | BJ128: ATL-Zone 5 | BK128: ATL | BL128: =" " ->  | BM128: Wed | BO128: Atl_Craftsman SB 16.5" | BP128: 0 | BQ128: 0 | BR128: 0 | BS128: 0
Z129: Harbor Blue | AA129: Non-stock | AB129: 5 | AC129: Non-stock | AD129: 5 | AE129: Consignment | AF129: 0 | AG129: Consignment/stock | AH129: 0 | AO129: 6 | AP129: Hou | AQ129: Rome | AR129: 6HouRome | AS129: 3 | AT129: 6 | BA129: 00908 | BB129: Puerto Rico | BC129: SAN JUAN | BE129: 127 | BF129: Alabama | BG129: Walker | BH129: Alabama Walker | BI129: Adel | BJ129: ADL-Zone 6 | BK129: ADL-AB-Zone 6 | BL129: ADL-AB-Zone 6 | BM129: Tues / Fri | BO129: Atl_Cutoff Time | BP129: 10:00 AM | BQ129: 10:00 AM | BR129: 10:00 AM | BS129: 10:00 AM
Z130: Hunter Green | AA130: Non-stock | AB130: 5 | AC130: Non-stock | AD130: 5 | AE130: Non-stock | AF130: 5 | AG130: Non-stock | AH130: 5 | AO130: 6 | AP130: Hou | AQ130: Ralg | AR130: 6HouRalg | AS130: 5 | AT130: 6 | BA130: 00909 | BB130: Puerto Rico | BC130: SAN JUAN | BE130: 128 | BF130: Alabama | BG130: Washington | BH130: Alabama Washington | BI130: Adel | BJ130: ADL-Zone 5 | BK130: ADL-AB-Zone 5 | BL130: Zone 5 | BM130: Tues / Fri | BO130: Atl_Designer 12" | BP130: 0 | BQ130: 0 | BR130: 0 | BS130: 0
Z131: Medium Bronze | AA131: Non-stock | AB131: 5 | AC131: Consignment | AD131: 0 | AE131: Consignment | AF131: 0 | AG131: Consignment/stock | AH131: 0 | AO131: 6 | AP131: Hou | AQ131: Pied | AR131: 6HouPied | AS131: 8 | AT131: 6 | BA131: 00910 | BB131: Puerto Rico | BC131: SAN JUAN | BE131: 129 | BF131: Alabama | BG131: Washington | BH131: Alabama Washington | BI131: Adel | BJ131: ADL-Zone 5 | BK131: ADL-MB-Zone 5 | BL131: =" " ->  | BM131: Tues / Fri | BO131: Atl_Designer 16" | BP131: 0 | BQ131: 0 | BR131: 0 | BS131: 0
Z132: Midnight Bronze | AA132: Non-stock | AB132: 5 | AC132: Non-stock | AD132: 5 | AE132: Consignment | AF132: 0 | AG132: Consignment/stock | AH132: 0 | AO132: 6 | AP132: Hou | AQ132: SanA | AR132: 6HouSanA | AS132: 3 | AT132: 6 | BA132: 00911 | BB132: Puerto Rico | BC132: SAN JUAN | BE132: 130 | BF132: Alabama | BG132: Wilcox | BH132: Alabama Wilcox | BI132: Adel | BJ132: ADL-Zone 5 | BK132: ADL-AB-Zone 5 | BL132: Zone 5 | BM132: Tues / Fri | BO132: Atl_Flexloc 9.5" | BP132: 0 | BQ132: 0 | BR132: 0 | BS132: 0
Z133: Natural Patina | AA133: Non-stock | AB133: 5 | AC133: Non-stock | AD133: 5 | AE133: Non-stock | AF133: 5 | AG133: Non-stock | AH133: 5 | AO133: 6 | AP133: Indy | AQ133: Rome | AR133: 6IndyRome | AS133: 2 | AT133: 6 | BA133: 00912 | BB133: Puerto Rico | BC133: SAN JUAN | BE133: 131 | BF133: Alabama | BG133: Wilcox | BH133: Alabama Wilcox | BI133: Adel | BJ133: ADL-Zone 5 | BK133: ADL-MB-Zone 5 | BL133: =" " ->  | BM133: Tues / Fri | BO133: Atl_FW | BP133: 0 | BQ133: 0 | BR133: 0 | BS133: 0
Z134: Pacific Blue | AA134: Non-stock | AB134: 5 | AC134: Non-stock | AD134: 5 | AE134: Non-stock | AF134: 5 | AG134: Non-stock | AH134: 5 | AO134: 6 | AP134: Iwa | AQ134: Okc | AR134: 6IwaOkc | AS134: 3 | AT134: 6 | BA134: 00913 | BB134: Puerto Rico | BC134: SAN JUAN | BE134: 132 | BF134: Alabama | BG134: Winston | BH134: Alabama Winston | BI134: Adel | BJ134: ADL-Zone 6 | BK134: ADL-AB-Zone 6 | BL134: ADL-AB-Zone 6 | BM134: Tues / Fri | BO134: Atl_LokSeam 12" | BP134: 0 | BQ134: 0 | BR134: 0 | BS134: 0
Z135: Silver Metalic | AA135: Non-stock | AB135: 5 | AC135: Consignment | AD135: 0 | AE135: Consignment | AF135: 0 | AG135: Consignment/stock | AH135: 0 | AO135: 6 | AP135: Iwa | AQ135: Pho | AR135: 6IwaPho | AS135: 15 | AT135: 6 | BA135: 00914 | BB135: Puerto Rico | BC135: SAN JUAN | BE135: 133 | BF135: Alabama | BG135: Winston | BH135: =_xlfn.CONCAT(BF135," ",BG135) -> Alabama Winston | BI135: Atlanta | BJ135: ATL-Zone 5 | BK135: ATL | BL135: =" " ->  | BM135: Wed | BO135: Atl_LokSeam 16" | BP135: 0 | BQ135: 0 | BR135: 0 | BS135: 0
Z136: Slate Gray | AA136: Consignment | AB136: 0 | AC136: Consignment | AD136: 0 | AE136: Consignment | AF136: 0 | AG136: Consignment/stock | AH136: 0 | AO136: 6 | AP136: Iwa | AQ136: Slc | AR136: 6IwaSlc | AS136: 12 | AT136: 6 | BA136: 00915 | BB136: Puerto Rico | BC136: SAN JUAN | BE136: 134 | BF136: Arizona | BG136: Apache | BH136: Arizona Apache | BI136: Phoenix | BJ136: PHO-Zone 1-5 | BK136: PHO-Zone 1-5 | BL136: Zone 1-5 | BM136: Wed | BO136: Atl_LokSeam 18" | BP136: 0 | BQ136: 0 | BR136: 0 | BS136: 0
Z137: Snow White | AA137: Consignment | AB137: 0 | AC137: Consignment | AD137: 0 | AE137: Consignment | AF137: 0 | AG137: Consignment | AH137: 0 | AO137: 6 | AP137: Iwa | AQ137: Brge | AR137: 6IwaBrge | AS137: 8 | AT137: 6 | BA137: 00916 | BB137: Puerto Rico | BC137: SAN JUAN | BE137: 135 | BF137: Arizona | BG137: Cochise | BH137: Arizona Cochise | BI137: Phoenix | BJ137: PHO-Zone 3 | BK137: PHO-Zone 3 | BL137: Zone 3 | BM137: Fri | BO137: Atl_MasterLine | BP137: 0 | BQ137: 0 | BR137: 0 | BS137: 0
Z138: Spruce | AA138: Non-stock | AB138: 5 | AC138: Non-stock | AD138: 5 | AE138: Non-stock | AF138: 5 | AG138: Non-stock | AH138: 5 | AO138: 6 | AP138: Iwa | AQ138: Bytn | AR138: 6IwaBytn | AS138: 11 | AT138: 6 | BA138: 00917 | BB138: Puerto Rico | BC138: SAN JUAN | BE138: 136 | BF138: Arizona | BG138: Coconino | BH138: Arizona Coconino | BI138: Phoenix | BJ138: PHO-Zone 1-5 | BK138: PHO-Zone 1-5 | BL138: Zone 1-5 | BM138: Wed | BO138: Atl_Monarch Rib | BP138: 0 | BQ138: 0 | BR138: 0 | BS138: 0
Z139: Tundra | AA139: Non-stock | AB139: 5 | AC139: Consignment | AD139: 0 | AE139: Consignment | AF139: 0 | AG139: Consignment/stock | AH139: 0 | AO139: 6 | AP139: Iwa | AQ139: Wall | AR139: 6IwaWall | AS139: 10 | AT139: 6 | BA139: 00918 | BB139: Puerto Rico | BC139: SAN JUAN | BE139: 137 | BF139: Arizona | BG139: Coconino slc | BH139: =_xlfn.CONCAT(BF139," ",BG139) -> Arizona Coconino slc | BI139: Salt Lake City | BJ139: SLC - Zone 3 | BK139: SLC-Zone 3 | BL139: Zone 3 | BM139: Tues | BO139: Atl_Nuwall | BP139: 0 | BQ139: 0 | BR139: 0 | BS139: 0
AO140: 6 | AP140: Iwa | AQ140: Clvd | AR140: 6IwaClvd | AS140: 9 | AT140: 6 | BA140: 00919 | BB140: Puerto Rico | BC140: SAN JUAN | BE140: 138 | BF140: Arizona | BG140: Gila N | BH140: =_xlfn.CONCAT(BF140," ",BG140) -> Arizona Gila N | BI140: Phoenix | BJ140: PHO-Zone 1 | BK140: PHO-Zone 1 | BL140: Zone 1 | BM140: Wed | BO140: Atl_PBC | BP140: 0 | BQ140: 0 | BR140: 0 | BS140: 0
Z141: Slit Option | AA141: Days | AO141: 6 | AP141: Okc | AQ141: SanA | AR141: 6OkcSanA | AS141: 4 | AT141: 6 | BA141: 00920 | BB141: Puerto Rico | BC141: SAN JUAN | BE141: 139 | BF141: Arizona | BG141: Gila | BH141: Arizona Gila | BI141: Phoenix | BJ141: PHO-Zone 1 | BK141: PHO-Zone 1 | BL141: Zone 1 | BM141: Wed | BO141: Atl_PBR | BP141: 500 | BQ141: 500 | BR141: 500 | BS141: 500
Z142: 7.2 | AA142: 0 | AO142: 6 | AP142: Okc | AQ142: Atl | AR142: 6OkcAtl | AS142: 6 | AT142: 6 | BA142: 00921 | BB142: Puerto Rico | BC142: SAN JUAN | BE142: 140 | BF142: Arizona | BG142: Graham | BH142: =_xlfn.CONCAT(BF142," ",BG142) -> Arizona Graham | BI142: Phoenix | BJ142: PHO-Zone 3 | BK142: PHO-Zone 3 | BL142: Zone 3 | BM142: Fri | BO142: Atl_PBU | BP142: 500 | BQ142: 500 | BR142: 500 | BS142: 500
Z143: 7/8 Wide Rib | AA143: 0 | AO143: 6 | AP143: Okc | AQ143: Hou | AR143: =_xlfn.CONCAT(AO143,AP143,AQ143) -> 6OkcHou | AS143: 2 | AT143: 6 | BA143: 00922 | BB143: Puerto Rico | BC143: SAN JUAN | BE143: 141 | BF143: Arizona | BG143: Greenlee | BH143: =_xlfn.CONCAT(BF143," ",BG143) -> Arizona Greenlee | BI143: Phoenix | BJ143: PHO-Zone 3 | BK143: PHO-Zone 3 | BL143: Zone 3 | BM143: Fri | BO143: Atl_Perma-Clad (P-36) | BP143: 0 | BQ143: 0 | BR143: 0 | BS143: 0
Z144: Ameri-drain | AA144: 0 | AO144: 6 | AP144: Okc | AQ144: Adel | AR144: 6OkcAdel | AS144: 8 | AT144: 6 | BA144: 00923 | BB144: Puerto Rico | BC144: SAN JUAN | BE144: 142 | BF144: Arizona | BG144: La Paz | BH144: =_xlfn.CONCAT(BF144," ",BG144) -> Arizona La Paz | BI144: Phoenix | BJ144: PHO-Zone 4 | BK144: PHO-Zone 4 | BL144: Zone 4 | BM144: Tues | BO144: Atl_QwikLok | BP144: 0 | BQ144: 0 | BR144: 0 | BS144: 0
Z145: Artisan | AA145: 5 | AO145: 6 | AP145: Okc | AQ145: Pho | AR145: 6OkcPho | AS145: 10 | AT145: 6 | BA145: 00924 | BB145: Puerto Rico | BC145: SAN JUAN | BE145: 143 | BF145: Arizona | BG145: Maricopa | BH145: Arizona Maricopa | BI145: Phoenix | BJ145: PHO-Zone 2 | BK145: PHO-Zone 2 | BL145: Zone 2 | BM145: Thurs | BO145: Atl_Rain Guard (Ameri-drain) | BP145: 0 | BQ145: 0 | BR145: 0 | BS145: 0
Z146: AVP or (AVP2 Atlanta Only) | AA146: 0 | AO146: 6 | AP146: Okc | AQ146: Slc | AR146: 6OkcSlc | AS146: 8 | AT146: 6 | BA146: 00925 | BB146: Puerto Rico | BC146: SAN JUAN | BE146: 144 | BF146: Arizona | BG146: Mohave | BH146: Arizona Mohave | BI146: Salt Lake City | BJ146: SLC - Zone 3 | BK146: SLC-Zone 3 | BL146: Zone 3 | BM146: Tues | BO146: Atl_Regal Rib | BP146: 0 | BQ146: 0 | BR146: 0 | BS146: 0
Z147: BatLok old style by Manager approval only | AA147: 5 | AO147: 6 | AP147: Okc | AQ147: Atw | AR147: 6OkcAtw | AS147: 8 | AT147: 6 | BA147: 00926 | BB147: Puerto Rico | BC147: SAN JUAN | BE147: 145 | BF147: Arizona | BG147: Navajo | BH147: Arizona Navajo | BI147: Phoenix | BJ147: PHO-Zone 1-5 | BK147: PHO-Zone 1-5 | BL147: Zone 1-5 | BM147: Wed | BO147: Atl_Retro R | BP147: 0 | BQ147: 0 | BR147: 0 | BS147: 0
Z148: BatLok/SupLok 12" no endlapped panels in SLC until March 2020 | AA148: 5 | AO148: 6 | AP148: Okc | AQ148: Albq | AR148: 6OkcAlbq | AS148: 12 | AT148: 6 | BA148: 00927 | BB148: Puerto Rico | BC148: SAN JUAN | BE148: 146 | BF148: Arizona | BG148: Pima | BH148: Arizona Pima | BI148: Phoenix | BJ148: PHO-Zone 3 | BK148: PHO-Zone 3 | BL148: Zone 3 | BM148: Fri | BO148: Atl_Rugged Rib | BP148: 0 | BQ148: 0 | BR148: 0 | BS148: 0
Z149: BatLok/SupLok 16" no endlapped panels in SLC until March 2020 | AA149: 5 | AO149: 6 | AP149: Okc | AQ149: Lacr | AR149: 6OkcLacr | AS149: 14 | AT149: 6 | BA149: 00928 | BB149: Puerto Rico | BC149: SAN JUAN | BE149: 147 | BF149: Arizona | BG149: Pinal | BH149: Arizona Pinal | BI149: Phoenix | BJ149: PHO-Zone 2 | BK149: PHO-Zone 2 | BL149: Zone 2 | BM149: Thurs | BO149: Atl_Shadowrib | BP149: 0 | BQ149: 0 | BR149: 0 | BS149: 0
Z150: Batten Caps | AA150: 5 | AO150: 6 | AP150: Okc | AQ150: Clvd | AR150: =_xlfn.CONCAT(AO150,AP150,AQ150) -> 6OkcClvd | AS150: 4 | AT150: 6 | BA150: 00929 | BB150: Puerto Rico | BC150: SAN JUAN | BE150: 148 | BF150: Arizona | BG150: Pinal Special | BH150: =_xlfn.CONCAT(BF150," ",BG150) -> Arizona Pinal Special | BI150: Phoenix | BJ150: PHO-Zone 3 | BK150: PHO-Zone 3 | BL150: Zone 3 | BM150: Fri | BO150: Atl_Slimline 12" | BP150: 0 | BQ150: 0 | BR150: 0 | BS150: 0
Z151: Classic Atlanta | AA151: 5 | AO151: 6 | AP151: Okc | AQ151: Brge | AR151: 6OkcBrge | AS151: 4 | AT151: 6 | BA151: 00930 | BB151: Puerto Rico | BC151: SAN JUAN | BE151: 149 | BF151: Arizona | BG151: Santa Cruz | BH151: Arizona Santa Cruz | BI151: Phoenix | BJ151: PHO-Zone 3 | BK151: PHO-Zone 3 | BL151: Zone 3 | BM151: Fri | BO151: Atl_Slimline 16" | BP151: 0 | BQ151: 0 | BR151: 0 | BS151: 0
Z152: Classic Houston | AA152: 5 | AO152: 6 | AP152: Okc | AQ152: Wall | AR152: 6OkcWall | AS152: 5 | AT152: 6 | BA152: 00931 | BB152: Puerto Rico | BC152: SAN JUAN | BE152: 150 | BF152: Arizona | BG152: Yavapai | BH152: Arizona Yavapai | BI152: Phoenix | BJ152: PHO-Zone 1-5 | BK152: PHO-Zone 1-5 | BL152: Zone 1-5 | BM152: Wed | BO152: Atl_Stormproof (Imperial Rib) | BP152: 100 | BQ152: 100 | BR152: 100 | BS152: 100
Z153: Coils | AA153: 0 | AO153: 6 | AP153: Okc | AQ153: Bytn | AR153: 6OkcBytn | AS153: 6 | AT153: 6 | BA153: 00933 | BB153: Puerto Rico | BC153: SAN JUAN | BE153: 151 | BF153: Arizona | BG153: Yuma | BH153: Arizona Yuma | BI153: Phoenix | BJ153: PHO-Zone 4 | BK153: PHO-Zone 4 | BL153: Zone 4 | BM153: Tues | BO153: Atl_Trim Breaks | BP153: 100 | BQ153: 100 | BR153: 100 | BS153: 100
Z154: 1-1/4" Corrugated ABC | AA154: 0 | AO154: 6 | AP154: Okc | AQ154: Farm | AR154: 6OkcFarm | AS154: 12 | AT154: 6 | BA154: 00934 | BB154: Puerto Rico | BC154: BAYAMON | BE154: 152 | BF154: Arkansas | BG154: Arkansas | BH154: Arkansas Arkansas | BI154: Oklahoma City | BJ154: OKC Zone 5 | BK154: OKC Zone 5 | BL154: OKC Zone 5 | BM154: Tue /Fri | BO154: Atl_Udek/Dblok 18" | BP154: 0 | BQ154: 0 | BR154: 0 | BS154: 0
Z155: 1/2 x 2-1/2 Corrugated | AA155: 0 | AO155: 6 | AP155: Pho | AQ155: Albq | AR155: 6PhoAlbq | AS155: 2 | AT155: 6 | BA155: 00935 | BB155: Puerto Rico | BC155: SAN JUAN | BE155: 153 | BF155: Arkansas | BG155: Ashley | BH155: Arkansas Ashley | BI155: Oklahoma City | BJ155: OKC Zone 5 | BK155: OKC Zone 5 | BL155: OKC Zone 5 | BM155: Tue /Fri | BO155: Atl_Udek/Dblok 24" | BP155: 0 | BQ155: 0 | BR155: 0 | BS155: 0
Z156: Craftsman HB 12" AtLanta | AA156: 5 | AO156: 6 | AP156: Pho | AQ156: Farm | AR156: 6PhoFarm | AS156: 2 | AT156: 6 | BA156: 00936 | BB156: Puerto Rico | BC156: SAN JUAN | BE156: 154 | BF156: Arkansas | BG156: Baxter | BH156: Arkansas Baxter | BI156: Oklahoma City | BJ156: OKC ZONE 1F | BK156: OKC ZONE 1F | BL156: OKC ZONE 1F | BM156: Tues - Fri | BO156: Atl_Vintage Rib | BP156: 0 | BQ156: 0 | BR156: 0 | BS156: 0
Z157: Craftsman HB 12" Houston | AA157: 5 | AO157: 6 | AP157: Slc | AQ157: Atw | AR157: 6SlcAtw | AS157: 3 | AT157: 6 | BA157: 00937 | BB157: Puerto Rico | BC157: SAN JUAN | BE157: 155 | BF157: Arkansas | BG157: Benton | BH157: =_xlfn.CONCAT(BF157," ",BG157) -> Arkansas Benton | BI157: Oklahoma City | BJ157: OKC ZONE 1F | BK157: OKC ZONE 1F | BL157: OKC ZONE 1F | BM157: Tues - Fri | BO157: Atl_Vistashadow | BP157: 0 | BQ157: 0 | BR157: 0 | BS157: 0
Z158: Craftsman SB 12" Atlanta | AA158: 5 | AO158: 6 | AP158: Slc | AQ158: Albq | AR158: 6SlcAlbq | AS158: 4 | AT158: 6 | BA158: 00938 | BB158: Puerto Rico | BC158: SAN JUAN | BE158: 156 | BF158: Arkansas | BG158: Boone | BH158: Arkansas Boone | BI158: Oklahoma City | BJ158: OKC ZONE 1F | BK158: OKC ZONE 1F | BL158: OKC ZONE 1F | BM158: Tues - Fri | BO158: Atl_Vistasheen | BP158: 0 | BQ158: 0 | BR158: 0 | BS158: 0
Z159: Craftsman SB 12" Houston | AA159: 5 | AO159: 6 | AP159: Slc | AQ159: Farm | AR159: 6SlcFarm | AS159: 4 | AT159: 6 | BA159: 00939 | BB159: Puerto Rico | BC159: SAN JUAN | BE159: 157 | BF159: Arkansas | BG159: Bradley | BH159: Arkansas Bradley | BI159: Oklahoma City | BJ159: OKC ZONE 1F | BK159: OKC ZONE 1F | BL159: OKC ZONE 1F | BM159: Tues - Fri | BO159: Atl_WeatherSaFe (7/8 Wide Rib) | BP159: 0 | BQ159: 0 | BR159: 0 | BS159: 0
Z160: Craftsman HB 16.5" Atlanta | AA160: 5 | AO160: 6 | AP160: Slc | AQ160: Lacr | AR160: 6SlcLacr | AS160: 4 | AT160: 6 | BA160: 00940 | BB160: Puerto Rico | BC160: SAN JUAN | BE160: 158 | BF160: Arkansas | BG160: Calhoun | BH160: Arkansas Calhoun | BI160: Oklahoma City | BJ160: OKC Zone 5 | BK160: OKC Zone 5 | BL160: OKC Zone 5 | BM160: Tue /Fri | BO160: Atw_03" C/Z 14 ga | BP160: 0 | BQ160: 0 | BR160: 0 | BS160: 0
Z161: Craftsman HB 16.5" Houston | AA161: 5 | AO161: 6 | AP161: Slc | AQ161: Wall | AR161: 6SlcWall | AS161: 8 | AT161: 6 | BA161: 00949 | BB161: Puerto Rico | BC161: TOA BAJA | BE161: 159 | BF161: Arkansas | BG161: Carroll | BH161: Arkansas Carroll | BI161: Oklahoma City | BJ161: OKC ZONE 1F | BK161: OKC ZONE 1F | BL161: OKC ZONE 1F | BM161: Tues - Fri | BO161: Atw_03" C/Z 16 ga | BP161: 0 | BQ161: 0 | BR161: 0 | BS161: 0
Z162: Craftsman SB 16.5" Atlanta | AA162: 5 | AO162: 6 | AP162: Slc | AQ162: Clvd | AR162: 6SlcClvd | AS162: 9 | AT162: 6 | BA162: 00950 | BB162: Puerto Rico | BC162: TOA BAJA | BE162: 160 | BF162: Arkansas | BG162: Chicot | BH162: Arkansas Chicot | BI162: Oklahoma City | BJ162: OKC Zone 5 | BK162: OKC Zone 5 | BL162: OKC Zone 5 | BM162: Tue /Fri | BO162: Atw_04" C/Z 12 ga | BP162: 0 | BQ162: 0 | BR162: 0 | BS162: 0
Z163: Craftsman SB 16.5" Houston | AA163: 5 | AO163: 6 | AP163: Slc | AQ163: Bytn | AR163: 6SlcBytn | AS163: 5 | AT163: 6 | BA163: 00951 | BB163: Puerto Rico | BC163: TOA BAJA | BE163: 161 | BF163: Arkansas | BG163: Clark | BH163: Arkansas Clark | BI163: Oklahoma City | BJ163: OKC Zone 5 | BK163: OKC Zone 5 | BL163: OKC Zone 5 | BM163: Fri | BO163: Atw_04" C/Z 14 ga | BP163: 0 | BQ163: 0 | BR163: 0 | BS163: 0
Z164: Designer 12" | AA164: 5 | AO164: 6 | AP164: Slc | AQ164: Ralg | AR164: 6SlcRalg | AS164: 10 | AT164: 6 | BA164: 00952 | BB164: Puerto Rico | BC164: TOA BAJA | BE164: 162 | BF164: Arkansas | BG164: Clay | BH164: Arkansas Clay | BI164: Oklahoma City | BJ164: OKC ZONE 1F | BK164: OKC ZONE 1F | BL164: OKC ZONE 1F | BM164: Tues - Fri | BO164: Atw_04" C/Z 16 ga | BP164: 0 | BQ164: 0 | BR164: 0 | BS164: 0
Z165: Designer 16" | AA165: 5 | AO165: 6 | AP165: Slc | AQ165: Pied | AR165: 6SlcPied | AS165: 13 | AT165: 6 | BA165: 00953 | BB165: Puerto Rico | BC165: TOA ALTA | BE165: 163 | BF165: Arkansas | BG165: Cleburne | BH165: Arkansas Cleburne | BI165: Oklahoma City | BJ165: OKC ZONE 1F | BK165: OKC ZONE 1F | BL165: OKC ZONE 1F | BM165: Tues - Fri | BO165: Atw_05" C/Z 12 ga | BP165: 0 | BQ165: 0 | BR165: 0 | BS165: 0
Z166: Flatsheets 29-18g | AA166: 0 | AO166: 6 | AP166: Slc | AQ166: Pho | AR166: 6SlcPho | AS166: 2 | AT166: 6 | BA166: 00954 | BB166: Puerto Rico | BC166: TOA ALTA | BE166: 164 | BF166: Arkansas | BG166: Cleveland | BH166: Arkansas Cleveland | BI166: Oklahoma City | BJ166: OKC Zone 5 | BK166: OKC Zone 5 | BL166: OKC Zone 5 | BM166: Tue /Fri | BO166: Atw_05" C/Z 14 ga | BP166: 0 | BQ166: 0 | BR166: 0 | BS166: 0
Z167: Flexloc | AA167: 5 | BA167: 00956 | BB167: Puerto Rico | BC167: BAYAMON | BE167: 165 | BF167: Arkansas | BG167: Columbia | BH167: Arkansas Columbia | BI167: Oklahoma City | BJ167: OKC Zone 5 | BK167: OKC Zone 5 | BL167: OKC Zone 5 | BM167: Tue /Fri | BO167: Atw_05" C/Z 16 ga | BP167: 0 | BQ167: 0 | BR167: 0 | BS167: 0
Z168: 5V Crimp Adel | AA168: 0 | BA168: 00957 | BB168: Puerto Rico | BC168: BAYAMON | BE168: 166 | BF168: Arkansas | BG168: Conway | BH168: Arkansas Conway | BI168: Oklahoma City | BJ168: OKC ZONE 1F | BK168: OKC ZONE 1F | BL168: OKC ZONE 1F | BM168: Tues - Fri | BO168: Atw_06" C/Z 12 ga | BP168: 0 | BQ168: 0 | BR168: 0 | BS168: 0
Z169: 5V Crimp Houston | AA169: 0 | BA169: 00958 | BB169: Puerto Rico | BC169: BAYAMON | BE169: 167 | BF169: Arkansas | BG169: Craighead | BH169: Arkansas Craighead | BI169: Oklahoma City | BJ169: OKC ZONE 1F | BK169: OKC ZONE 1F | BL169: OKC ZONE 1F | BM169: Tues - Fri | BO169: Atw_06" C/Z 14 ga | BP169: 0 | BQ169: 0 | BR169: 0 | BS169: 0
Z170: FW | AA170: 5 | BA170: 00959 | BB170: Puerto Rico | BC170: BAYAMON | BE170: 168 | BF170: Arkansas | BG170: Crawford | BH170: Arkansas Crawford | BI170: Oklahoma City | BJ170: OKC ZONE 1F | BK170: OKC ZONE 1F | BL170: OKC ZONE 1F | BM170: Tues - Fri | BO170: Atw_06" C/Z 16 ga | BP170: 0 | BQ170: 0 | BR170: 0 | BS170: 0
Z171: Imperial Rib | AA171: 0 | BA171: 00960 | BB171: Puerto Rico | BC171: BAYAMON | BE171: 169 | BF171: Arkansas | BG171: Crittenden | BH171: Arkansas Crittenden | BI171: Oklahoma City | BJ171: OKC ZONE 1F | BK171: OKC ZONE 1F | BL171: OKC ZONE 1F | BM171: Tues - Fri | BO171: Atw_07" C/Z 12 ga | BP171: 0 | BQ171: 0 | BR171: 0 | BS171: 0
Z172: Imperial Rib Drip Stop | AA172: 0 | BA172: 00961 | BB172: Puerto Rico | BC172: BAYAMON | BE172: 170 | BF172: Arkansas | BG172: Cross | BH172: Arkansas Cross | BI172: Oklahoma City | BJ172: OKC ZONE 1F | BK172: OKC ZONE 1F | BL172: OKC ZONE 1F | BM172: Tues - Fri | BO172: Atw_07" C/Z 16 ga | BP172: 0 | BQ172: 0 | BR172: 0 | BS172: 0
Z173: LokSeam 12" no peak/eave in SLC | AA173: 5 | BA173: 00962 | BB173: Puerto Rico | BC173: CATANO | BE173: 171 | BF173: Arkansas | BG173: Dallas | BH173: Arkansas Dallas | BI173: Oklahoma City | BJ173: OKC Zone 5 | BK173: OKC Zone 5 | BL173: OKC Zone 5 | BM173: Tue /Fri | BO173: Atw_08" C/Z 12 ga | BP173: 500 | BQ173: 500 | BR173: 500 | BS173: 500
Z174: LokSeam 16" no peak/eave in SLC | AA174: 5 | BA174: 00963 | BB174: Puerto Rico | BC174: CATANO | BE174: 172 | BF174: Arkansas | BG174: Desha | BH174: Arkansas Desha | BI174: Oklahoma City | BJ174: OKC Zone 5 | BK174: OKC Zone 5 | BL174: OKC Zone 5 | BM174: Tue /Fri | BO174: Atw_08" C/Z 14 ga | BP174: 500 | BQ174: 500 | BR174: 500 | BS174: 500
Z175: LokSeam 18" no peak/eave in SLC | AA175: 5 | BA175: 00964 | BB175: Puerto Rico | BC175: SAN JUAN | BE175: 173 | BF175: Arkansas | BG175: Drew | BH175: Arkansas Drew | BI175: Oklahoma City | BJ175: OKC Zone 5 | BK175: OKC Zone 5 | BL175: OKC Zone 5 | BM175: Tue /Fri | BO175: Atw_08" C/Z 16 ga | BP175: 0 | BQ175: 0 | BR175: 0 | BS175: 0
Z176: MasterLine | AA176: 5 | BA176: 00965 | BB176: Puerto Rico | BC176: GUAYNABO | BE176: 174 | BF176: Arkansas | BG176: Faulkner | BH176: Arkansas Faulkner | BI176: Oklahoma City | BJ176: OKC ZONE 1F | BK176: OKC ZONE 1F | BL176: OKC ZONE 1F | BM176: Tues - Fri | BO176: Atw_08" ES 12 ga | BP176: 0 | BQ176: 0 | BR176: 0 | BS176: 0
Z177: Monarch Rib | AA177: 0 | BA177: 00966 | BB177: Puerto Rico | BC177: GUAYNABO | BE177: 175 | BF177: Arkansas | BG177: Franklin | BH177: =_xlfn.CONCAT(BF177," ",BG177) -> Arkansas Franklin | BI177: Oklahoma City | BJ177: OKC ZONE 1F | BK177: OKC ZONE 1F | BL177: OKC ZONE 1F | BM177: Tues - Fri | BO177: Atw_08" ES 14 ga | BP177: 0 | BQ177: 0 | BR177: 0 | BS177: 0
Z178: Nuwall | AA178: 5 | BA178: 00968 | BB178: Puerto Rico | BC178: SAN JUAN | BE178: 176 | BF178: Arkansas | BG178: Fulton | BH178: Arkansas Fulton | BI178: Oklahoma City | BJ178: OKC ZONE 1F | BK178: OKC ZONE 1F | BL178: OKC ZONE 1F | BM178: Tues - Fri | BO178: Atw_08" ES 16 ga | BP178: 0 | BQ178: 0 | BR178: 0 | BS178: 0
Z179: PBC | AA179: 0 | BA179: 00969 | BB179: Puerto Rico | BC179: GUAYNABO | BE179: 177 | BF179: Arkansas | BG179: Garland | BH179: Arkansas Garland | BI179: Oklahoma City | BJ179: OKC ZONE 1F | BK179: OKC ZONE 1F | BL179: OKC ZONE 1F | BM179: Tues - Fri | BO179: Atw_09" C/Z 12 ga | BP179: 0 | BQ179: 0 | BR179: 0 | BS179: 0
Z180: PBD | AA180: 0 | BA180: 00970 | BB180: Puerto Rico | BC180: GUAYNABO | BE180: 178 | BF180: Arkansas | BG180: Grant | BH180: Arkansas Grant | BI180: Oklahoma City | BJ180: OKC Zone 5 | BK180: OKC Zone 5 | BL180: OKC Zone 5 | BM180: Tue /Fri | BO180: Atw_09" C/Z 14 ga | BP180: 0 | BQ180: 0 | BR180: 0 | BS180: 0
Z181: PBR | AA181: 0 | BA181: 00971 | BB181: Puerto Rico | BC181: GUAYNABO | BE181: 179 | BF181: Arkansas | BG181: Greene | BH181: Arkansas Greene | BI181: Oklahoma City | BJ181: OKC ZONE 1F | BK181: OKC ZONE 1F | BL181: OKC ZONE 1F | BM181: Tues - Fri | BO181: Atw_09" C/Z 16 ga | BP181: 0 | BQ181: 0 | BR181: 0 | BS181: 0
Z182: PBR Drip Stop | AA182: 0 | BA182: 00975 | BB182: Puerto Rico | BC182: SAN JUAN | BE182: 180 | BF182: Arkansas | BG182: Hempstead | BH182: Arkansas Hempstead | BI182: Oklahoma City | BJ182: OKC Zone 5 | BK182: OKC Zone 5 | BL182: OKC Zone 5 | BM182: Tue /Fri | BO182: Atw_1/2" X 2-1/2" Corrugated | BP182: 0 | BQ182: 0 | BR182: 0 | BS182: 0
Z183: PBU all except SLC | AA183: 0 | BA183: 00976 | BB183: Puerto Rico | BC183: TRUJILLO ALTO | BE183: 181 | BF183: Arkansas | BG183: Hot Spring | BH183: Arkansas Hot Spring | BI183: Oklahoma City | BJ183: OKC Zone 5 | BK183: OKC Zone 5 | BL183: OKC Zone 5 | BM183: Tue /Fri | BO183: Atw_1/4" X 1-1/4" Corrugated | BP183: 0 | BQ183: 0 | BR183: 0 | BS183: 0
Z184: PBU SLC only | AA184: 0 | BA184: 00977 | BB184: Puerto Rico | BC184: TRUJILLO ALTO | BE184: 182 | BF184: Arkansas | BG184: Howard | BH184: Arkansas Howard | BI184: Oklahoma City | BJ184: OKC Zone 5 | BK184: OKC Zone 5 | BL184: OKC Zone 5 | BM184: Tue /Fri | BO184: Atw_10" C/Z 12 ga | BP184: 0 | BQ184: 0 | BR184: 0 | BS184: 0
Z185: Perforted Steel or Alum | AA185: 0 | BA185: 00978 | BB185: Puerto Rico | BC185: TRUJILLO ALTO | BE185: 183 | BF185: Arkansas | BG185: Independence | BH185: Arkansas Independence | BI185: Oklahoma City | BJ185: OKC ZONE 1F | BK185: OKC ZONE 1F | BL185: OKC ZONE 1F | BM185: Tues - Fri | BO185: Atw_10" C/Z 14 ga | BP185: 0 | BQ185: 0 | BR185: 0 | BS185: 0
Z186: Perma-Clad | AA186: 0 | BA186: 00979 | BB186: Puerto Rico | BC186: SAN JUAN | BE186: 184 | BF186: Arkansas | BG186: Izard | BH186: =_xlfn.CONCAT(BF186," ",BG186) -> Arkansas Izard | BI186: Oklahoma City | BJ186: OKC ZONE 1F | BK186: OKC ZONE 1F | BL186: OKC ZONE 1F | BM186: Tues - Fri | BO186: Atw_10" C/Z 16 ga | BP186: 0 | BQ186: 0 | BR186: 0 | BS186: 0
Z187: QwikLok Atlanta | AA187: 5 | BA187: 00982 | BB187: Puerto Rico | BC187: SAN JUAN | BE187: 185 | BF187: Arkansas | BG187: Jackson | BH187: Arkansas Jackson | BI187: Oklahoma City | BJ187: OKC ZONE 1F | BK187: OKC ZONE 1F | BL187: OKC ZONE 1F | BM187: Tues - Fri | BO187: Atw_10" ES 12 ga | BP187: 0 | BQ187: 0 | BR187: 0 | BS187: 0
Z188: QwikLok Houston | AA188: 5 | BA188: 00983 | BB188: Puerto Rico | BC188: CAROLINA | BE188: 186 | BF188: Arkansas | BG188: Jefferson | BH188: Arkansas Jefferson | BI188: Oklahoma City | BJ188: OKC Zone 5 | BK188: OKC Zone 5 | BL188: OKC Zone 5 | BM188: Tue /Fri | BO188: Atw_10" ES 14 ga | BP188: 0 | BQ188: 0 | BR188: 0 | BS188: 0
Z189: Rain Guard | AA189: 0 | BA189: 00984 | BB189: Puerto Rico | BC189: CAROLINA | BE189: 187 | BF189: Arkansas | BG189: Johnson | BH189: Arkansas Johnson | BI189: Oklahoma City | BJ189: OKC ZONE 1F | BK189: OKC ZONE 1F | BL189: OKC ZONE 1F | BM189: Tues - Fri | BO189: Atw_10" ES 16 ga | BP189: 0 | BQ189: 0 | BR189: 0 | BS189: 0
Z190: Regal Rib | AA190: 0 | BA190: 00985 | BB190: Puerto Rico | BC190: CAROLINA | BE190: 188 | BF190: Arkansas | BG190: Lafayette | BH190: Arkansas Lafayette | BI190: Oklahoma City | BJ190: OKC Zone 5 | BK190: OKC Zone 5 | BL190: OKC Zone 5 | BM190: Tue /Fri | BO190: Atw_11" C/Z 12 ga | BP190: 0 | BQ190: 0 | BR190: 0 | BS190: 0
Z191: Retro R | AA191: 0 | BA191: 00986 | BB191: Puerto Rico | BC191: CAROLINA | BE191: 189 | BF191: Arkansas | BG191: Lawrence | BH191: Arkansas Lawrence | BI191: Oklahoma City | BJ191: OKC ZONE 1F | BK191: OKC ZONE 1F | BL191: OKC ZONE 1F | BM191: Tues - Fri | BO191: Atw_11" C/Z 14 ga | BP191: 0 | BQ191: 0 | BR191: 0 | BS191: 0
Z192: Rugged Rib | AA192: 0 | BA192: 00987 | BB192: Puerto Rico | BC192: CAROLINA | BE192: 190 | BF192: Arkansas | BG192: Lee | BH192: Arkansas Lee | BI192: Oklahoma City | BJ192: OKC ZONE 1F | BK192: OKC ZONE 1F | BL192: OKC ZONE 1F | BM192: Tues - Fri | BO192: Atw_11" C/Z 16 ga | BP192: 0 | BQ192: 0 | BR192: 0 | BS192: 0
Z193: Rustic C - SLC Only | AA193: 0 | BA193: 00988 | BB193: Puerto Rico | BC193: CAROLINA | BE193: 191 | BF193: Arkansas | BG193: Lincoln | BH193: Arkansas Lincoln | BI193: Oklahoma City | BJ193: OKC Zone 5 | BK193: OKC Zone 5 | BL193: OKC Zone 5 | BM193: Tue /Fri | BO193: Atw_12" C/Z 12 ga | BP193: 0 | BQ193: 0 | BR193: 0 | BS193: 0
Z194: Shadowrib Atllanta | AA194: 5 | BA194: 01001 | BB194: Massachusetts | BC194: HAMPDEN | BD194: ABC Spider | BE194: 192 | BF194: Arkansas | BG194: Little River | BH194: Arkansas Little River | BI194: Oklahoma City | BJ194: OKC Zone 5 | BK194: OKC Zone 5 | BL194: OKC Zone 5 | BM194: Tue /Fri | BO194: Atw_12" C/Z 14 ga | BP194: 0 | BQ194: 0 | BR194: 0 | BS194: 0
Z195: Shadowrib Houston | AA195: 5 | BA195: 01002 | BB195: Massachusetts | BC195: HAMPSHIRE | BD195: ABC Spider | BE195: 193 | BF195: Arkansas | BG195: Logan | BH195: Arkansas Logan | BI195: Oklahoma City | BK195: OKC-Zone 1 | BL195: Zone 1 | BM195: Tues/Fri | BO195: Atw_12" C/Z 16 ga | BP195: 0 | BQ195: 0 | BR195: 0 | BS195: 0
Z196: Slimline 16" SLC/ROME ZONE 7 ONLY | AA196: 5 | BA196: 01003 | BB196: Massachusetts | BC196: HAMPSHIRE | BD196: ABC Spider | BE196: 194 | BF196: Arkansas | BG196: Logan | BH196: =_xlfn.CONCAT(BF196," ",BG196) -> Arkansas Logan | BI196: Oklahoma City | BJ196: OKC ZONE 1F | BK196: OKC ZONE 1F | BL196: OKC ZONE 1F | BM196: Tues - Fri | BO196: Atw_5V-Crimp | BP196: 0 | BQ196: 0 | BR196: 0 | BS196: 0
Z197: Slimline 16" Rome all except zone 7 | AA197: 5 | BA197: 01004 | BB197: Massachusetts | BC197: HAMPSHIRE | BD197: ABC Spider | BE197: 195 | BF197: Arkansas | BG197: Lonoke | BH197: Arkansas Lonoke | BI197: Oklahoma City | BJ197: OKC ZONE 1F | BK197: OKC ZONE 1F | BL197: OKC ZONE 1F | BM197: Tues - Fri | BO197: Atw_7.2 | BP197: 0 | BQ197: 0 | BR197: 0 | BS197: 0
Z198: Soundwall Atllanta | AA198: 5 | BA198: 01005 | BB198: Massachusetts | BC198: WORCESTER | BD198: ABC Spider | BE198: 196 | BF198: Arkansas | BG198: Madison | BH198: =_xlfn.CONCAT(BF198," ",BG198) -> Arkansas Madison | BI198: Oklahoma City | BJ198: OKC ZONE 1F | BK198: OKC ZONE 1F | BL198: OKC ZONE 1F | BM198: Tues - Fri | BO198: Atw_Artisan | BP198: 0 | BQ198: 0 | BR198: 0 | BS198: 0
Z199: Stormproof | AA199: 0 | BA199: 01007 | BB199: Massachusetts | BC199: HAMPSHIRE | BD199: ABC Spider | BE199: 197 | BF199: Arkansas | BG199: Marion | BH199: Arkansas Marion | BI199: Oklahoma City | BJ199: OKC ZONE 1F | BK199: OKC ZONE 1F | BL199: OKC ZONE 1F | BM199: Tues - Fri | BO199: Atw_AVP | BP199: 0 | BQ199: 0 | BR199: 0 | BS199: 0
Z200: Stormproof Drip Stop | AA200: 0 | BA200: 01008 | BB200: Massachusetts | BC200: HAMPDEN | BD200: ABC Spider | BE200: 198 | BF200: Arkansas | BG200: Miller | BH200: Arkansas Miller | BI200: Oklahoma City | BJ200: OKC Zone 5 | BK200: OKC Zone 5 | BL200: OKC Zone 5 | BM200: Tue /Fri | BO200: Atw_BatLok/SupLok 12" | BP200: 0 | BQ200: 0 | BR200: 0 | BS200: 0
... 925 more rows

Sheet MFG Plant
A2: Product | B2: Plant
A3: 7.2 Panel | B3: Houston/Salt Lake City/Indy
A4: 1/2 x 2-1/2 Corrugated | B4: Houston
A5: 1-1/4" Corrugated ABC | B5: Oklahoma
A6: 5V Crimp Adel | B6: Adel, GA
A7: 5V Crimp Houston | B7: Houston
A8: 7/8 Wide Rib | B8: Salt Lake City
A9: CEE/ZEE /CHANNEL/EAVE STRUTS | B9: All plants except Rome, NY
A10: Ameri-drain | B10: Houston & Rome, NY
A11: Artisan | B11: Houston & Atlanta
A12: AVP or (AVP2 Atlanta Only) | B12: Houston & Atlanta
A13: BatLok/SupLok 12" and 16" | B13: HOU/ATL/IND/ROM/SLC/ATW
A14: Batten Caps | B14: Houston & Atlanta
A15: Classic | B15: Houston & Atlanta
A16: Craftsman | B16: Houston & Atlanta
A17: Designer | B17: Houston
A18: Flatsheets 29-18g | B18: All Plants
A19: Flexloc | B19: Houston
A20: FW | B20: Houston
A21: Imperial Rib | B21: Oklahoma / Adel, GA / Rome, NY / Phoenix / Salt Lake City / Mt Pleasant, IA
A22: Imperial Rib Drip Stop | B22: Oklahoma / Rome, NY / Mt Pleasant, IA
A23: LokSeam | B23: Houston / Atlanta / Indy / Salt Lake City
A24: MasterLine | B24: Houston
A25: Monarch Rib | B25: Mt Pleasant, IA
A26: Nuwall | B26: Houston
A27: PBC | B27: Houston / Atlanta / Salt Lake City
A28: PBD | B28: Houston / Atlanta / Salt Lake City
A29: PBR | B29: All Plants
A30: PBR Drip Stop | B30: Oklahoma / Rome, NY / Mt Pleasant, IA
A31: PBU all except SLC | B31: All Plants
A32: Perma-Clad | B32: Phoenix / Salt Lake City / Mt Pleasant, IA
A33: QwikLok Atlanta | B33: Houston & Atlanta
A34: QwikLok Houston | B34: Houston
A35: Rain Guard | B35: Houston & Rome, NY
A36: Regal Rib | B36: Indy
A37: Retro R | B37: Oklahoma
A38: Rollformed Studs | B38: Houston
A39: Rugged Rib | B39: Phoenix & Mt Pleasant, IA
A40: Rustic C - | B40: Salt Lake City
A41: Shadowrib | B41: Houston & Atlanta
A42: Slimline 16" | B42: Salt Lkae City & Rome, NY
A43: Stormproof | B43: Oklahoma / Adel, GA / Rome, NY / Phoenix / Salt Lake City / Mt Pleasant, IA
A44: Stormproof Drip Stop | B44: Oklahoma / Rome, NY / Mt Pleasant, IA
A45: Trim 24, 22, 20, 18 Ga | B45: All Plants
A46: Trim 26 or 29 Ga | B46: All Plants
A47: WeatherSafe | B47: Salt Lake City
A48: Udek/Dblok | B48: Houston / Atlanta / Indy / Rome, NY / Salt Lake City / Mt Pleasant, IA / Atwater, CA
A49: V-Groove Soffit - 29g only | B49: Mt Pleasant, IA

Sheet New Rates (hidden)
A1: This Calculator will calculate the number of trucks required, % of load for the last truck and the Desired Freight (You must enter the information highlighted in RED - Product; Length of the Panel, Number of Panels and number of miles) (Blue cells are calculated and cannot be entered)
A5: Description | B5: Value | C5: UOM | D5: Instruction
A6: Product | B6: Vents 12" | D6: Select from the drop down menu | E6: Width | F6: Panels per truck 10' or shorter | G6: Panels per truck from 11' to 15' long | H6: Panels per truck from 16 to 25' long | I6: Panels per truck over 25' long not to exceed 52'
A7: Width of Panel | B7: =VLOOKUP(B6,Data_Table,2,FALSE) -> 12 | C7: Inches | E7: 12 | F7: 32 | G7: 32 | H7: 32 | I7: 32
A8: Length of Panel | B8: 10 | C8: Feet | D8: You must manually enter this value. If Customer Did Not Tell You Enter 30 Feet | E8: 12 | F8: 1800 | G8: 1350 | H8: 900 | I8: 450
A9: Square Foot Per Panel | B9: =B8*(B7/12) -> 10 | C9: 100 Sq Ft | D9: Note: 1 Square = 100 Square Feet | E9: 12 | F9: 960 | G9: 720 | H9: 480 | I9: 240
A10: Customer Squares | B10: =B11*(B9/100) -> 6.5 | C10: Squares | E10: 16 | F10: 792 | G10: 594 | H10: 396 | I10: 198
A11: Number of Panels | B11: 65 | C11: Panels | D11: You must manually enter the number of panels. | E11: 16.5 | F11: 1536 | G11: 1152 | H11: 768 | I11: 384
A12: Panels per Truck | B12: =VLOOKUP($B$6,Data_Table,VLOOKUP($B$8,Panel_Capacity,2,TRUE),FALSE) -> 32 | C12: per Truck | E12: 18 | F12: 960 | G12: 720 | H12: 480 | I12: 240
E13: 10.5 | F13: with | G13: Houston | H13: Plant | I13: per
A14: Number of Trucks | B14: =IF($B$39="yes",1,$B$38) -> 2 | C14: Trucks | E14: 24 | F14: 1008 | G14: 756 | H14: 504 | I14: 252
A15: % Util of the Last Truck | B15: =(B11-(TRUNC(B11/B12,0)*B12))/B12 -> 0.03125 | C15: % | D15: Percent utilization of last truck | E15: 12 | F15: 1056 | G15: 792 | H15: 528 | I15: 264
E16: 16 | F16: 1056 | G16: 792 | H16: 528 | I16: 264
A17: Number of Miles | B17: 100 | C17: Miles | D17: You must enter the number of miles | E17: 18 | F17: 1056 | G17: 792 | H17: 528 | I17: 264
A19: State of Job Site | B19: NY | C19: Miles | D19: Select State Abbreviation | E19: 18 | F19: 1056 | G19: 792 | H19: 528 | I19: 264
A21: Shipping Plant location | B21: Indianapolis | C21: Miles | D21: Select State Abbreviation | E21: 18 | F21: 1056 | G21: 792 | H21: 528 | I21: 264
A23: Freight | B23: =SUM(B41*B38,B44*B38,B43,B44) -> 1950 | C23: $ | D23: Desired Freight
A38: Estimated Number of full trucks | B38: =_xlfn.FLOOR.MATH($B11/B12) -> 2 | D38: Number of full trucks
A39: Less than a Single Truck | B39: =IF($B$38=0,"yes","no") -> no | D39: If Utilization ge 50% consider a full truck | E39: 18 | F39: 1056 | G39: 792 | H39: 528 | I39: 264
A40: Full Truck Mile Rate | B40: =VLOOKUP(B21,State_Rate,(VLOOKUP(B19,State_Col,2,FALSE)),FALSE) -> 3.110716804 | D40: Based upon the State of the Job Site
A41: Freight for Full Truck | B41: =IF(B39="no",MAX(B40*B17*B38,800),0) -> 800
A42: Estimated Sharing for Partial | B42: =VLOOKUP($B$15,Util_Rate,3,TRUE) -> 4 | D42: This number will be divided into the rate for a full truck as we assume it can share the truck
A43: Partial Truck Cost | B43: =(MAX(800,B40*B17)/B42) -> 200
A44: Drop Off Fee | B44: 50
D45: Total Freight equals the number of full trucks times the full truck fee plus $50 per full truck
D46: plus the cost of a partial truck plus a $50 fee
E63: 16 | F63: 1152 | G63: 864 | H63: 576 | I63: 288
E64: 18 | F64: 1152 | G64: 864 | H64: 576 | I64: 288
E65: 16 | F65: 1152 | G65: 864 | H65: 576 | I65: 288 Inquire if over 30'
E66: 12 | F66: 792 | G66: 594 | H66: 396 | I66: 198
E67: 12 | F67: 792 | G67: 594 | H67: 396 | I67: 198
E68: 16 | F68: 648 | G68: 486 | H68: 324 | I68: 162
E69: 12 | F69: 1920 | G69: 1440 | H69: 960 | I69: 480
E70: 16 | F70: 1080 | G70: 810 | H70: 540 | I70: 270
E71: 12 | F71: 960 | G71: 720 | H71: 480 | I71: 240
E72: 16 | F72: 960 | G72: 720 | H72: 480 | I72: 240
E73: 18 | F73: 1200 | G73: 900 | H73: 600 | I73: 300
E74: 24 | F74: 1200 | G74: 900 | H74: 600 | I74: 300
E75: 18 | F75: 960 | G75: 720 | H75: 480 | I75: 240
E76: 24 | F76: 960 | G76: 720 | H76: 480 | I76: 240

Sheet Std Wrk (hidden)
A1: General Description
A2: This program is designed to be a quick calculator to help the user determine the number of trucks and associated freight charge. The user must be able to identify the product, length of the panel, number of panels and number of miles. The program is designed to allow you to make the calculation based upon whether the customer provides you with the actual number of panels or just the number of squares. For each calculator the information the user must enter is highlighted in RED. All other fields are highlighted in BLUE and can not be changed by the user. This is done to protect the formulas within the spreadsheet. FREIGHT charges are highlighed in Purple and also can not be modified. The information below describes how to maintain the information that drives the calculators. Essentially, the program uses the standard tables from the ISC Manual to determine key values. These tables will most likely need to be maintained over time. Finally, the critical calculations should be identified within the calculating spreadsheets.
AK12: IMPORTANT MODIFICATION TO ONE CORE DATA BASE ON NOVE 15 SIGINIFICANTLY
AK13: CHANGED THE STANDARD WORK
A15: 1 | B15: Data_Entry: Contains the basic product offerings and is used to populate the Drop Down Menu for input on the "Arch_SSTR" worksheets
B16: a. The Product Offering is located in Column A of the worksheet Tables | AK16: High level approach:
B17: b. If you add new Products you will need to expand the range of the table to include the new rows AND resort the table alphabetically | AK17: 1. Create Rocky Road
C18: 1) Add the new product to the rows at the bottom of the table.
C19: 2) FORMULAS/Select Data_Entry/EDIT/Click cursor at the end of the field range within the REFERS TO box/SHIFT-CTL DOWN/OK/CLOSE
C20: 3) Sort Column A-F in alphabetical order
A22: 2 | B22: Data_Table: Contains the basic product offerings and key information including Width, Number of Panels per Truck
B23: b. If you add new Products you will need to expand the range of the table to include the new rows AND resort the table alphabetically | AK23: 1. Create Rocky Road
C24: 1) Add the new product to the rows at the bottom of the table.
C25: 2) FORMULAS/Select Data_Table/EDIT/Click cursor at the end of the field range within the REFERS TO box/SHIFT-CTL DOWN/OK/CLOSE
C26: 3) Sort Column A-F in alphabetical order
A28: 3 | B28: Mile_Less: Contains the references to locate the proper freight rates when shipping a less than full truck. In the first column is the mileage breakdown, the second column reflects the column number of the actual rate within the table FREIGHT_LESS
B29: a. The table Mile_Less is located in Column J, Row 10 of the Worksheet Tables | AK29: High level approach:
B30: b. You shouldn't need to modify this table too much, unless you add greater number of mileage options. In that case,
C31: 1) Add the new mileage options to the rows at the bottom of the table.
C32: 2) FORMULAS/Select Mile_Less/EDIT/Click cursor at the end of the field range within the REFERS TO box/SHIFT-CTL DOWN/OK/CLOSE
C33: 3) Sort Column K-L in numerical order
A35: 4 | B35: Mile_Full: Contains the references to locate the proper freight rates when shipping a full truck. In the first column is the mileage breakdown, the second column reflects the column number of the actual rate within the table FREIGHT_FULL
B36: a. The table Mile_Full is located in Column O, Row 10 of the Worksheet Tables
B37: b. You shouldn't need to modify this table too much, unless you add greater number of mileage options. In that case,
C38: 1) Add the new mileage options to the rows at the bottom of the table.
C39: 2) FORMULAS/Select Mile_Full/EDIT/Click cursor at the end of the field range within the REFERS TO box/SHIFT-CTL DOWN/OK/CLOSE
C40: 3) Sort Column P-Q in numerical order
A42: 5 | B42: Util_Rate: Contains the references to locate the proper freight rates when shipping less than a full truck. Essentially, this table translates the calculated truck utilization rate to determine the proper row to reference in the rate table (FREIGHT_LESS). The row is referenced by a letter (A-E)
B43: a. The table Util_Rate is located in Column O, Row 1 of the Worksheet Tables
B44: b. You shouldn't need to modify this table too much, unless you add greater number of utilization rate options. In that case,
C45: 1) Add the new utilization rate options to the rows at the bottom of the table.
C46: 2) FORMULAS/Select Util_Rate/EDIT/Click cursor at the end of the field range within the REFERS TO box/SHIFT-CTL DOWN/OK/CLOSE
C47: 3) Sort Column P-Q in numerical order
A49: 6 | B49: Freight_Less: Contains the freight rates when shipping less than a full truck. This is based upon the % utilization and the miles being shipped. Note, the last colum reflects a per mile rate as opposed to a fixed rate as in the other columns
B50: a. The table Util_Rate is located in Column U, Row 1 of the Worksheet Tables
B51: b. You shouldn't need to modify this table too much, unless you add greater number of utilization rate (row) options. In that case,
C52: 1) Add the new utilization rate options to the rows at the bottom of the table.
C53: 2) FORMULAS/Select Freight_Less/EDIT/Click cursor at the end of the field range within the REFERS TO box/SHIFT-CTL DOWN/OK/CLOSE
C54: 3) Sort Column U-Z in numerical order
B55: c. You might need to add columns to the table if you add mileage breakdowns. In that case,
C56: 1) Add the new mileage categories by INSERTing the columns in the middle of the table. Retype previous columns if necessary to correct the table
C57: 2) If you aren't adding any additional columns containing rates (as opposed to lump sum values) then you are done
C58: 3) If you are adding additional columns with rates - then you will be affecting the calculations in the calculator - ask for help!
A60: 7 | B60: Freight_Full: Contains the freight rates when shipping a full truck. This is based upon the % utilization and the miles being shipped. Note, the last colum reflects a per mile rate as opposed to a fixed rate as in the other columns
B61: a. The table Util_Rate is located in Column U, Row 10 of the Worksheet Tables
B62: b. You shouldn't need to modify this table as it only contains one row.
B63: c. You might need to add columns to the table if you add mileage breakdowns. In that case,
C64: 1) Add the new mileage categories by INSERTing the columns in the middle of the table. Retype previous columns if necessary to correct the table
C65: 2) If you aren't adding any additional columns containing rates (as opposed to lump sum values) then you are done
C66: 3) If you are adding additional columns with rates - then you will be affecting the calculations in the calculator - ask for help!
A68: 8 | B68: Coil_Date: Contains the various product offerings and the default number of work days required to prepare the product at the shipping plant assuming the various conditions (Including the day of the week the order is placed).
B69: a. The table Coil_Date is located in Column AB, Row 1 of the Worksheet Tables
B70: b. You shouldn't need to modify this table too much, unless you add greater number of coils. In that case,
C71: 1) Add the new coil options to the rows at the bottom of the table.
C72: 2) FORMULAS/Select Coil_Date/EDIT/Click cursor at the end of the field range within the REFERS TO box/SHIFT-CTL DOWN/OK/CLOSE
C73: 3) Sort the entire table in alphabetical order
A75: 9 | B75: Coil_Entry:Contains the basic coil offerings and is used to populate the Drop Down Menu for input on the "Coil Days" worksheets
B76: a. The table Coil_Entry is located in Column AB, Row 1 of the Worksheet Tables
B77: b. You shouldn't need to modify this table too much, unless you add greater number of coils. In that case,
C78: 1) Add the new coil options to the rows at the bottom of the table.
C79: 2) FORMULAS/Select Coil_Entry/EDIT/Click cursor at the end of the field range within the REFERS TO box/SHIFT-CTL DOWN/OK/CLOSE
C80: 3) Sort the entire table in alphabetical order
A82: 10 | B82: Days: This table is used to translate the day of the week number returned by Excel into a day being spelled out on the report
B83: a. The table should never be modified. BE CAREFUL NOT TO DELETE!
A85: 11 | B85: Interco_Key: This table generates the key that identifies the producing plant, the day they ship to the shipping plant. Enter the numerical day of week (Monday = 2), the Producing Plant, the Shipping Plant and number of work days. The table will automatically calculate the key and copy over the ship date.
B86: a. The table Interco_Key is located in Column AN, Row 1 of the Worksheet Tables
B87: b. You shouldn't need to modify this table too much, unless you add greater number of utilization rate (row) options. In that case,
C88: 1) Add the new interco information options to the rows at the bottom of the table.
C89: 2) FORMULAS/Select Interco_Key/EDIT/Click cursor at the end of the field range within the REFERS TO box/SHIFT-CTL DOWN/OK/CLOSE
C90: 3) Only enter in columns AN, AO, AP and AR
B107: b. Copy the fields from Jim's extract file into "RAWDATA: tab
B108: c. Ensure the WO's within your tables are "TEXT" by doing a "text to column" conversion
B109: d. Copy the calculations to the new rows for all calculated columns
B110: e. Update the Range Name "RAWDATA" to include the additional rows
A111: 2 | B111: f. Sort by the "Work Group" Column and delete all the work orders with "Missing Work Group Types"
B112: g. Sort the database by Work Order Number and Task Number
B115: Update the worksheet "TABLES" (Range Name WCDesc) with descriptive information for each Work Order
B116: a. Within the worksheet "RAWDATA"
B117: 1) | C117: Sort the Rawdata by Workorder Number
B118: 2) | C118: Filter on "Work Ord Dup" (=1) to see one row per unique work order
B119: b. Copy from the worksheet "RAWDATA to the Worksheet "TABLES"
B120: 1) | C120: Copy Work Order Number (Column E) from Rawdata" to Column WO Num (Column Z)
B121: 2) | C121: Copy SR Number Column A from Rawdata" to Column Service Req Num (Column AA)
B122: 3) | C122: Copy Work Group ID (Column T) from Rawdata" to Column Work Group (Column AB)
B123: 4) | C123: Copy Source Column AC from Rawdata" to Column SA Source (Column AC)
B124: 5) | C124: Copy WO Planner Column AD from Rawdata" to Column Planner (Column AD)
B125: 6) | C125: Copy Work Group Type
B126: 6) | C126: Update the range name WODESC to include the new work orders
B128: c. Copy from the worksheet "RAWDATA to the Worksheet "TABLES" to update Planner Information
A129: 3 | B129: 1) | C129: Ensure Planner and Region are unique and up to date
B130: 2)
B133: Update the worksheet "TABLES" with the WO information from the most current Survey File (Cust Sat … YTD.xls)
B134: a. Sort the Survey RawData by Survey Date (To be found in the latest Survey File)
B135: b. Copy the WO's (Column L) for the most recent month and Paste to the bottom of the SURVEY data ragens in Worksheet TABLES
B136: c. Copy the Survey Date (Column C) and Cust Sat Score (Column N) for the same WO's in step "b"
B137: d. Update the Range Name SURVEY
B138: e. Copy the calculation for "Satisfied = 1" or "Unsatisfied =0" to the rows for the WO's added in step "b"
A139: 4 | B139: h. Sort the data table SURVEY by WO (descending)
B143: Build the WO Data Report - Database of the critical WO information
B144: a. Refresh the Pivot Table in "Table Calc"
B145: b. Copy Column A (WO Number) from Table Calc and copy into Column A
A146: 4 | B146: c. Copy Column B - J from Table Calc and copy into Column C - K
B147: d. Check at the bottom of the spreadsheet to ensure all calculated columns have been copied to the bottom of the data
B150: Determine the Early Finish and Actual Completions for Main Tasks
B151: a. Create a temporary file containing only Main Tasks
B152: 1) Filter on Column Main Index (=1 (Main Tasks))
B153: 2) Copy Work Order column from RawData to "Main Tasks Only"
B154: 3) Copy Main Index from RawData to "Main Tasks Only"
B155: 4) Copy Completion Date from RawData to "Main Tasks Only" Actual Completion Date
B156: 5) Copy Early Finish Date from RawData to "Main Tasks Only" Agreed Date
B157: 6) Update Range of Main_Finish to include all rows
A158: 5 | B158: 7) Refresh Pivot Table
B159: 8) Copy values to neighboring table and calculate On-Time Performance
B162: Determine the On-Time Statistics
B163: a. Update the Main On-Time Performance
B164: 1) | C164: Go to Worksheet ONTIME
B165: 2) | C165: Refresh Pivot Table Titled "Main On-Time"
B176: Update the final data base
B177: a. | C177: Copy WO Data tab to a new data file
B178: b | C178: Within the newly created file create the subset to be analyzed:
B179: 1) | C179: Sort the file and delete any work orders that were created before SR = 10/1/2015
B180: 2) | C180: Sort the file and delete any work orders that do not include a Design step (Design = '1' designates it contains a design step Drops Service Laterals)
B181: 3) | C181: Sort the file and delete any work orders that contain a single task
B184: Other Tables to be Maintained as needed
B185: a. JO_Type: Associates Task Job Type with Description and Whether it is Main work
B187: b. WRK_TYPE: Associates the work codes with further breakdown of the type of work
C212: a. Identify whether the Work Order is "Main" or Service"
C213: 1) | D213: FYI - Column AI matches the Job Type with the table "JO Type" to signify "1" = Main; "0"=Service
